Workbook

Sheet Disclosure
B3: EwePLAN - Version 4.0A (March 2022)
B4: A five year annual projection for a sheep operation.
B5: Copyright: Government of Saskatchewan, 2008
B6: Developed In Conjunction With The Saskatchewan Sheep Development Board
B8: NOTICE:
B9: All rights reserved. Copyright and all other intellectual property rights in EwePLAN, and all manuals,
B10: documentation and other material pertaining to this software, belong exclusively to the
B11: Government of Saskatchewan. This software is provided solely for the personal use of the
B12: user under a non-exclusive license, and may not be copied, modified, published, sold or
B13: distributed to any third party, or transmitted in any form or by any mean whether electronic,
B14: mechanical, photocopying, recording or otherwise, in whole or in part, without the express
B15: written permission of the Saskatchewan Ministry of Agriculture.
B17: DISCLAIMER:
B18: This software is provided without warranty on an "as is" basis. The Government of
B19: Saskatchewan and its agents assume no liability or responsibility whatsoever with respect to
B20: loss or damage caused by or alleged to be caused by the use or operation of this software.

Sheet Intro
B4: EwePLAN - Version 4.0A (March 2022)
B5: Introduction
B7: Planner
B8: The EwePLAN is an excel based tool used to make five-year annual projections for a new or existing ewe-lamb operation.
B10: COP Calculation (Cost Of Production Calculation)
B11: The "COP Calculation" worksheet is a cost of production worksheet that is used to calculate a producers historical cost of production using previous years revenues, expenses, and marketing numbers. Numbers are calculated on an accrual basis.
B13: Input
B14: The "Input" worksheet is the main area in the model where all the production and financial numbers are inputted into the model to complete the financial projections.
B16: Feed
B17: The "Feed" worksheet is the summary sheet showing the annual feed barley and hay requirements for both individual feed rations and totals for the ewes, rams, and lambs.
B19: Monthly
B20: The "Monthly" worksheet contains the projected monthly revenues and expenses including cash flow requirements for the first year. Producers can go into the monthly sheet and change the timing of revenues and expenses to more acurately reflect the projected monthly cash flows for their operation. The worksheet also has an actual monthly cash flow sheet where producers can put their actual revenues and expenses enabling them to compare year-to-date actuals versus their projections.
B22: Income Expense
B23: The "Income Expense" worksheet is the summary sheet with the projected revenues, expenses, and cash flow for the five years projected in the model.
B25: Balance Sheet
B26: The "Balance Sheet" worksheet is the summary of the estimated assets and liabilities of the operation at the end of each year.
B28: Financing Sheet
B29: The "Financing" worksheet is the summary of the payment schedule broken down into interest and principal payments for each loan, per year, set out in the input sheet.
B31: Depreciation
B32: The "Depreciation" worksheet is the schedule for the depreciation of assets that are inputted in the input worksheet, in the balance sheet section. The depreciation rate can be changed for different categories in the depreciation work sheet, in the yellow boxes. The depreciation schedule is initially setup with estimated rates on a declining balance. Maximum Capital Cost Allowance (CCA) rates are not used.

Sheet COP Calculation
C6: Producer Name / Number:
D8: Enterprise Type:
E9: Grazing/Pasture Lambing
E10: Semi Confined/Jug Lambing/Partial Grazing
E11: Confined/Drylot
B14: 1) When do you typically lamb? (month)
B15: 2) Do you lamb on pasture or in a confined area?
B16: 3) When do you sell your lambs? (month)
B18: INVENTORY AND PRODUCTIVITY
E19: 2021 | H19: 2020
B20: BREEDING STOCK | D20: # Head | E20: Value/Head | F20: Total Value | G20: # Head | H20: Value/Head | I20: Total Value
C21: Ewe Flock at Start of Year
C22: Ewe Flock at End of Year
C23: Ram Flock at Start of Year
C24: Ram Flock at End of Year
C25: Lambs in Inventory at Start of Year
C26: Lambs in Inventory at End of Year
B28: PRODUCTIVITY | D28: # Head | E28: =E19 -> 2021 | G28: # Head | H28: =H19 -> 2020
C29: Number of Ewes Lambing During The Year | G29: 0
C30: Lambs Born During the year | G30: 0
C31: Lamb Death Losses (birth to wean) | E31: =IF(D30>0,D31/D30,0) -> 0 | G31: 0 | H31: =IF(G30>0,G31/G30,0) -> 0
C32: Lambs Weaned During the year | E32: =IF(D32>0,D32/D29,0) -> 0 | G32: 0 | H32: =IF(G32>0,G32/G29,0) -> 0
C33: Lamb Death Losses (wean to market) | E33: =IF(D32>0,D33/D32,0) -> 0 | G33: 0 | H33: =IF(G32>0,G33/G32,0) -> 0
C34: Total Lambs Sold During TheYear (All Sizes) | E34: =IF(D34>0,D34/D29,0) -> 0 | G34: 0 | H34: =IF(G34>0,G34/G29,0) -> 0
C35: Ewe Lambs Kept for Breeding | G35: 0
B39: REVENUES | E39: =E19 -> 2021 | H39: =H19 -> 2020
B40: LAMB SALES | D40: # Head | E40: Total Weight | F40: Total Value | G40: # Head | H40: Total Weight | I40: Total Value
C41: Market Lambs Sold (90lbs+)
C42: Feeder Lambs Sold (under 90lbs)
C43: Ewe Lambs Kept For Breeding
C44: Bottle Babies Sold
B46: CULL SALES | D46: # Head | E46: $/ Head | F46: Total Value | G46: # Head | H46: $/ Head | I46: Total Value
C47: Cull Ewe Sales During the year
C48: Cull Ram Sales During the year
B50: BREEDING STOCK SALES | D50: # Head | E50: Total Weight | F50: Total Value | G50: # Head | H50: Total Weight | I50: Total Value
C51: Breeding Ewe Sales During the year
C52: Breeding Ram Sales During the year
B54: WOOL SALES | D54: # Head | E54: Wool Weight | F54: Total Value | G54: # Head | H54: Wool Weight | I54: Total Value
C55: Wool Sales
B57: MEAT SALES | D57: # Head | E57: Meat Weight | F57: Total Value | G57: # Head | H57: Meat Weight | I57: Total Value
C58: Market Lambs Slaughtered
C59: Mutton Sales
B61: OTHER SALES | F61: Total Value | I61: Total Value
C62: Grazing Revenue
C63: Grain Sales
C64: Other Revenue
B68: EXPENSES - OPERATING - ACTUAL YEAR USED | E68: =E19 -> 2021 | H68: =H19 -> 2020
B69: FEED, PASTURE & HAY COSTS | D69: Units | E69: $/Unit | F69: Total Cost | G69: Units | H69: $/Unit | I69: Total Cost
C70: Grains Produced -
C71: Other Produced -
C72: Other Produced -
C73: Grains Purchased -
C74: Other Purchased -
C75: Other Purchased -
C76: Pasture - Production Costs
C77: Pasture - Rental/Lease Costs
C78: Hay - Production Costs
C79: Hay - Purchase Costs
B81: BREEDING STOCK PURCHASES AND SUPPLIES | D81: # Head | E81: $/Head | F81: Total Cost | G81: # Head | H81: $/Head | I81: Total Cost
C82: Ewe/Ewe Lamb Purchases
C83: Ram Purchases
C84: Breeding Supplies (sponges or MGA, and ultrasound costs)
C85: Lambing Supplies
B87: VETERINARY SERVICES AND MEDICATION | F87: Total Cost | I87: Total Cost
C88: Veterinary Services
C89: Medication
B91: GUARDIAN AND HERD DOG COSTS | F91: Total Cost | I91: Total Cost
C92: Guardian dog purchase costs
C93: Guardian dog operating costs (vet., feed, etc.)
C94: Herd dog purchase costs
C95: Herd dog operating costs (vet., feed, etc.)
F96: =E19 -> 2021 | I96: =H19 -> 2020
B97: LABOUR COSTS | E97: # Workers | F97: Total Hours | H97: # Workers | I97: Total Hours
C98: Annual Labour Hours Required
C99: Total Operation Salaries and Benefits ($ Value)
B101: CUSTOM WORK/MANURE REMOVAL COSTS | F101: Total Cost | I101: Total Cost
C102: Annual Manure Removal Cost
C103: Other Annual Custom Work
C104: Other Annual Custom Work
B107: EXPENSES - OPERATING - ACTUAL YEAR USED | F107: =E19 -> 2021 | I107: =H19 -> 2020
B108: FUEL AND UTILITY COSTS | F108: Total Cost | I108: Total Cost
C109: Annual Fuel Costs
C110: Annual Utility Costs (hydro, natural gas, phone)
B112: BUILDING AND EQUIPMENT REPAIRS | F112: Total Cost | I112: Total Cost
C113: Annual Building Repairs
C114: Annual Equipment Repairs
B116: MARKETING AND TRANSPORTATION COSTS | F116: Total Cost | I116: Total Cost
C117: Marketing Commissions - Lamb/Ewe/Ram
C118: Check-Off Fees - Lamb/Ewe/Ram
C119: Transportation Costs - Lamb/Ewe/Ram
C120: Feeder Lamb and Bottle Baby Selling Expenses
B122: SHEARING AND WOOL PRODUCTION COSTS | F122: Total Cost | I122: Total Cost
C123: Shearing Costs
C124: Packing/Bagging/transportation Costs
B126: SLAUGHTERING AND MEAT PRODUCTION COSTS | F126: Total Cost | I126: Total Cost
C127: Slaughter, Packing, and Trasportation Costs
B129: ACCOUNTING, PROPERTY TAXES, AND LISCENSES | F129: Total Cost | I129: Total Cost
C130: Accounting Fees
C131: Property Taxes
C132: Vehicle Plates/Liscenses
B134: INSURANCE COSTS | F134: Total Cost | I134: Total Cost
C135: Building and Equipment Costs
C136: Sheep Insurance Costs
B138: OPERATING INTEREST COSTS | F138: Total Cost | I138: Total Cost
C139: Annual Operating Interest Costs
B140: EXPENSES - FIXED | F140: =E19 -> 2021 | I140: =H19 -> 2020
B141: DEPRECIATION COSTS | F141: Total Cost | I141: Total Cost
C142: Buildings
C143: Equipment
B145: LONG TERM INTEREST COSTS | F145: Total Cost | I145: Total Cost
C146: Long Term Interest Costs
D155: (Note: For Analysis purpose only, does not link to the Input Sheet)
C156: HISTORICAL COST OF PRODUCTION ANALYSIS
D157: Year | E157: =E19 -> 2021 | G157: Year | H157: =H19 -> 2020
B158: REVENUE | D158: Total $ | E158: $/Ewe | F158: $/Lamb | G158: Total $ | H158: $/Ewe | I158: $/Lamb
C159: Market Lamb Sales (90lbs+) | D159: =IF(F41>0,F41,0) -> 0 | E159: =IF($E$190>0,D159/$E$190,0) -> 0 | F159: =IF(F191>0,D159/F191,0) -> 0 | G159: =IF(I41>0,I41,0) -> 0 | H159: =IF($H$190>0,G159/$H$190,0) -> 0 | I159: =IF(I191>0,G159/I191,0) -> 0
C160: Feeder Lamb Sales (under 90lbs) | D160: =IF(F42>0,F42,0) -> 0 | E160: 0 | F160: 0 | G160: =IF(I42>0,I42,0) -> 0 | H160: 0 | I160: 0
C161: Ewe Lambs Kept For Breeding | D161: =IF(F43>0,F43,0) -> 0 | E161: 0 | F161: 0 | G161: =IF(I43>0,I43,0) -> 0 | H161: 0 | I161: 0
C162: Cull Ewe and Ram Sales | D162: =IF((F47+F48)>0,(F47+F48),0) -> 0 | E162: 0 | F162: 0 | G162: =IF((I47+I48)>0,(I47+I48),0) -> 0 | H162: 0 | I162: 0
C163: Breeding Stock Sales | D163: =IF((F51+F52)>0,(F51+F52),0) -> 0 | E163: 0 | F163: 0 | G163: =IF((I51+I52)>0,(I51+I52),0) -> 0 | H163: 0 | I163: 0
C164: Wool Sales | D164: =IF(F55>0,F55,0) -> 0 | E164: 0 | F164: 0 | G164: =IF(I55>0,I55,0) -> 0 | H164: 0 | I164: 0
C165: Meat and Mutton Sales | D165: =IF((F58+F59)>0,(F58+F59),0) -> 0 | E165: 0 | F165: 0 | G165: =IF((I58+I59)>0,(I58+I59),0) -> 0 | H165: 0 | I165: 0
C166: Other Sales | D166: =IF(F64>0,F64,0) -> 0 | E166: 0 | F166: =IF($F$199>0,D166/$F$199,0) -> 0 | G166: =IF(I64>0,I64,0) -> 0 | H166: 0 | I166: =IF($F$199>0,G166/$F$199,0) -> 0
C167: TOTAL REVENUE | D167: =SUM(D159:D166) -> 0 | E167: =IF(D167>0,D167/E190,0) -> 0 | F167: =IF(D167>0,D167/F199,0) -> 0 | G167: =SUM(G159:G166) -> 0 | H167: =IF(G167>0,G167/H190,0) -> 0 | I167: =IF(G167>0,G167/I199,0) -> 0
B168: EXPENSES - VARIABLE COSTS
C169: Feed, Pasture, & Hay Costs | D169: =IF(SUM(F70:F79)>0,SUM(F70:F79),0) -> 0 | E169: =IF($E$190>0,D169/$E$190,0) -> 0 | F169: =IF($F$199>0,D169/$F$199,0) -> 0 | G169: =IF(SUM(I70:I79)>0,SUM(I70:I79),0) -> 0 | H169: =IF($H$190>0,G169/$H$190,0) -> 0 | I169: =IF($I$199>0,G169/$I$199,0) -> 0
C170: Breeding Stock Purchases & Supplies | D170: =IF(SUM(F82:F85)>0,SUM(F82:F85),0) -> 0 | E170: 0 | F170: 0 | G170: =IF(SUM(I82:I85)>0,SUM(I82:I85),0) -> 0 | H170: 0 | I170: 0
C171: Veterinary Services and Medication | D171: =IF((F88+F89)>0,(F88+F89),0) -> 0 | E171: 0 | F171: 0 | G171: =IF((I88+I89)>0,(I88+I89),0) -> 0 | H171: 0 | I171: 0
C172: Guardian and Herd Dog Costs | D172: =IF(SUM(F92:F95)>0,SUM(F92:F95),0) -> 0 | E172: 0 | F172: 0 | G172: =IF(SUM(I92:I95)>0,SUM(I92:I95),0) -> 0 | H172: 0 | I172: 0
C173: Labour Costs | D173: =IF(F99>0,F99,0) -> 0 | E173: 0 | F173: 0 | G173: =IF(I99>0,I99,0) -> 0 | H173: 0 | I173: 0
C174: Custom Work/Manure Removal Costs | D174: =IF((F102+F103+F104)>0,(F102+F103+F104),0) -> 0 | E174: 0 | F174: 0 | G174: =IF((I102+I103+I104)>0,(I102+I103+I104),0) -> 0 | H174: 0 | I174: 0
C175: Fuel and Utility Costs | D175: =IF((F109+F110)>0,(F109+F110),0) -> 0 | E175: 0 | F175: 0 | G175: =IF((I109+I110)>0,(I109+I110),0) -> 0 | H175: 0 | I175: 0
C176: Building and Equipment Repairs | D176: =IF((F113+F114)>0,(F113+F114),0) -> 0 | E176: 0 | F176: 0 | G176: =IF((I113+I114)>0,(I113+I114),0) -> 0 | H176: 0 | I176: 0
C177: Marketing, Check-Off, & Transportation Costs | D177: =IF((SUM(F117:F120))>0,(SUM(F117:F120)),0) -> 0 | E177: 0 | F177: 0 | G177: =IF((SUM(I117:I120))>0,(SUM(I117:I120)),0) -> 0 | H177: 0 | I177: 0
C178: Shearing and Wool Production Costs | D178: =IF((F123+F124)>0,(F123+F124),0) -> 0 | E178: 0 | F178: 0 | G178: =IF((I123+I124)>0,(I123+I124),0) -> 0 | H178: 0 | I178: 0
C179: Slaughtering and Meat Production Costs | D179: =IF(F127>0,F127,0) -> 0 | E179: 0 | F179: 0 | G179: =IF(I127>0,I127,0) -> 0 | H179: 0 | I179: 0
C180: Accounting, Property Taxes, and Liscenses | D180: =IF((F130+F131+F132)>0,(F130+F131+F132),0) -> 0 | E180: 0 | F180: 0 | G180: =IF((I130+I131+I132)>0,(I130+I131+I132),0) -> 0 | H180: 0 | I180: 0
C181: Insurance Costs | D181: =IF((F135+F136)>0,(F135+F136),0) -> 0 | E181: 0 | F181: 0 | G181: =IF((I135+I136)>0,(I135+I136),0) -> 0 | H181: 0 | I181: 0
C182: Operating Interest Costs | D182: =IF(F139>0,F139,0) -> 0 | E182: 0 | F182: 0 | G182: =IF(I139>0,I139,0) -> 0 | H182: 0 | I182: 0
C183: TOTAL VARIABLE COSTS | D183: =SUM(D169:D182) -> 0 | E183: 0 | F183: 0 | G183: 0 | H183: 0 | I183: 0
C184: Depreciation | D184: =IF((F142+F143)>0,(F142+F143),0) -> 0 | E184: =IF($E$190>0,D184/$E$190,0) -> 0 | F184: =IF($F$199>0,D184/$F$199,0) -> 0 | G184: =IF((I142+I143)>0,(I142+I143),0) -> 0 | H184: =IF($H$190>0,G184/$H$190,0) -> 0 | I184: =IF($I$199>0,G184/$I$199,0) -> 0
C185: Long Term Interest | D185: =IF(F146>0,F146,0) -> 0 | E185: =IF($E$190>0,D185/$E$190,0) -> 0 | F185: =IF($F$199>0,D185/$F$199,0) -> 0 | G185: =IF(I146>0,I146,0) -> 0 | H185: =IF($H$190>0,G185/$H$190,0) -> 0 | I185: =IF($I$199>0,G185/$I$199,0) -> 0
C186: TOTAL FIXED COSTS | D186: =D184+D185 -> 0 | E186: 0 | F186: 0 | G186: 0 | H186: 0 | I186: 0
C187: TOTAL COSTS | D187: =D183+D186 -> 0 | E187: 0 | F187: 0 | G187: 0 | H187: 0 | I187: 0
C188: NET INCOME, Before Taxes | D188: =D167-D187 -> 0 | E188: 0 | F188: 0 | G188: 0 | H188: 0 | I188: 0
C190: Number of Ewes Lambinig During The Year | E190: =D29 -> 0 | H190: =G29 -> 0
C191: =C159 -> Market Lamb Sales (90lbs+) | F191: =IF(D41>0,D41,0) -> 0 | I191: =IF(G41>0,G41,0) -> 0
C192: Feeder Lamb Sales (under 90lbs) | F192: =IF(D42>0,D42,0) -> 0 | I192: =IF(G42>0,G42,0) -> 0
C193: Ewe Lambs Kept For Breeding | F193: =IF(D43>0,D43,0) -> 0 | I193: =IF(G43>0,G43,0) -> 0
C194: Cull Ewe and Ram Sales | F194: =IF((D47+D48)>0,(D47+D48),0) -> 0 | I194: =IF((G47+G48)>0,(G47+G48),0) -> 0
C195: Breeding Stock Sales | F195: =IF((D51+D52)>0,(D51+D52),0) -> 0 | I195: =IF((G51+G52)>0,(G51+G52),0) -> 0
C196: Wool Sales | F196: =IF((D55)>0,(D55),0) -> 0 | I196: =IF((G55)>0,(G55),0) -> 0
C197: Meat and Mutton Sales | F197: =IF((D58+D59)>0,(D58+D59),0) -> 0 | I197: =IF((G58+G59)>0,(G58+G59),0) -> 0
D199: TOTAL HEAD SOLD & KEPT FOR BREEDING | F199: =SUM(F191:F197)-F196 -> 0 | I199: =SUM(I191:I197)-I196 -> 0

Sheet Input
D5: EwePLAN, Version 4.0A - March 2022
C6: SHEEP PRODUCTION COST AND PROFORMA FINANCIAL MODEL
C7: INPUT PAGE FOR 5 YEAR CONVENTIONAL SHEEP OPERATION
C8: EwePLAN: Developed By Brad Marceniuk, Saskatchewan Ministry of Agriculture.
C9: Developed In Conjunction With The Saskatchewan Sheep Development Board.
C10: Name: 400 Head Ewe Operation | D10: Conventional - Annual Production | G10: Date:
C11: Address: NOTE: Feed and Animal Market Prices Will Vary With Time/Location and Should Be Reviewed!
C12: Telephone#: | G12: Fax#:
B14: BREEDING STOCK | E14: Year 1 | F14: Year 2 | G14: Year 3 | H14: Year 4 | I14: Year 5
C15: Ewe Flock - Start of the year (Number Head) | D15: Input 1 | E15: 400 | F15: =E27 -> 400 | G15: =F27 -> 400 | H15: =G27 -> 400 | I15: =H27 -> 400
C16: Ram Flock - Start of the year (Number Head) | D16: Input 2 | E16: 11 | F16: =E16-E30-E32+E33 -> 11.02 | G16: =F16-F30-F32+F33 -> 11.0364 | H16: =G16-G30-G32+G33 -> 11.049848 | I16: =H16-H30-H32+H33 -> 11.06087536
C17: Open Ewes (Number Head) | D17: Input 3 | E17: 0 | F17: =E17 -> 0 | G17: =F17 -> 0 | H17: =G17 -> 0 | I17: =H17 -> 0
C19: Ewe Mortality Rate (Percentage) | D19: Input 4 | E19: 0.03 | F19: =E19 -> 0.03 | G19: =F19 -> 0.03 | H19: =G19 -> 0.03 | I19: =H19 -> 0.03
C20: Estimated Ewe Mortality (Number) | D20: calculated | E20: =ROUND(E15*E19,0) -> 12 | F20: =ROUND(F15*F19,0) -> 12 | G20: =ROUND(G15*G19,0) -> 12 | H20: =ROUND(H15*H19,0) -> 12 | I20: =ROUND(I15*I19,0) -> 12
C21: Percent Ewes Culled Annually | D21: Input 5 | E21: 0.15 | F21: =E21 -> 0.15 | G21: =F21 -> 0.15 | H21: =G21 -> 0.15 | I21: =H21 -> 0.15
C22: Cull Ewe Sales During the year (Number Head) | D22: calculated | E22: =ROUND(E15*E21,0) -> 60 | F22: =ROUND(F15*F21,0) -> 60 | G22: =ROUND(G15*G21,0) -> 60 | H22: =ROUND(H15*H21,0) -> 60 | I22: =ROUND(I15*I21,0) -> 60
C23: Replacement Ewes Needed | D23: calculated | E23: =E15*(E19+E21) -> 72 | F23: =F15*(F19+F21) -> 72 | G23: =G15*(G19+G21) -> 72 | H23: =H15*(H19+H21) -> 72 | I23: =I15*(I19+I21) -> 72
C24: Ewe Lambs - kept for breeding (Number Head) | D24: Input 6 | E24: =E23 -> 72 | F24: =F23 -> 72 | G24: =G23 -> 72 | H24: =H23 -> 72 | I24: =I23 -> 72
C25: Bred Ewe Lambs Purchased - During the year | D25: Input 7 | E25: =IF((E23-E24)>0,E23-E24,0) -> 0 | F25: =IF((F23-F24)>0,F23-F24,0) -> 0 | G25: =IF((G23-G24)>0,G23-G24,0) -> 0 | H25: =IF((H23-H24)>0,H23-H24,0) -> 0 | I25: =IF((I23-I24)>0,I23-I24,0) -> 0
C26: Bred Ewe Lambs Purchase Price - $/Bred Ewe | D26: Input 8 | E26: 375 | F26: =E26 -> 375 | G26: =F26 -> 375 | H26: =G26 -> 375 | I26: =H26 -> 375
C27: Ewe Flock (ewes & bred ewe lambs) Year End | D27: calculated | E27: =E15-E20-E22+E24+E25 -> 400 | F27: =F15-F20-F22+F24+F25 -> 400 | G27: =G15-G20-G22+G24+G25 -> 400 | H27: =H15-H20-H22+H24+H25 -> 400 | I27: =I15-I20-I22+I24+I25 -> 400
C29: Ram Mortality Rate (Percentage) | D29: Input 9 | E29: 0.03 | F29: =E29 -> 0.03 | G29: =F29 -> 0.03 | H29: =G29 -> 0.03 | I29: =H29 -> 0.03
C30: Estimated Ram Mortality (Number) | D30: calculated | E30: =(E16*E29) -> 0.33 | F30: =(F16*F29) -> 0.3306 | G30: =(G16*G29) -> 0.331092 | H30: =(H16*H29) -> 0.33149544 | I30: =(I16*I29) -> 0.3318262608
C31: Percent Rams Culled Annually | D31: Input 10 | E31: 0.15 | F31: =E31 -> 0.15 | G31: =F31 -> 0.15 | H31: =G31 -> 0.15 | I31: =H31 -> 0.15
C32: Cull Ram Sales During the year (Number Head) | D32: calculated | E32: =E16*E31 -> 1.65 | F32: =F16*F31 -> 1.653 | G32: =G16*G31 -> 1.65546 | H32: =H16*H31 -> 1.6574772 | I32: =I16*I31 -> 1.659131304
C33: Rams Purchased - During the year | D33: Input 11 | E33: =ROUND(E30+E32,0) -> 2 | F33: =ROUND(F30+F32,0) -> 2 | G33: =ROUND(G30+G32,0) -> 2 | H33: =ROUND(H30+H32,0) -> 2 | I33: =ROUND(I30+I32,0) -> 2
C34: Rams Purchase Price - $/Ram | D34: Input 12 | E34: 600 | F34: =E34 -> 600 | G34: =F34 -> 600 | H34: =G34 -> 600 | I34: =H34 -> 600
B36: PRODUCTIVITY
C37: Lambing Rate (Percentage) | D37: Input 13 | E37: 2 | F37: =E37 -> 2 | G37: 2 | H37: 2 | I37: 2
C38: Lambs Born During the year (Number) | D38: calculated | E38: =ROUND((E15-E17)*E37,0) -> 800 | F38: =ROUND((F15-F17)*F37,0) -> 800 | G38: =ROUND((G15-G17)*G37,0) -> 800 | H38: =ROUND((H15-H17)*H37,0) -> 800 | I38: =ROUND((I15-I17)*I37,0) -> 800
C39: Lamb Death Loss (birth to wean) - Percentage | D39: Input 14 | E39: 0.1 | F39: 0.1 | G39: 0.1 | H39: 0.1 | I39: 0.1
C40: Lamb Death Loss (birth to wean) - Number | D40: calculated | E40: =ROUND(E38*E39,0) -> 80 | F40: =ROUND(F38*F39,0) -> 80 | G40: =ROUND(G38*G39,0) -> 80 | H40: =ROUND(H38*H39,0) -> 80 | I40: =ROUND(I38*I39,0) -> 80
C41: Lambs Weaned During the year | D41: calculated | E41: =ROUND(E38-E40,0) -> 720 | F41: =ROUND(F38-F40,0) -> 720 | G41: =ROUND(G38-G40,0) -> 720 | H41: =ROUND(H38-H40,0) -> 720 | I41: =ROUND(I38-I40,0) -> 720
C42: Lamb Weaning Percentage | D42: calculated | E42: =E41/E38 -> 0.9 | F42: =F41/F38 -> 0.9 | G42: =G41/G38 -> 0.9 | H42: =H41/H38 -> 0.9 | I42: =I41/I38 -> 0.9
C43: Lamb Death Loss (wean to market) - Percentage | D43: Input 15 | E43: 0.05 | F43: =E43 -> 0.05 | G43: =F43 -> 0.05 | H43: =G43 -> 0.05 | I43: =H43 -> 0.05
C44: Lamb Death Loss (wean to market) - Number | D44: calculated | E44: =ROUND(E41*E43,0) -> 36 | F44: =ROUND(F41*F43,0) -> 36 | G44: =ROUND(G41*G43,0) -> 36 | H44: =ROUND(H41*H43,0) -> 36 | I44: =ROUND(I41*I43,0) -> 36
C45: Lambs Available For Sale (Number Head) | D45: calculated | E45: =E41-E44 -> 684 | F45: =F41-F44 -> 684 | G45: =G41-G44 -> 684 | H45: =H41-H44 -> 684 | I45: =I41-I44 -> 684
C46: Lambs Per Ewe to Market (Available) | D46: calculated | E46: =E45/E15 -> 1.71 | F46: =F45/F15 -> 1.71 | G46: =G45/G15 -> 1.71 | H46: =H45/H15 -> 1.71 | I46: =I45/I15 -> 1.71
C47: Lambs Sold (does not include kept for breeding) | D47: calculated | E47: =E45-E24 -> 612 | F47: =F45-F24 -> 612 | G47: =G45-G24 -> 612 | H47: =H45-H24 -> 612 | I47: =I45-I24 -> 612
B49: LAMBS SALES | E49: =$E$14 -> Year 1 | F49: =$F$14 -> Year 2 | G49: =$G$14 -> Year 3 | H49: =$H$14 -> Year 4 | I49: =$I$14 -> Year 5
C50: Feeder Lambs sold during the year (Number) | D50: Input 16 | E50: =IF(E51>0,E47,0) -> 0 | F50: =IF(F51>0,F47,0) -> 0 | G50: 0 | H50: 0 | I50: 0
C51: Feeder Lambs selling weight (LBS) | D51: Input 17 | E51: 0 | F51: =E51 -> 0 | G51: 0 | H51: 0 | I51: 0
C52: Feeder Lambs selling price ($/LB) | D52: Input 18 | E52: 2.6 | F52: 2.6 | G52: 2.6 | H52: 2.6 | I52: 2.6
C53: Feeder Lambs selling value ($/Head) | D53: calculated | E53: =E51*E52 -> 0 | F53: =F51*F52 -> 0 | G53: =G51*G52 -> 0 | H53: =H51*H52 -> 0 | I53: =I51*I52 -> 0
C55: Slaughter Weight Lambs sold (Number) | D55: Input 19 | E55: =E45-E24-E50-E61-E63-E65-E89-E98 -> 612 | F55: =F45-F24-F50-F61-F63-F65-F89-F98 -> 612 | G55: =G45-G24-G50-G61-G63-G65-G89-G98 -> 612 | H55: =H45-H24-H50-H61-H63-H65-H89-H98 -> 612 | I55: =I45-I24-I50-I61-I63-I65-I89-I98 -> 612
C56: Slaughter Weight Lambs selling weight (LBS) | D56: Input 20 | E56: 115 | F56: =E56 -> 115 | G56: 115 | H56: 115 | I56: 115
C57: Slaughter Weight Lambs selling price ($/LB) | D57: Input 21 | E57: 2.3 | F57: 2.3 | G57: 2.3 | H57: 2.3 | I57: 2.3
C58: Slaughter Weight Lambs selling value ($/Head) | D58: calculated | E58: =E56*E57 -> 264.5 | F58: =F56*F57 -> 264.5 | G58: =G56*G57 -> 264.5 | H58: =H56*H57 -> 264.5 | I58: =I56*I57 -> 264.5
B60: BREEDING STOCK SALES
C61: Breeding Ewe Sales (Number) | D61: Input 22 | E61: 0 | F61: =E61 -> 0 | G61: 0 | H61: 0 | I61: 0
C62: Breeding Ewe Selling Price ($/Head) | D62: Input 23 | E62: 0 | F62: 0 | G62: 0 | H62: 0 | I62: 0
C63: Breeding Ram Sales (Number) | D63: Input 24 | E63: 0 | F63: 0 | G63: 0 | H63: 0 | I63: 0
C64: Breeding Ram Selling Price ($/Head) | D64: Input 25 | E64: 0 | F64: 0 | G64: 0 | H64: 0 | I64: 0
C65: Breeding Ewe Lambs Sales (Number) | D65: Input 26 | E65: 0 | F65: =E65 -> 0 | G65: 0 | H65: 0 | I65: 0
C66: Breeding Ewe Lambs Selling Price ($/Head) | D66: Input 27 | E66: 0 | F66: 0 | G66: 0 | H66: 0 | I66: 0
B68: CULL SALES | E68: =$E$14 -> Year 1 | F68: =$F$14 -> Year 2 | G68: =$G$14 -> Year 3 | H68: =$H$14 -> Year 4 | I68: =$I$14 -> Year 5
C69: Cull Ewe Sales During the year (Head) | D69: calculated | E69: =E22 -> 60 | F69: =F22 -> 60 | G69: =G22 -> 60 | H69: =H22 -> 60 | I69: =I22 -> 60
C70: Cull Ewe Average Culling Weight (LBS) | D70: Input 28 | E70: 160 | F70: =E70 -> 160 | G70: 160 | H70: 160 | I70: 160
C71: Cull Ewe Price ($/LB) | D71: Input 29 | E71: 1.25 | F71: 1.25 | G71: 1.25 | H71: 1.25 | I71: 1.25
C72: Cull Ewe Average Price ($/Ewe) | D72: calculated | E72: =E70*E71 -> 200 | F72: =F70*F71 -> 200 | G72: =G70*G71 -> 200 | H72: =H70*H71 -> 200 | I72: =I70*I71 -> 200
C73: Cull Ram Sales During the year (Head) | D73: calculated | E73: =E32 -> 1.65 | F73: =F32 -> 1.653 | G73: =G32 -> 1.65546 | H73: =H32 -> 1.6574772 | I73: =I32 -> 1.659131304
C74: Cull Ram Average Culling Weight (LBS) | D74: Input 30 | E74: 250 | F74: =E74 -> 250 | G74: 250 | H74: 250 | I74: 250
C75: Cull Ram Average Price ($/LB) | D75: Input 31 | E75: 1.25 | F75: 1.25 | G75: 1.25 | H75: 1.25 | I75: 1.25
C76: Cull Ram Price - $/Ram | D76: calculated | E76: =E74*E75 -> 312.5 | F76: =F74*F75 -> 312.5 | G76: =G74*G75 -> 312.5 | H76: =H74*H75 -> 312.5 | I76: =I74*I75 -> 312.5
B78: WOOL SALES
C79: Number of Animals Sheared | D79: Input 32 | E79: =E15+E16 -> 411 | F79: =F15+F16 -> 411.02 | G79: =G15+G16 -> 411.0364 | H79: =H15+H16 -> 411.049848 | I79: =I15+I16 -> 411.0608754
C80: Average Pounds of Wool Per Animal | D80: Input 33 | E80: 8 | F80: =E80 -> 8 | G80: =F80 -> 8 | H80: =G80 -> 8 | I80: =H80 -> 8
C81: Total Pounds of Wool Sheared | D81: calculated | E81: =E79*E80 -> 3288 | F81: =F79*F80 -> 3288.16 | G81: =G79*G80 -> 3288.2912 | H81: =H79*H80 -> 3288.398784 | I81: =I79*I80 -> 3288.487003
C82: Value of Wool Per Pound | D82: Input 34 | E82: 0.5 | F82: =E82 -> 0.5 | G82: =F82 -> 0.5 | H82: =G82 -> 0.5 | I82: =H82 -> 0.5
C83: Total Value of Wool | D83: calculated | E83: =E81*E82 -> 1644 | F83: =F81*F82 -> 1644.08 | G83: =G81*G82 -> 1644.1456 | H83: =H81*H82 -> 1644.199392 | I83: =I81*I82 -> 1644.243501
C84: Shearing Cost Per Head | D84: Input 35 | E84: 6 | F84: =E84 -> 6 | G84: 6 | H84: 6 | I84: 6
C85: Packing/Bagging/Transportation Cost per LB | D85: Input 36 | E85: 0 | F85: 0 | G85: 0 | H85: 0 | I85: 0
C86: Total Wool Production Costs | D86: calculated | E86: =(E79*E84)+(E81*E85) -> 2466 | F86: =(F79*F84)+(F81*F85) -> 2466.12 | G86: =(G79*G84)+(G81*G85) -> 2466.2184 | H86: =(H79*H84)+(H81*H85) -> 2466.299088 | I86: =(I79*I84)+(I81*I85) -> 2466.365252
B88: MEAT SALES
C89: Number of Butcher Lambs Slaughtered | D89: Input 37 | E89: 0 | F89: =E89 -> 0 | G89: 0 | H89: 0 | I89: 0
C90: Average Pounds of Meat Per Animal | D90: Input 38 | E90: 0 | F90: 0 | G90: 0 | H90: 0 | I90: 0
C91: Total Pounds of Meat Produced | D91: calculated | E91: =IF(E89>0.5,E89*E90,0) -> 0 | F91: =IF(F89>0.5,F89*F90,0) -> 0 | G91: =IF(G89>0.5,G89*G90,0) -> 0 | H91: =IF(H89>0.5,H89*H90,0) -> 0 | I91: =IF(I89>0.5,I89*I90,0) -> 0
C92: Sale Value of Meat Per Pound | D92: Input 39 | E92: 0 | F92: =E92 -> 0 | G92: =F92 -> 0 | H92: =G92 -> 0 | I92: =H92 -> 0
C93: Total Sales Value of Meat | D93: calculated | E93: =IF(E91>0.5,E91*E92,0) -> 0 | F93: =IF(F91>0.5,F91*F92,0) -> 0 | G93: =IF(G91>0.5,G91*G92,0) -> 0 | H93: =IF(H91>0.5,H91*H92,0) -> 0 | I93: =IF(I91>0.5,I91*I92,0) -> 0
C94: Slaughter and Packaging Cost Per Head | D94: Input 40 | E94: 0 | F94: =E94 -> 0 | G94: =F94 -> 0 | H94: =G94 -> 0 | I94: =H94 -> 0
C95: Total Meat Production Costs | D95: calculated | E95: =IF(E89>0.5,(E89*E94),0) -> 0 | F95: =IF(F89>0.5,(F89*F94),0) -> 0 | G95: =IF(G89>0.5,(G89*G94),0) -> 0 | H95: =IF(H89>0.5,(H89*H94),0) -> 0 | I95: =IF(I89>0.5,(I89*I94),0) -> 0
B97: MUTTON SALES
C98: Number of Animals Slaughtered | D98: Input 41 | E98: 0 | F98: =E98 -> 0 | G98: 0 | H98: 0 | I98: 0
C99: Average Pounds Per Animal | D99: Input 42 | E99: 0 | F99: 0 | G99: 0 | H99: 0 | I99: 0
C100: Total Pounds of Mutton Produced | D100: calculated | E100: =IF(E98>0.5,E98*E99,0) -> 0 | F100: =IF(F98>0.5,F98*F99,0) -> 0 | G100: =IF(G98>0.5,G98*G99,0) -> 0 | H100: =IF(H98>0.5,H98*H99,0) -> 0 | I100: =IF(I98>0.5,I98*I99,0) -> 0
C101: Sale Value of Mutton Per Pound | D101: Input 43 | E101: 0 | F101: =E101 -> 0 | G101: =F101 -> 0 | H101: =G101 -> 0 | I101: =H101 -> 0
C102: Total Sales Value of Mutton | D102: calculated | E102: =IF(E100>0.5,E100*E101,0) -> 0 | F102: =IF(F100>0.5,F100*F101,0) -> 0 | G102: =IF(G100>0.5,G100*G101,0) -> 0 | H102: =IF(H100>0.5,H100*H101,0) -> 0 | I102: =IF(I100>0.5,I100*I101,0) -> 0
C103: Slaughter and Packaging Cost Per Head | D103: Input 44 | E103: 0 | F103: =E103 -> 0 | G103: =F103 -> 0 | H103: =G103 -> 0 | I103: =H103 -> 0
C104: Total Mutton Production Costs | D104: calculated | E104: =IF(E98>0.5,(E98*E103),0) -> 0 | F104: =IF(F98>0.5,(F98*F103),0) -> 0 | G104: =IF(G98>0.5,(G98*G103),0) -> 0 | H104: =IF(H98>0.5,(H98*H103),0) -> 0 | I104: =IF(I98>0.5,(I98*I103),0) -> 0
B106: FEED COSTS
C107: FEED INGREDIENTS | E107: =$E$14 -> Year 1 | F107: =$F$14 -> Year 2 | G107: =$G$14 -> Year 3 | H107: =$H$14 -> Year 4 | I107: =$I$14 -> Year 5
C108: Barley ($/tonne) | D108: Input 45 | E108: 275 | F108: =E108 -> 275 | G108: 275 | H108: 275 | I108: 275
C109: Hay ($/tonne) | D109: Input 46 | E109: 175 | F109: 175 | G109: 175 | H109: 175 | I109: 175
C110: Silage ($/tonne) | D110: Input 47 | E110: 0 | F110: 0 | G110: 0 | H110: 0 | I110: 0
C111: Pellets ($/tonne) | D111: Input 48 | E111: 0 | F111: =E111 -> 0 | G111: =F111 -> 0 | H111: =G111 -> 0 | I111: =H111 -> 0
C112: Straw ($/tonne) | D112: Input 49 | E112: 75 | F112: =E112 -> 75 | G112: 75 | H112: 75 | I112: 75
C113: Supplements ($/tonne) | D113: Input 50 | E113: 0 | F113: 0 | G113: 0 | H113: 0 | I113: 0
C114: Salt/Mineral Mix ($/tonne) | D114: Input 51 | E114: 1000 | F114: =E114 -> 1000 | G114: 1000 | H114: 1000 | I114: 1000
C115: Vitamins ($/tonne) | D115: Input 52 | E115: 0 | F115: 0 | G115: 0 | H115: 0 | I115: 0
C116: Milk Replacer ($/tonne) | D116: Input 53 | E116: 0 | F116: 0 | G116: 0 | H116: 0 | I116: 0
C117: Other - 1 | D117: Input 54 | E117: 0 | F117: =E117 -> 0 | G117: 0 | H117: 0 | I117: 0
C118: Other - 2 (other 1-4 can be changed where) | D118: Input 55 | E118: 0 | F118: 0 | G118: 0 | H118: 0 | I118: 0
C119: Other - 3 (feed ingredients first listed/priced) | D119: Input 56 | E119: 0 | F119: =E119 -> 0 | G119: 0 | H119: 0 | I119: 0
C120: Other - 4 | D120: Input 57 | E120: 0 | F120: =E120 -> 0 | G120: 0 | H120: 0 | I120: 0
B122: FARM PRODUCED FEED PRODUCTION COSTS | E122: =E$14 -> Year 1 | F122: =F$14 -> Year 2 | G122: =G$14 -> Year 3 | H122: =H$14 -> Year 4 | I122: =I$14 -> Year 5
C123: Grain - seed, fert., chem., field work, etc. | D123: Input 58 | E123: 0 | F123: =E123 -> 0 | G123: 0 | H123: 0 | I123: 0
C124: Hay - seed, fert., cutting, baling, hauling, etc. | D124: Input 59 | E124: 0 | F124: 0 | G124: 0 | H124: 0 | I124: 0
C125: Pasture - seed, fert., water, fencing, etc. | D125: Input 60 | E125: 0 | F125: 0 | G125: 0 | H125: 0 | I125: 0
C126: Farm Produced Pasture Costs Per Head: | E126: =E$14 -> Year 1 | F126: =F$14 -> Year 2 | G126: =G$14 -> Year 3 | H126: =H$14 -> Year 4 | I126: =I$14 -> Year 5
C127: Total Pasture Feed Requirements (LB.) | D127: calculated | E127: =E196+E225+E299 -> 0 | F127: =F196+F225+F299 -> 0 | G127: =G196+G225+G299 -> 0 | H127: =H196+H225+H299 -> 0 | I127: =I196+I225+I299 -> 0
C128: Ewes | D128: calculated | E128: =IF(E195>0,(E195/E127)*E125,0) -> 0 | F128: =IF(F195>0,(F195/F127)*F125,0) -> 0 | G128: =IF(G195>0,(G195/G127)*G125,0) -> 0 | H128: =IF(H195>0,(H195/H127)*H125,0) -> 0 | I128: =IF(I195>0,(I195/I127)*I125,0) -> 0
C129: Rams | D129: calculated | E129: =IF(E224>0,(E224/E127)*E125,0) -> 0 | F129: =IF(F224>0,(F224/F127)*F125,0) -> 0 | G129: =IF(G224>0,(G224/G127)*G125,0) -> 0 | H129: =IF(H224>0,(H224/H127)*H125,0) -> 0 | I129: =IF(I224>0,(I224/I127)*I125,0) -> 0
C130: Lambs | D130: calculated | E130: =IF(E298>0,(E298/E127)*E125,0) -> 0 | F130: =IF(F298>0,(F298/F127)*F125,0) -> 0 | G130: =IF(G298>0,(G298/G127)*G125,0) -> 0 | H130: =IF(H298>0,(H298/H127)*H125,0) -> 0 | I130: =IF(I298>0,(I298/I127)*I125,0) -> 0
B132: FEED RATIONS
C133: Ewes - Feeding Days and Ration | E133: =E$14 -> Year 1 | F133: =F$14 -> Year 2 | G133: =G$14 -> Year 3 | H133: =H$14 -> Year 4 | I133: =I$14 -> Year 5
C134: Feeding Days | D134: Input 61 | E134: 60 | F134: =E134 -> 60 | G134: 60 | H134: 60 | I134: 60
C135: Flushing and Pre-lambing Ration (#1) | E135: lbs/hd/day | F135: lbs/hd/day | G135: lbs/hd/day | H135: lbs/hd/day | I135: lbs/hd/day
C136: Barley | D136: Input 62 | E136: 1 | F136: 1 | G136: 1 | H136: 1 | I136: 1
C137: Hay | D137: Input 63 | E137: 4.5 | F137: 4.5 | G137: 4.5 | H137: 4.5 | I137: 4.5
C138: Silage | D138: Input 64 | E138: 0 | F138: 0 | G138: 0 | H138: 0 | I138: 0
C139: Pellets | D139: Input 65 | E139: 0 | F139: =E139 -> 0 | G139: =F139 -> 0 | H139: =G139 -> 0 | I139: =H139 -> 0
C140: Straw | D140: Input 66 | E140: 0 | F140: =E140 -> 0 | G140: 0 | H140: 0 | I140: 0
C141: Supplements | D141: Input 67 | E141: 0 | F141: 0 | G141: 0 | H141: 0 | I141: 0
C142: Salt/Mineral Mix | D142: Input 68 | E142: 0.06 | F142: 0.06 | G142: 0.06 | H142: 0.06 | I142: 0.06
C143: Vitamins | D143: Input 69 | E143: 0 | F143: 0 | G143: 0 | H143: 0 | I143: 0
C144: =C117 -> Other - 1 | D144: Input 70 | E144: 0 | F144: 0 | G144: 0 | H144: 0 | I144: 0
C145: =C118 -> Other - 2 (other 1-4 can be changed where) | D145: Input 71 | E145: 0 | F145: 0 | G145: =F145 -> 0 | H145: 0 | I145: 0
C146: =C119 -> Other - 3 (feed ingredients first listed/priced) | D146: Input 72 | E146: 0 | F146: =E146 -> 0 | G146: 0 | H146: 0 | I146: 0
C147: =C120 -> Other - 4 | D147: Input 73 | E147: 0 | F147: =E147 -> 0 | G147: 0 | H147: 0 | I147: 0
C148: Cost Per Day/Head | D148: calculated | E148: =(E136/(2204.62))*E$108+(E137/2204.62)*E$109+(E138/2204.62)*E$110+(E139/2204.62)*E$111+(E140/2204.62)*E$112+(E141/2204.62)*E$113+(E142/2204.62)*E$114+(E143/2204.62)*E$115+(E144/2204.62)*E$117+(E145/2204.62)*E$118+(E146/2204.62)*$E119+(E147/2204.62)*E$120 -> 0.5091580408 | F148: =(F136/(2204.62))*F$108+(F137/2204.62)*F$109+(F138/2204.62)*F$110+(F139/2204.62)*F$111+(F140/2204.62)*F$112+(F141/2204.62)*F$113+(F142/2204.62)*F$114+(F143/2204.62)*F$115+(F144/2204.62)*F$117+(F145/2204.62)*F$118+(F146/2204.62)*$E119+(F147/2204.62)*F$120 -> 0.5091580408 | G148: =(G136/(2204.62))*G$108+(G137/2204.62)*G$109+(G138/2204.62)*G$110+(G139/2204.62)*G$111+(G140/2204.62)*G$112+(G141/2204.62)*G$113+(G142/2204.62)*G$114+(G143/2204.62)*G$115+(G144/2204.62)*G$117+(G145/2204.62)*G$118+(G146/2204.62)*$E119+(G147/2204.62)*G$120 -> 0.5091580408 | H148: =(H136/(2204.62))*H$108+(H137/2204.62)*H$109+(H138/2204.62)*H$110+(H139/2204.62)*H$111+(H140/2204.62)*H$112+(H141/2204.62)*H$113+(H142/2204.62)*H$114+(H143/2204.62)*H$115+(H144/2204.62)*H$117+(H145/2204.62)*H$118+(H146/2204.62)*$E119+(H147/2204.62)*H$120 -> 0.5091580408 | I148: =(I136/(2204.62))*I$108+(I137/2204.62)*I$109+(I138/2204.62)*I$110+(I139/2204.62)*I$111+(I140/2204.62)*I$112+(I141/2204.62)*I$113+(I142/2204.62)*I$114+(I143/2204.62)*I$115+(I144/2204.62)*I$117+(I145/2204.62)*I$118+(I146/2204.62)*$E119+(I147/2204.62)*I$120 -> 0.5091580408
C149: Total Cost Per Head/Feed Ration | D149: calculated | E149: =E134*E148 -> 30.54948245 | F149: =F134*F148 -> 30.54948245 | G149: =G134*G148 -> 30.54948245 | H149: =H134*H148 -> 30.54948245 | I149: =I134*I148 -> 30.54948245
C151: Ewes - Feeding Days and Ration | E151: =E$14 -> Year 1 | F151: =F$14 -> Year 2 | G151: =G$14 -> Year 3 | H151: =H$14 -> Year 4 | I151: =I$14 -> Year 5
C152: Feeding Days | D152: Input 74 | E152: 60 | F152: =E152 -> 60 | G152: =F152 -> 60 | H152: =G152 -> 60 | I152: =H152 -> 60
C153: Lactation Ration (#2) | E153: lbs/hd/day | F153: lbs/hd/day | G153: lbs/hd/day | H153: lbs/hd/day | I153: lbs/hd/day
C154: =C136 -> Barley | D154: Input 75 | E154: 1.5 | F154: =E154 -> 1.5 | G154: 1.5 | H154: 1.5 | I154: 1.5
C155: =C137 -> Hay | D155: Input 76 | E155: 4.5 | F155: 4.5 | G155: 4.5 | H155: 4.5 | I155: 4.5
C156: =C138 -> Silage | D156: Input 77 | E156: 0 | F156: 0 | G156: 0 | H156: 0 | I156: 0
C157: Pellets | D157: Input 78 | E157: 0 | F157: 0 | G157: 0 | H157: 0 | I157: 0
C158: =C140 -> Straw | D158: Input 79 | E158: 0.4 | F158: 0.4 | G158: 0.4 | H158: 0.4 | I158: 0.4
C159: Supplements | D159: Input 80 | E159: 0 | F159: 0 | G159: 0 | H159: 0 | I159: 0
C160: Salt/Mineral Mix | D160: Input 81 | E160: 0.06 | F160: 0.06 | G160: 0.06 | H160: 0.06 | I160: 0.06
C161: Vitamins | D161: Input 82 | E161: 0 | F161: 0 | G161: 0 | H161: 0 | I161: 0
C162: Other - 1 | D162: Input 83 | E162: 0 | F162: 0 | G162: 0 | H162: 0 | I162: 0
C163: Other - 2 (other 1-4 can be changed where) | D163: Input 84 | E163: 0 | F163: 0 | G163: 0 | H163: 0 | I163: 0
C164: Other - 3 (feed ingredients first listed/priced) | D164: Input 85 | E164: 0 | F164: 0 | G164: 0 | H164: 0 | I164: 0
C165: Other - 4 | D165: Input 86 | E165: 0 | F165: 0 | G165: 0 | H165: 0 | I165: 0
C166: Cost Per Day/Head | D166: calculated | E166: =(E154/(2204.62))*E$108+(E155/2204.62)*E$109+(E156/2204.62)*E$110+(E157/2204.62)*E$111+(E158/2204.62)*E$112+(E159/2204.62)*E$113+(E160/2204.62)*E$114+(E161/2204.62)*E$115+(E162/2204.62)*E$117+(E163/2204.62)*E$118+(E164/2204.62)*E$119+(E165/2204.62)*E$120 -> 0.5851348532 | F166: =(F154/(2204.62))*F$108+(F155/2204.62)*F$109+(F156/2204.62)*F$110+(F157/2204.62)*F$111+(F158/2204.62)*F$112+(F159/2204.62)*F$113+(F160/2204.62)*F$114+(F161/2204.62)*F$115+(F162/2204.62)*F$117+(F163/2204.62)*F$118+(F164/2204.62)*F$119+(F165/2204.62)*F$120 -> 0.5851348532 | G166: =(G154/(2204.62))*G$108+(G155/2204.62)*G$109+(G156/2204.62)*G$110+(G157/2204.62)*G$111+(G158/2204.62)*G$112+(G159/2204.62)*G$113+(G160/2204.62)*G$114+(G161/2204.62)*G$115+(G162/2204.62)*G$117+(G163/2204.62)*G$118+(G164/2204.62)*G$119+(G165/2204.62)*G$120 -> 0.5851348532 | H166: =(H154/(2204.62))*H$108+(H155/2204.62)*H$109+(H156/2204.62)*H$110+(H157/2204.62)*H$111+(H158/2204.62)*H$112+(H159/2204.62)*H$113+(H160/2204.62)*H$114+(H161/2204.62)*H$115+(H162/2204.62)*H$117+(H163/2204.62)*H$118+(H164/2204.62)*H$119+(H165/2204.62)*H$120 -> 0.5851348532 | I166: =(I154/(2204.62))*I$108+(I155/2204.62)*I$109+(I156/2204.62)*I$110+(I157/2204.62)*I$111+(I158/2204.62)*I$112+(I159/2204.62)*I$113+(I160/2204.62)*I$114+(I161/2204.62)*I$115+(I162/2204.62)*I$117+(I163/2204.62)*I$118+(I164/2204.62)*I$119+(I165/2204.62)*I$120 -> 0.5851348532
C167: Total Cost Per Head/Feed Ration | D167: calculated | E167: =E152*E166 -> 35.10809119 | F167: =F152*F166 -> 35.10809119 | G167: =G152*G166 -> 35.10809119 | H167: =H152*H166 -> 35.10809119 | I167: =I152*I166 -> 35.10809119
C169: Ewes - Feeding Days and Ration | E169: =E$14 -> Year 1 | F169: =F$14 -> Year 2 | G169: =G$14 -> Year 3 | H169: =H$14 -> Year 4 | I169: =I$14 -> Year 5
C170: Feeding Days | D170: Input 87 | E170: 120 | F170: =E170 -> 120 | G170: =F170 -> 120 | H170: =G170 -> 120 | I170: =H170 -> 120
C171: Maintenance Ration (#3) | E171: lbs/hd/day | F171: lbs/hd/day | G171: lbs/hd/day | H171: lbs/hd/day | I171: lbs/hd/day
C172: =C136 -> Barley | D172: Input 88 | E172: 0 | F172: =E172 -> 0 | G172: 0 | H172: 0 | I172: 0
C173: =C137 -> Hay | D173: Input 89 | E173: 4 | F173: =E173 -> 4 | G173: =F173 -> 4 | H173: =G173 -> 4 | I173: =H173 -> 4
C174: =C138 -> Silage | D174: Input 90 | E174: 0 | F174: 0 | G174: 0 | H174: 0 | I174: 0
C175: Pellets | D175: Input 91 | E175: 0 | F175: 0 | G175: 0 | H175: 0 | I175: 0
C176: =C140 -> Straw | D176: Input 92 | E176: 0.4 | F176: 0.4 | G176: 0.4 | H176: 0.4 | I176: 0.4
C177: Supplements | D177: Input 93 | E177: 0 | F177: 0 | G177: 0 | H177: 0 | I177: 0
C178: Salt/Mineral Mix | D178: Input 94 | E178: 0.06 | F178: 0.06 | G178: 0.06 | H178: 0.06 | I178: 0.06
C179: Vitamins | D179: Input 95 | E179: 0 | F179: 0 | G179: 0 | H179: 0 | I179: 0
C180: Other - 1 | D180: Input 96 | E180: 0 | F180: 0 | G180: 0 | H180: 0 | I180: 0
C181: Other - 2 (other 1-4 can be changed where) | D181: Input 97 | E181: 0 | F181: 0 | G181: 0 | H181: 0 | I181: 0
C182: Other - 3 (feed ingredients first listed/priced) | D182: Input 98 | E182: 0 | F182: =E182 -> 0 | G182: 0 | H182: 0 | I182: 0
C183: Other - 4 | D183: Input 99 | E183: 0 | F183: 0 | G183: 0 | H183: 0 | I183: 0
C184: Cost Per Day/Head | D184: calculated | E184: =(E172/(2204.62))*E$108+(E173/2204.62)*E$109+(E174/2204.62)*E$110+(E175/2204.62)*E$111+(E176/2204.62)*E$112+(E177/2204.62)*E$113+(E178/2204.62)*E$114+(E179/2204.62)*E$115+(E180/2204.62)*E$117+(E181/2204.62)*E$118+(E182/2204.62)*E$119+(E183/2204.62)*E$120 -> 0.3583383985 | F184: =(F172/(2204.62))*F$108+(F173/2204.62)*F$109+(F174/2204.62)*F$110+(F175/2204.62)*F$111+(F176/2204.62)*F$112+(F177/2204.62)*F$113+(F178/2204.62)*F$114+(F179/2204.62)*F$115+(F180/2204.62)*F$117+(F181/2204.62)*F$118+(F182/2204.62)*F$119+(F183/2204.62)*F$120 -> 0.3583383985 | G184: =(G172/(2204.62))*G$108+(G173/2204.62)*G$109+(G174/2204.62)*G$110+(G175/2204.62)*G$111+(G176/2204.62)*G$112+(G177/2204.62)*G$113+(G178/2204.62)*G$114+(G179/2204.62)*G$115+(G180/2204.62)*G$117+(G181/2204.62)*G$118+(G182/2204.62)*G$119+(G183/2204.62)*G$120 -> 0.3583383985 | H184: =(H172/(2204.62))*H$108+(H173/2204.62)*H$109+(H174/2204.62)*H$110+(H175/2204.62)*H$111+(H176/2204.62)*H$112+(H177/2204.62)*H$113+(H178/2204.62)*H$114+(H179/2204.62)*H$115+(H180/2204.62)*H$117+(H181/2204.62)*H$118+(H182/2204.62)*H$119+(H183/2204.62)*H$120 -> 0.3583383985 | I184: =(I172/(2204.62))*I$108+(I173/2204.62)*I$109+(I174/2204.62)*I$110+(I175/2204.62)*I$111+(I176/2204.62)*I$112+(I177/2204.62)*I$113+(I178/2204.62)*I$114+(I179/2204.62)*I$115+(I180/2204.62)*I$117+(I181/2204.62)*I$118+(I182/2204.62)*I$119+(I183/2204.62)*I$120 -> 0.3583383985
C185: Total Cost Per Head/Feed Ration | D185: calculated | E185: =E170*E184 -> 43.00060781 | F185: =F170*F184 -> 43.00060781 | G185: =G170*G184 -> 43.00060781 | H185: =H170*H184 -> 43.00060781 | I185: =I170*I184 -> 43.00060781
C186: Total Ewe Days on Feed Grain & Hay | D186: Days | E186: =E134+E152+E170 -> 240 | F186: =F134+F152+F170 -> 240 | G186: =G134+G152+G170 -> 240 | H186: =H134+H152+H170 -> 240 | I186: =I134+I152+I170 -> 240
C187: Total Feed Cost of Grain & Hay Per Ewe | D187: calculated | E187: =E149+E167+E185 -> 108.6581815 | F187: =F149+F167+F185 -> 108.6581815 | G187: =G149+G167+G185 -> 108.6581815 | H187: =H149+H167+H185 -> 108.6581815 | I187: =I149+I167+I185 -> 108.6581815
C188: Total Feed Cost of Grain & Hay Ewe Flock | D188: calculated | E188: =E15*E187 -> 43463.27258 | F188: =F15*F187 -> 43463.27258 | G188: =G15*G187 -> 43463.27258 | H188: =H15*H187 -> 43463.27258 | I188: =I15*I187 -> 43463.27258
C190: Ewe Pasture Grazing Costs
C191: Ewe Pasture Grazing Days (Days) | D191: Input 100 | E191: =365-(E134+E152+E170) -> 125 | F191: =365-(F134+F152+F170) -> 125 | G191: =365-(G134+G152+G170) -> 125 | H191: =365-(H134+H152+H170) -> 125 | I191: =365-(I134+I152+I170) -> 125
C192: Ewe Pasture Grazing Costs $/Head/Day | D192: Input 101 | E192: 0.15 | F192: =E192 -> 0.15 | G192: =F192 -> 0.15 | H192: =G192 -> 0.15 | I192: =H192 -> 0.15
C193: Ewe Pasture Grazing Costs (Ewe) - RENTED | D193: calculated | E193: =IF(E192>0,E192*E191,0) -> 18.75 | F193: =IF(F192>0,F192*F191,0) -> 18.75 | G193: =IF(G192>0,G192*G191,0) -> 18.75 | H193: =IF(H192>0,H192*H191,0) -> 18.75 | I193: =IF(I192>0,I192*I191,0) -> 18.75
C194: Ewe standing grass/hay consumption (LB./Day) | D194: Input 102 | E194: 0 | F194: =E194 -> 0 | G194: =F194 -> 0 | H194: =G194 -> 0 | I194: =H194 -> 0
C195: Total grass/hay requirement per Ewe (Lb.) | D195: calculated | E195: =IF(E191>0,E191*E194,0) -> 0 | F195: =IF(F191>0,F191*F194,0) -> 0 | G195: =IF(G191>0,G191*G194,0) -> 0 | H195: =IF(H191>0,H191*H194,0) -> 0 | I195: =IF(I191>0,I191*I194,0) -> 0
C196: Total grass/hay requirement for Ewe Herd (LB.) | D196: calculated | E196: =IF(E195>0,E15*E195,0) -> 0 | F196: =IF(F195>0,F15*F195,0) -> 0 | G196: =IF(G195>0,G15*G195,0) -> 0 | H196: =IF(H195>0,H15*H195,0) -> 0 | I196: =IF(I195>0,I15*I195,0) -> 0
C197: Estimated Pasture Feed Cost Per Ewe/Day | D197: calculated | E197: =IF(E198>0,E198/E191,0) -> 0.15 | F197: =IF(F198>0,F198/F191,0) -> 0.15 | G197: =IF(G198>0,G198/G191,0) -> 0.15 | H197: =IF(H198>0,H198/H191,0) -> 0.15 | I197: =IF(I198>0,I198/I191,0) -> 0.15
C198: Total Estimated Pasture Feed Cost Per Ewe | D198: calculated | E198: =IF((E193+E128)>0.1,E193+E128,0) -> 18.75 | F198: =IF((F193+F128)>0.1,F193+F128,0) -> 18.75 | G198: =IF((G193+G128)>0.1,G193+G128,0) -> 18.75 | H198: =IF((H193+H128)>0.1,H193+H128,0) -> 18.75 | I198: =IF((I193+I128)>0.1,I193+I128,0) -> 18.75
C199: Total Estimated Pasture Feed Cost Ewe Flock | D199: calculated | E199: =IF(E198>0,E198*E15,0) -> 7500 | F199: =IF(F198>0,F198*F15,0) -> 7500 | G199: =IF(G198>0,G198*G15,0) -> 7500 | H199: =IF(H198>0,H198*H15,0) -> 7500 | I199: =IF(I198>0,I198*I15,0) -> 7500
C201: Rams - Feeding Days and Ration | E201: =E$14 -> Year 1 | F201: =F$14 -> Year 2 | G201: =G$14 -> Year 3 | H201: =H$14 -> Year 4 | I201: =I$14 -> Year 5
C202: Feeding Days | D202: Input 103 | E202: 200 | F202: =E202 -> 200 | G202: =F202 -> 200 | H202: =G202 -> 200 | I202: =H202 -> 200
C203: Ram - General Feed Ration (#4) | E203: lbs/hd/day | F203: lbs/hd/day | G203: lbs/hd/day | H203: lbs/hd/day | I203: lbs/hd/day
C204: =C136 -> Barley | D204: Input 104 | E204: 0.75 | F204: =E204 -> 0.75 | G204: 0.75 | H204: 0.75 | I204: 0.75
C205: =C137 -> Hay | D205: Input 105 | E205: 6 | F205: =E205 -> 6 | G205: =F205 -> 6 | H205: =G205 -> 6 | I205: =H205 -> 6
C206: =C138 -> Silage | D206: Input 106 | E206: 0 | F206: 0 | G206: 0 | H206: 0 | I206: 0
C207: Pellets | D207: Input 107 | E207: 0 | F207: 0 | G207: 0 | H207: 0 | I207: 0
C208: =C140 -> Straw | D208: Input 108 | E208: 0.4 | F208: 0.4 | G208: 0.4 | H208: 0.4 | I208: 0.4
C209: Supplements | D209: Input 109 | E209: 0 | F209: 0 | G209: 0 | H209: 0 | I209: 0
C210: Salt/Mineral Mix | D210: Input 110 | E210: 0.06 | F210: 0.06 | G210: 0.06 | H210: 0.06 | I210: 0.06
C211: Vitamins | D211: Input 111 | E211: 0 | F211: 0 | G211: 0 | H211: 0 | I211: 0
C212: Other - 1 | D212: Input 112 | E212: 0 | F212: 0 | G212: 0 | H212: 0 | I212: 0
C213: Other - 2 (other 1-4 can be changed where) | D213: Input 113 | E213: 0 | F213: 0 | G213: =F213 -> 0 | H213: 0 | I213: 0
C214: Other - 3 (feed ingredients first listed/priced) | D214: Input 114 | E214: 0 | F214: =E214 -> 0 | G214: 0 | H214: 0 | I214: 0
C215: Other - 4 | D215: Input 115 | E215: 0 | F215: =E215 -> 0 | G215: 0 | H215: 0 | I215: 0
C216: Ram Feed Cost Per Day/Head | D216: calculated | E216: =(E204/(2204.62))*E$108+(E205/2204.62)*E$109+(E206/2204.62)*E$110+(E207/2204.62)*E$111+(E208/2204.62)*E$112+(E209/2204.62)*E$113+(E210/2204.62)*E$114+(E211/2204.62)*E$115+(E212/2204.62)*E$117+(E213/2204.62)*E$118+(E214/2204.62)*E$119+(E215/2204.62)*E$120 -> 0.6106494543 | F216: =(F204/(2204.62))*F$108+(F205/2204.62)*F$109+(F206/2204.62)*F$110+(F207/2204.62)*F$111+(F208/2204.62)*F$112+(F209/2204.62)*F$113+(F210/2204.62)*F$114+(F211/2204.62)*F$115+(F212/2204.62)*F$117+(F213/2204.62)*F$118+(F214/2204.62)*F$119+(F215/2204.62)*F$120 -> 0.6106494543 | G216: =(G204/(2204.62))*G$108+(G205/2204.62)*G$109+(G206/2204.62)*G$110+(G207/2204.62)*G$111+(G208/2204.62)*G$112+(G209/2204.62)*G$113+(G210/2204.62)*G$114+(G211/2204.62)*G$115+(G212/2204.62)*G$117+(G213/2204.62)*G$118+(G214/2204.62)*G$119+(G215/2204.62)*G$120 -> 0.6106494543 | H216: =(H204/(2204.62))*H$108+(H205/2204.62)*H$109+(H206/2204.62)*H$110+(H207/2204.62)*H$111+(H208/2204.62)*H$112+(H209/2204.62)*H$113+(H210/2204.62)*H$114+(H211/2204.62)*H$115+(H212/2204.62)*H$117+(H213/2204.62)*H$118+(H214/2204.62)*H$119+(H215/2204.62)*H$120 -> 0.6106494543 | I216: =(I204/(2204.62))*I$108+(I205/2204.62)*I$109+(I206/2204.62)*I$110+(I207/2204.62)*I$111+(I208/2204.62)*I$112+(I209/2204.62)*I$113+(I210/2204.62)*I$114+(I211/2204.62)*I$115+(I212/2204.62)*I$117+(I213/2204.62)*I$118+(I214/2204.62)*I$119+(I215/2204.62)*I$120 -> 0.6106494543
C217: Total Ram Feed Cost Per Head/Ration | D217: calculated | E217: =E202*E216 -> 122.1298909 | F217: =F202*F216 -> 122.1298909 | G217: =G202*G216 -> 122.1298909 | H217: =H202*H216 -> 122.1298909 | I217: =I202*I216 -> 122.1298909
C219: Ram Pasture Grazing Costs
C220: Ram Pasture Grazing Days (Days) | D220: Input 116 | E220: =365-E202 -> 165 | F220: =365-F202 -> 165 | G220: =365-G202 -> 165 | H220: =365-H202 -> 165 | I220: =365-I202 -> 165
C221: Ram Pasture Grazing Costs $/Head/Day | D221: Input 117 | E221: 0.15 | F221: =E221 -> 0.15 | G221: =F221 -> 0.15 | H221: =G221 -> 0.15 | I221: =H221 -> 0.15
C222: Pasture Grazing Costs (Ram) - RENTED | D222: calculated | E222: =IF(E221>0,E221*E220,0) -> 24.75 | F222: =IF(F221>0,F221*F220,0) -> 24.75 | G222: =IF(G221>0,G221*G220,0) -> 24.75 | H222: =IF(H221>0,H221*H220,0) -> 24.75 | I222: =IF(I221>0,I221*I220,0) -> 24.75
C223: Ram standing grass/hay consumption (LB./Day) | D223: Input 118 | E223: 0 | F223: =E223 -> 0 | G223: =F223 -> 0 | H223: =G223 -> 0 | I223: =H223 -> 0
... 203 more rows

Sheet Feed
C4: ANNUAL BARLEY AND HAY REQUIREMENTS
D5: Year 1 | E5: Year 2 | F5: Year 3 | G5: Year 4 | H5: Year 5
C6: Barley - Bu | D6: =D33+D46+D73 -> 4625.517091 | E6: 4625.582408 | F6: 4625.635968 | G6: 4625.679887 | H6: 4625.7159
C7: Hay - Tonne | D7: 275.862069 | E7: 275.8729583 | F7: 275.8818875 | G7: 275.8892094 | H7: 275.8952134
B9: EWES
B10: =Input!C135 -> Flushing and Pre-lambing Ration (#1)
C11: PER EWE | D11: LB./Year -1 | E11: LB./Year -2 | F11: LB./Year -3 | G11: LB./Year -4 | H11: LB./Year -5
C12: Barley - LB. | D12: =Input!E134*Input!E136 -> 60 | E12: =Input!F134*Input!F136 -> 60 | F12: =Input!G134*Input!G136 -> 60 | G12: =Input!H134*Input!H136 -> 60 | H12: =Input!I134*Input!I136 -> 60
C13: Hay - LB. | D13: =Input!E134*Input!E137 -> 270 | E13: =Input!F134*Input!F137 -> 270 | F13: =Input!G134*Input!G137 -> 270 | G13: =Input!H134*Input!H137 -> 270 | H13: =Input!I134*Input!I137 -> 270
B15: =Input!C153 -> Lactation Ration (#2)
C16: PER EWE | D16: LB./Year -1 | E16: LB./Year -2 | F16: LB./Year -3 | G16: LB./Year -4 | H16: LB./Year -5
C17: Barley - LB. | D17: =Input!E152*Input!E154 -> 90 | E17: =Input!F152*Input!F154 -> 90 | F17: =Input!G152*Input!G154 -> 90 | G17: =Input!H152*Input!H154 -> 90 | H17: =Input!I152*Input!I154 -> 90
C18: Hay - LB. | D18: =Input!E152*Input!E155 -> 270 | E18: =Input!F152*Input!F155 -> 270 | F18: =Input!G152*Input!G155 -> 270 | G18: =Input!H152*Input!H155 -> 270 | H18: =Input!I152*Input!I155 -> 270
B20: =Input!C171 -> Maintenance Ration (#3)
C21: PER EWE | D21: LB./Year -1 | E21: LB./Year -2 | F21: LB./Year -3 | G21: LB./Year -4 | H21: LB./Year -5
C22: Barley - LB. | D22: =Input!E170*Input!E172 -> 0 | E22: =Input!F170*Input!F172 -> 0 | F22: =Input!G170*Input!G172 -> 0 | G22: =Input!H170*Input!H172 -> 0 | H22: =Input!I170*Input!I172 -> 0
C23: Hay - LB. | D23: =Input!E170*Input!E173 -> 480 | E23: =Input!F170*Input!F173 -> 480 | F23: =Input!G170*Input!G173 -> 480 | G23: =Input!H170*Input!H173 -> 480 | H23: =Input!I170*Input!I173 -> 480
C25: TOTAL LB. PER EWE | D25: Year 1 | E25: Year 2 | F25: Year 3 | G25: Year 4 | H25: Year 5
C26: Barley - LB. | D26: =D12+D17+D22 -> 150 | E26: 150 | F26: 150 | G26: 150 | H26: 150
C27: Hay - LB. | D27: 1020 | E27: 1020 | F27: 1020 | G27: 1020 | H27: 1020
C29: EWE HERD TOTAL | D29: Year 1 | E29: Year 2 | F29: Year 3 | G29: Year 4 | H29: Year 5
C30: Barley - LB. | D30: =Input!E15*D26 -> 60000 | E30: =Input!F15*E26 -> 60000 | F30: =Input!G15*F26 -> 60000 | G30: =Input!H15*G26 -> 60000 | H30: =Input!I15*H26 -> 60000
C31: Hay - LB. | D31: =Input!E15*D27 -> 408000 | E31: =Input!F15*E27 -> 408000 | F31: =Input!G15*F27 -> 408000 | G31: =Input!H15*G27 -> 408000 | H31: =Input!I15*H27 -> 408000
C32: TOTAL EWE HERD | D32: Year 1 | E32: Year 2 | F32: Year 3 | G32: Year 4 | H32: Year 5
C33: Barley - Bu | D33: =D30/45.93 -> 1306.335728 | E33: =E30/45.93 -> 1306.335728 | F33: =F30/45.93 -> 1306.335728 | G33: =G30/45.93 -> 1306.335728 | H33: =H30/45.93 -> 1306.335728
C34: Hay - Tonne | D34: =D31/2204 -> 185.1179673 | E34: =E31/2204 -> 185.1179673 | F34: =F31/2204 -> 185.1179673 | G34: =G31/2204 -> 185.1179673 | H34: =H31/2204 -> 185.1179673
B36: RAMS
B37: =Input!C203 -> Ram - General Feed Ration (#4)
C38: PER RAM | D38: LB./Year -1 | E38: LB./Year -2 | F38: LB./Year -3 | G38: LB./Year -4 | H38: LB./Year -5
C39: Barley - LB. | D39: =Input!E202*Input!E204 -> 150 | E39: =Input!F202*Input!F204 -> 150 | F39: =Input!G202*Input!G204 -> 150 | G39: =Input!H202*Input!H204 -> 150 | H39: =Input!I202*Input!I204 -> 150
C40: Hay - LB. | D40: =Input!E202*Input!E205 -> 1200 | E40: =Input!F202*Input!F205 -> 1200 | F40: =Input!G202*Input!G205 -> 1200 | G40: =Input!H202*Input!H205 -> 1200 | H40: =Input!I202*Input!I205 -> 1200
C42: RAM HERD TOTAL | D42: Year 1 | E42: Year 2 | F42: Year 3 | G42: Year 4 | H42: Year 5
C43: Barley - LB. | D43: =Input!E16*D39 -> 1650 | E43: =Input!F16*E39 -> 1653 | F43: =Input!G16*F39 -> 1655.46 | G43: =Input!H16*G39 -> 1657.4772 | H43: =Input!I16*H39 -> 1659.131304
C44: Hay - LB. | D44: =Input!E16*D40 -> 13200 | E44: =Input!F16*E40 -> 13224 | F44: =Input!G16*F40 -> 13243.68 | G44: =Input!H16*G40 -> 13259.8176 | H44: =Input!I16*H40 -> 13273.05043
C45: TOTAL | D45: Year 1 | E45: Year 2 | F45: Year 3 | G45: Year 4 | H45: Year 5
C46: Barley - Bu | D46: =D43/45.93 -> 35.92423253 | E46: =E43/45.93 -> 35.98954931 | F46: =F43/45.93 -> 36.04310908 | G46: =G43/45.93 -> 36.08702809 | H46: =H43/45.93 -> 36.12304167
C47: Hay - Tonne | D47: =D44/2204 -> 5.989110708 | E47: =E44/2204 -> 6 | F47: =F44/2204 -> 6.00892922 | G47: =G44/2204 -> 6.01625118 | H47: =H44/2204 -> 6.022255187
B49: LAMBS
B50: =Input!C233 -> Lambs Creep Ration (#5)
C51: Per Lamb | D51: LB./Year -1 | E51: LB./Year -2 | F51: LB./Year -3 | G51: LB./Year -4 | H51: LB./Year -5
C52: Barley - LB. | D52: =Input!E231*Input!E234 -> 25 | E52: =Input!F231*Input!F234 -> 25 | F52: =Input!G231*Input!G234 -> 25 | G52: =Input!H231*Input!H234 -> 25 | H52: =Input!I231*Input!I234 -> 25
C53: Hay - LB. | D53: =Input!E231*Input!E235 -> 25 | E53: =Input!F231*Input!F235 -> 25 | F53: =Input!G231*Input!G235 -> 25 | G53: =Input!H231*Input!H235 -> 25 | H53: =Input!I231*Input!I235 -> 25
B55: =Input!C253 -> Lambs Weaning Ration (#6)
C56: Per Lamb | D56: LB./Year -1 | E56: LB./Year -2 | F56: LB./Year -3 | G56: LB./Year -4 | H56: LB./Year -5
C57: Barley - LB. | D57: =Input!E251*Input!E254 -> 30 | E57: =Input!F251*Input!F254 -> 30 | F57: =Input!G251*Input!G254 -> 30 | G57: =Input!H251*Input!H254 -> 30 | H57: =Input!I251*Input!I254 -> 30
C58: Hay - LB. | D58: =Input!E251*Input!E255 -> 30 | E58: =Input!F251*Input!F255 -> 30 | F58: =Input!G251*Input!G255 -> 30 | G58: =Input!H251*Input!H255 -> 30 | H58: =Input!I251*Input!I255 -> 30
B60: =Input!C273 -> Lambs Feeder Ration (#7)
C61: Per Lamb | D61: LB./Year -1 | E61: LB./Year -2 | F61: LB./Year -3 | G61: LB./Year -4 | H61: LB./Year -5
C62: Barley - LB. | D62: =Input!E271*Input!E274 -> 150 | E62: =Input!F271*Input!F274 -> 150 | F62: =Input!G271*Input!G274 -> 150 | G62: =Input!H271*Input!H274 -> 150 | H62: =Input!I271*Input!I274 -> 150
C63: Hay - LB. | D63: =Input!E271*Input!E275 -> 200 | E63: =Input!F271*Input!F275 -> 200 | F63: =Input!G271*Input!G275 -> 200 | G63: =Input!H271*Input!H275 -> 200 | H63: =Input!I271*Input!I275 -> 200
C65: TOTAL PER LAMB | D65: Year 1 | E65: Year 2 | F65: Year 3 | G65: Year 4 | H65: Year 5
C66: Barley - LB. | D66: =D52+D57+D62 -> 205 | E66: 205 | F66: 205 | G66: 205 | H66: 205
C67: Hay - LB. | D67: 255 | E67: 255 | F67: 255 | G67: 255 | H67: 255
C69: LAMB HERD TOTAL | D69: Year 1 | E69: Year 2 | F69: Year 3 | G69: Year 4 | H69: Year 5
C70: Barley - LB. | D70: =(Input!E232*D52)+(Input!E252*D57)+(Input!E272*D62) -> 150800 | E70: =(Input!F232*E52)+(Input!F252*E57)+(Input!F272*E62) -> 150800 | F70: =(Input!G232*F52)+(Input!G252*F57)+(Input!G272*F62) -> 150800 | G70: =(Input!H232*G52)+(Input!H252*G57)+(Input!H272*G62) -> 150800 | H70: =(Input!I232*H52)+(Input!I252*H57)+(Input!I272*H62) -> 150800
C71: Hay - LB. | D71: =(Input!E232*D53)+(Input!E252*D58)+(Input!E272*D63) -> 186800 | E71: =(Input!F232*E53)+(Input!F252*E58)+(Input!F272*E63) -> 186800 | F71: =(Input!G232*F53)+(Input!G252*F58)+(Input!G272*F63) -> 186800 | G71: =(Input!H232*G53)+(Input!H252*G58)+(Input!H272*G63) -> 186800 | H71: =(Input!I232*H53)+(Input!I252*H58)+(Input!I272*H63) -> 186800
C72: LAMB HERD TOTAL | D72: Year 1 | E72: Year 2 | F72: Year 3 | G72: Year 4 | H72: Year 5
C73: Barley - Bu | D73: =D70/45.93 -> 3283.25713 | E73: =E70/45.93 -> 3283.25713 | F73: =F70/45.93 -> 3283.25713 | G73: =G70/45.93 -> 3283.25713 | H73: =H70/45.93 -> 3283.25713
C74: Hay - Tonne | D74: =D71/2204 -> 84.75499093 | E74: =E71/2204 -> 84.75499093 | F74: =F71/2204 -> 84.75499093 | G74: =G71/2204 -> 84.75499093 | H74: =H71/2204 -> 84.75499093
C77: ANNUAL PASTURE REQUIREMENTS
C78: LBS. | D78: Year 1 | E78: Year 2 | F78: Year 3 | G78: Year 4 | H78: Year 5
C79: Ewes - LBS. | D79: =Input!E196 -> 0 | E79: =Input!F196 -> 0 | F79: =Input!G196 -> 0 | G79: =Input!H196 -> 0 | H79: =Input!I196 -> 0
C80: Rams - LBS. | D80: =Input!E225 -> 0 | E80: =Input!F225 -> 0 | F80: =Input!G225 -> 0 | G80: =Input!H225 -> 0 | H80: =Input!I225 -> 0
C81: Lambs - LBS. | D81: =Input!E299 -> 0 | E81: =Input!F299 -> 0 | F81: =Input!G299 -> 0 | G81: =Input!H299 -> 0 | H81: =Input!I299 -> 0
C82: TOTAL - LBS. | D82: =D79+D80+D81 -> 0 | E82: =E79+E80+E81 -> 0 | F82: =F79+F80+F81 -> 0 | G82: =G79+G80+G81 -> 0 | H82: =H79+H80+H81 -> 0
C83: Tonnes | D83: Year 1 | E83: Year 2 | F83: Year 3 | G83: Year 4 | H83: Year 5
C84: Ewes | D84: =IF(D79>0,D79/2204.6226,0) -> 0 | E84: 0 | F84: 0 | G84: 0 | H84: 0
C85: Rams | D85: 0 | E85: 0 | F85: 0 | G85: 0 | H85: 0
C86: Lambs | D86: 0 | E86: 0 | F86: 0 | G86: 0 | H86: 0
C87: TOTAL | D87: =D84+D85+D86 -> 0 | E87: =E84+E85+E86 -> 0 | F87: =F84+F85+F86 -> 0 | G87: =G84+G85+G86 -> 0 | H87: =H84+H85+H86 -> 0

Sheet Monthly
C8: =Input!$C$10 -> Name: 400 Head Ewe Operation | F8: YEAR #1 - MONTHLY CASH FLOW PROJECTIONS | M8: YEAR #1 - MONTHLY CASH FLOW PROJECTIONS
C9: REVENUE | F9: January | G9: February | H9: March | I9: April | J9: May | K9: June | L9: July | M9: August | N9: September | O9: October | P9: November | Q9: December | R9: Revenues
C10: Feeder Lamb Sales (under 90lbs) | N10: =IF(Input!E50>0,Input!E50*Input!E53,0) -> 0 | R10: =SUM(F10:Q10) -> 0
C11: Market Lamb Sales (90lbs+) | P11: =IF(Input!$E$55>0,Input!$E$55*Input!$E$58,0) -> 161874 | R11: 161874
C12: Cull Ewe and Ram Sales | M12: =(Input!E$69*Input!E$72)+(Input!E$73*Input!E$76) -> 12515.625 | R12: 12515.625
C13: Breeding Stock Sales | P13: =(Input!E61*Input!E62)+(Input!E63*Input!E64)+(Input!E65*Input!E66) -> 0 | R13: 0
C14: Wool Sales | I14: =Input!E83 -> 1644 | R14: 1644
C15: Other Sales | M15: =Input!E93+Input!E102 -> 0 | R15: 0
D16: TOTAL REVENUE | F16: =SUM(F10:F15) -> 0 | G16: =SUM(G10:G15) -> 0 | H16: =SUM(H10:H15) -> 0 | I16: 1644 | J16: 0 | K16: 0 | L16: 0 | M16: 12515.625 | N16: =SUM(N10:N15) -> 0 | O16: 0 | P16: 161874 | Q16: 0 | R16: 176033.625
C17: EXPENSES - VARIABLE COSTS | R17: Expenses
C18: Feed & Hay Costs | F18: =F123-F124 -> 4651.627605 | G18: 4201.470095 | H18: 6318.127954 | I18: 8634.804411 | J18: 9459.215194 | K18: 4212.970943 | L18: 7312.198928 | M18: 7312.198928 | N18: 7076.321543 | O18: 7996.915568 | P18: 4501.575101 | Q18: 4651.627605 | R18: =SUM(F18:Q18) -> 76329.05387
C19: Pasture & Grazing Costs | F19: =F131 -> 0 | G19: =G131 -> 0 | H19: =H131 -> 0 | I19: 0 | J19: 24.75 | K19: 1849.5 | L19: 1911.15 | M19: 1911.15 | N19: 1849.5 | O19: 231.15 | P19: 0 | Q19: 0 | R19: =SUM(F19:Q19) -> 7777.2
C20: Breeding Stock Purchases & Supplies | F20: =F124 -> 0 | G20: =G124 -> 0 | H20: 0 | I20: 139.6158975 | J20: 227.7943591 | K20: 440.892308 | L20: 812.4665475 | M20: =IF(Input!E$25>0,(Input!E$25*Input!E$26)+(Input!E$33*Input!$E34)+Input!E$317,(Input!E$33*Input!E$34)+Input!E$317)+M124 -> 2012.466548 | N20: 786.2579492 | O20: 209.6687865 | P20: 0 | Q20: 0 | R20: =SUM(F20:Q20) -> 4629.162395
C21: Veterinary Services and Medication | H21: =Input!$E$310/3 -> 1919.633333 | K21: =Input!$E$310/3 -> 1919.633333 | N21: =Input!$E$310/3 -> 1919.633333 | R21: 5758.9
C22: Guardian and Herd Dog Costs | F22: =(Input!$E$320+Input!$E$321+Input!$E$324+Input!$E$325)/12 -> 225 | G22: =(Input!$E$320+Input!$E$321+Input!$E$324+Input!$E$325)/12 -> 225 | H22: =(Input!$E$320+Input!$E$321+Input!$E$324+Input!$E$325)/12 -> 225 | I22: =(Input!$E$320+Input!$E$321+Input!$E$324+Input!$E$325)/12 -> 225 | J22: =(Input!$E$320+Input!$E$321+Input!$E$324+Input!$E$325)/12 -> 225 | K22: =(Input!$E$320+Input!$E$321+Input!$E$324+Input!$E$325)/12 -> 225 | L22: =(Input!$E$320+Input!$E$321+Input!$E$324+Input!$E$325)/12 -> 225 | M22: =(Input!$E$320+Input!$E$321+Input!$E$324+Input!$E$325)/12 -> 225 | N22: =(Input!$E$320+Input!$E$321+Input!$E$324+Input!$E$325)/12 -> 225 | O22: =(Input!$E$320+Input!$E$321+Input!$E$324+Input!$E$325)/12 -> 225 | P22: =(Input!$E$320+Input!$E$321+Input!$E$324+Input!$E$325)/12 -> 225 | Q22: =(Input!$E$320+Input!$E$321+Input!$E$324+Input!$E$325)/12 -> 225 | R22: =SUM(F22:Q22) -> 2700
C23: Labour Costs | F23: =(Input!$E$333)/24*2 -> 1810 | G23: =(Input!$E$333)/24*2 -> 1810 | H23: =(Input!$E$333)/24*6 -> 5430 | I23: =(Input!$E$333)/24*2 -> 1810 | J23: =(Input!$E$333)/24 -> 905 | K23: =(Input!$E$333)/24 -> 905 | L23: =(Input!$E$333)/24 -> 905 | M23: =(Input!$E$333)/24 -> 905 | N23: =(Input!$E$333)/24*2 -> 1810 | O23: =(Input!$E$333)/24*2 -> 1810 | P23: =(Input!$E$333)/24*2 -> 1810 | Q23: =(Input!$E$333)/24*2 -> 1810 | R23: 21720
C24: Custom Work/Manure Removal | L24: =Input!$E$339 -> 2400 | R24: 2400
C25: Fuel and Utility Costs | F25: =(Input!$E$342+Input!$E$344)/20 -> 175 | G25: =(Input!$E$342+Input!$E$344)/20 -> 175 | H25: =(Input!$E$342+Input!$E$344)/20 -> 175 | I25: =(Input!$E$342+Input!$E$344)/20 -> 175 | J25: =(Input!$E$342+Input!$E$344)/20 -> 175 | K25: =(Input!$E$342+Input!$E$344)/20*5 -> 875 | L25: =(Input!$E$342+Input!$E$344)/20*5 -> 875 | M25: =(Input!$E$342+Input!$E$344)/20 -> 175 | N25: =(Input!$E$342+Input!$E$344)/20 -> 175 | O25: =(Input!$E$342+Input!$E$344)/20 -> 175 | P25: =(Input!$E$342+Input!$E$344)/20 -> 175 | Q25: =(Input!$E$342+Input!$E$344)/20 -> 175 | R25: 3500
C26: Building and Equipment Repairs | J26: =(Input!$E$348+Input!$E$350)/4 -> 875 | K26: =(Input!$E$348+Input!$E$350)/4 -> 875 | L26: =(Input!$E$348+Input!$E$350)/4 -> 875 | M26: =(Input!$E$348+Input!$E$350)/4 -> 875 | R26: 3500
C27: Marketing, Check-Off, & Transport. | M27: =(Input!$E$356+Input!$E$361+Input!$E$366)*(Input!$E$69+Input!$E$73)+(Input!$E$61+Input!$E$63+Input!$E$65)*(Input!$E$360+Input!$E$365)+Input!$E50*(Input!E$355+Input!$E361+Input!$E365) -> 1257.66 | P27: =Input!$E$55*(Input!$E$355+Input!$E$360+Input!$E$365) -> 12484.8 | R27: 13742.46
C28: Shearing and Wool Production | I28: =Input!E86 -> 2466 | R28: =SUM(F28:Q28) -> 2466
C29: Slaughtering and Meat Production | P29: =Input!E95+Input!E104 -> 0 | R29: =SUM(F29:Q29) -> 0
C30: Accounting, Property Taxes, Licenses | I30: =Input!$E$371 -> 1400 | L30: =Input!$E$373 -> 1500 | O30: =Input!$E$372 -> 2200 | R30: 5100
C31: Insurance Costs | F31: =(Input!$E$376+Input!$E$379)/12 -> 118.65 | G31: =(Input!$E$376+Input!$E$379)/12 -> 118.65 | H31: =(Input!$E$376+Input!$E$379)/12 -> 118.65 | I31: =(Input!$E$376+Input!$E$379)/12 -> 118.65 | J31: =(Input!$E$376+Input!$E$379)/12 -> 118.65 | K31: =(Input!$E$376+Input!$E$379)/12 -> 118.65 | L31: =(Input!$E$376+Input!$E$379)/12 -> 118.65 | M31: =(Input!$E$376+Input!$E$379)/12 -> 118.65 | N31: =(Input!$E$376+Input!$E$379)/12 -> 118.65 | O31: =(Input!$E$376+Input!$E$379)/12 -> 118.65 | P31: =(Input!$E$376+Input!$E$379)/12 -> 118.65 | Q31: =(Input!$E$376+Input!$E$379)/12 -> 118.65 | R31: =SUM(F31:Q31) -> 1423.8
C32: Operating Interest Costs | F32: =IF((F52)<0,((F52)*$E$46*(-1))/12,0) -> 12.22407379 | G32: =IF((G52)<0,((G52)*$E$46*(-1))/12,0) -> 35.96270575 | H32: =IF((H52)<0,((H52)*$E$46*(-1))/12,0) -> 71.7906893 | I32: =IF((I52)<0,((I52)*$E$46*(-1))/12,0) -> 119.0630165 | J32: 162.8662485 | K32: 203.6431185 | L32: 252.7626712 | M32: 286.8040456 | N32: 316.0020534 | O32: 363.1138611 | P32: 149.5171453 | Q32: 0 | R32: 1973.749629
C33: TOTAL VARIABLE COSTS | F33: =SUM(F18:F32) -> 6992.501679 | G33: 6566.0828 | H33: 14258.20198 | I33: 15088.13332 | J33: 12173.2758 | K33: 11625.2897 | L33: 17187.22815 | M33: 15078.92952 | N33: 14276.36488 | O33: 13329.49822 | P33: 19464.54225 | Q33: 6980.277605 | R33: 153020.3259
C34: Depreciation | F34: =Depreciation!$E$9/12 -> 729.1666667 | G34: =Depreciation!$E$9/12 -> 729.1666667 | H34: =Depreciation!$E$9/12 -> 729.1666667 | I34: =Depreciation!$E$9/12 -> 729.1666667 | J34: =Depreciation!$E$9/12 -> 729.1666667 | K34: =Depreciation!$E$9/12 -> 729.1666667 | L34: =Depreciation!$E$9/12 -> 729.1666667 | M34: =Depreciation!$E$9/12 -> 729.1666667 | N34: =Depreciation!$E$9/12 -> 729.1666667 | O34: =Depreciation!$E$9/12 -> 729.1666667 | P34: =Depreciation!$E$9/12 -> 729.1666667 | Q34: =Depreciation!$E$9/12 -> 729.1666667 | R34: =SUM(F34:Q34) -> 8750
C35: Long Term Interest | F35: =(Financing!$D$12+Financing!$J$12)/12 -> 354.1666667 | G35: =(Financing!$D$12+Financing!$J$12)/12 -> 354.1666667 | H35: =(Financing!$D$12+Financing!$J$12)/12 -> 354.1666667 | I35: =(Financing!$D$12+Financing!$J$12)/12 -> 354.1666667 | J35: =(Financing!$D$12+Financing!$J$12)/12 -> 354.1666667 | K35: =(Financing!$D$12+Financing!$J$12)/12 -> 354.1666667 | L35: =(Financing!$D$12+Financing!$J$12)/12 -> 354.1666667 | M35: =(Financing!$D$12+Financing!$J$12)/12 -> 354.1666667 | N35: =(Financing!$D$12+Financing!$J$12)/12 -> 354.1666667 | O35: =(Financing!$D$12+Financing!$J$12)/12 -> 354.1666667 | P35: =(Financing!$D$12+Financing!$J$12)/12 -> 354.1666667 | Q35: =(Financing!$D$12+Financing!$J$12)/12 -> 354.1666667 | R35: 4250
C36: TOTAL FIXED COSTS | F36: =F34+F35 -> 1083.333333 | G36: =G34+G35 -> 1083.333333 | H36: =H34+H35 -> 1083.333333 | I36: 1083.333333 | J36: 1083.333333 | K36: 1083.333333 | L36: 1083.333333 | M36: 1083.333333 | N36: 1083.333333 | O36: 1083.333333 | P36: 1083.333333 | Q36: =Q34+Q35 -> 1083.333333 | R36: 13000
D37: TOTAL COSTS | F37: =F33+F36 -> 8075.835012 | G37: 7649.416134 | H37: 15341.53531 | I37: 16171.46666 | J37: 13256.60913 | K37: 12708.62304 | L37: 18270.56148 | M37: 16162.26285 | N37: 15359.69821 | O37: 14412.83155 | P37: 20547.87558 | Q37: 8063.610938 | R37: 166020.3259
D38: NET INCOME, Before Taxes | F38: =F16-F37 -> -8075.835012 | G38: -7649.416134 | H38: -15341.53531 | I38: -14527.46666 | J38: -13256.60913 | K38: -12708.62304 | L38: -18270.56148 | M38: -3646.637854 | N38: -15359.69821 | O38: -14412.83155 | P38: 141326.1244 | Q38: -8063.610938 | R38: 10013.2991
D39: NET CASH FLOW | F39: =F9 -> January | G39: February | H39: March | I39: April | J39: May | K39: June | L39: July | M39: August | N39: September | O39: October | P39: November | Q39: December | R39: Total
C40: NET INCOME, Before Taxes | F40: =F38 -> -8075.835012 | G40: -7649.416134 | H40: -15341.53531 | I40: -14527.46666 | J40: -13256.60913 | K40: -12708.62304 | L40: -18270.56148 | M40: -3646.637854 | N40: -15359.69821 | O40: -14412.83155 | P40: 141326.1244 | Q40: -8063.610938 | R40: =SUM(F40:Q40) -> 10013.2991
C41: Plus Depreciation/Amortization | F41: =F34 -> 729.1666667 | G41: =G34 -> 729.1666667 | H41: 729.1666667 | I41: 729.1666667 | J41: 729.1666667 | K41: 729.1666667 | L41: 729.1666667 | M41: 729.1666667 | N41: 729.1666667 | O41: 729.1666667 | P41: 729.1666667 | Q41: 729.1666667 | R41: =SUM(F41:Q41) -> 8750
C42: Sheep Loan Advance | F42: =Input!$E$423 -> 0 | G42: 0 | H42: 0 | I42: 0 | J42: 0 | K42: 0 | L42: 0 | M42: 0 | N42: 0 | O42: 0 | P42: 0 | Q42: 0 | R42: =SUM(F42:Q42) -> 0
C43: Less Principal Payments | F43: 0 | G43: 0 | H43: 0 | I43: 0 | J43: 0 | K43: 0 | L43: 0 | M43: 0 | N43: 0 | O43: 0 | P43: 0 | Q43: =Financing!E40 -> 5781.517391 | R43: =SUM(F43:Q43) -> 5781.517391
C44: Net Cash Flow, Before Taxes | F44: =F40+F41+F42-F43 -> -7346.668345 | G44: =G40+G41+G42-G43 -> -6920.249467 | H44: =H40+H41+H42-H43 -> -14612.36864 | I44: -13798.29999 | J44: -12527.44247 | K44: -11979.45637 | L44: -17541.39481 | M44: -2917.471187 | N44: -14630.53155 | O44: =O40+O41+O42-O43 -> -13683.66488 | P44: =P40+P41+P42-P43 -> 142055.2911 | Q44: =Q40+Q41+Q42-Q43 -> -13115.96166 | R44: =SUM(F44:Q44) -> 12981.78171
C45: Operating Account Balance | F45: =F47+F44 -> -7346.668345 | G45: =F45+G44 -> -14266.91781 | H45: -28879.28646 | I45: -42677.58645 | J45: -55205.02891 | K45: -67184.48528 | L45: -84725.8801 | M45: -87643.35128 | N45: -102273.8828 | O45: -115957.5477 | P45: 26097.74337 | Q45: 12981.78171 | R45: =Q45 -> 12981.78171
C46: Operating Interest Rate | E46: =Input!$E$406 -> 0.04
C47: Starting Account Balance | F47: =Input!E384-Input!E398 -> 0
C49: Cash revenues | F49: =F16 -> 0 | G49: 0 | H49: 0 | I49: 1644 | J49: 0 | K49: 0 | L49: 0 | M49: 12515.625 | N49: 0 | O49: 0 | P49: 161874 | Q49: 0
C50: Cash expenditures for interest calculations | F50: =SUM(F18:F31)+F35-F42+F43 -> 7334.444271 | G50: =SUM(G18:G31)+G35+G42-G43 -> 6884.286761 | H50: 14540.57795 | I50: 15323.23697 | J50: 12364.57622 | K50: 11775.81325 | L50: 17288.63214 | M50: 15146.29214 | N50: 14314.52949 | O50: 13320.55102 | P50: 19669.19177 | Q50: 1552.92688
C51: Net cash flows | F51: =F49-F50 -> -7334.444271 | G51: -6884.286761 | H51: -14540.57795 | I51: -13679.23697 | J51: -12364.57622 | K51: -11775.81325 | L51: -17288.63214 | M51: -2630.667142 | N51: -14314.52949 | O51: -13320.55102 | P51: 142204.8082 | Q51: -1552.92688
C52: Monthly Average Account Balance | F52: =F47+(F51)/2 -> -3667.222136 | G52: =F45+(G51)/2 -> -10788.81173 | H52: =G45+(H51)/2 -> -21537.20679 | I52: -35718.90494 | J52: =I45+(J51)/2 -> -48859.87456 | K52: =J45+(K51)/2 -> -61092.93554 | L52: =K45+(L51)/2 -> -75828.80136 | M52: =L45+(M51)/2 -> -86041.21367 | N52: =M45+(N51)/2 -> -94800.61603 | O52: =N45+(O51)/2 -> -108934.1583 | P52: =O45+(P51)/2 -> -44855.1436 | Q52: =P45+(Q51)/2 -> 25321.27993
C53: Average Account Balance | F53: =AVERAGE(F45:Q45) -> -47256.75917
C55: =C8 -> Name: 400 Head Ewe Operation | G55: ACTUAL MONTHLY CASH FLOW | N55: ACTUAL MONTHLY CASH FLOW
C56: REVENUE | F56: =F9 -> January | G56: February | H56: March | I56: April | J56: May | K56: June | L56: July | M56: August | N56: September | O56: October | P56: November | Q56: December | R56: =R9 -> Revenues
C57: Feeder Lamb Sales (under 90lbs) | R57: =SUM(F57:Q57) -> 0
C58: Market Lamb Sales (90lbs+) | R58: 0
C59: Cull Ewe and Ram Sales | R59: 0
C60: Breeding Stock Sales | R60: 0
C61: Wool Sales | R61: 0
C62: Other Sales | R62: 0
D63: =D16 -> TOTAL REVENUE | F63: =SUM(F57:F62) -> 0 | G63: 0 | H63: 0 | I63: 0 | J63: 0 | K63: 0 | L63: 0 | M63: 0 | N63: 0 | O63: 0 | P63: 0 | Q63: 0 | R63: 0
C64: =C17 -> EXPENSES - VARIABLE COSTS
C65: =C18 -> Feed & Hay Costs | R65: =SUM(F65:Q65) -> 0
C66: =C20 -> Breeding Stock Purchases & Supplies | R66: 0
C67: Veterinary Services and Medication | R67: 0
C68: Guardian and Herd Dog Costs | R68: 0
C69: Labour Costs | R69: 0
C70: Custom Work/Manure Removal | R70: 0
C71: Fuel and Utility Costs | R71: 0
C72: Building and Equipment Repairs | R72: 0
C73: Marketing, Check-Off, & Transport. | R73: 0
C74: Shearing and Wool Production | R74: 0
C75: Slaughtering and Meat Production | R75: 0
C76: Accounting, Property Taxes, Licenses | R76: 0
C77: Insurance Costs | R77: =SUM(F77:Q77) -> 0
C78: Operating Interest Costs | R78: 0
D79: =C33 -> TOTAL VARIABLE COSTS | F79: =SUM(F65:F78) -> 0 | G79: =SUM(G65:G78) -> 0 | H79: =SUM(H65:H78) -> 0 | I79: 0 | J79: 0 | K79: 0 | L79: 0 | M79: 0 | N79: 0 | O79: 0 | P79: 0 | Q79: 0 | R79: =SUM(F79:Q79) -> 0
C80: =C34 -> Depreciation | R80: 0
C81: =C35 -> Long Term Interest | R81: 0
D82: =+C36 -> TOTAL FIXED COSTS | F82: =F80+F81 -> 0 | G82: =G80+G81 -> 0 | H82: =H80+H81 -> 0 | I82: 0 | J82: 0 | K82: 0 | L82: 0 | M82: 0 | N82: 0 | O82: 0 | P82: 0 | Q82: 0 | R82: =SUM(F82:Q82) -> 0
D83: =D37 -> TOTAL COSTS | F83: =F79+F82 -> 0 | G83: 0 | H83: 0 | I83: 0 | J83: 0 | K83: 0 | L83: 0 | M83: 0 | N83: 0 | O83: 0 | P83: 0 | Q83: 0 | R83: 0
D84: =D38 -> NET INCOME, Before Taxes | F84: =F63-F83 -> 0 | G84: 0 | H84: 0 | I84: 0 | J84: 0 | K84: 0 | L84: 0 | M84: 0 | N84: 0 | O84: 0 | P84: 0 | Q84: 0 | R84: 0
D85: =D39 -> NET CASH FLOW | F85: =F56 -> January | G85: February | H85: March | I85: April | J85: May | K85: June | L85: July | M85: August | N85: September | O85: October | P85: November | Q85: December | R85: Revenues
C86: NET INCOME, Before Taxes | F86: =F84 -> 0 | G86: =G84 -> 0 | H86: 0 | I86: 0 | J86: 0 | K86: 0 | L86: 0 | M86: 0 | N86: 0 | O86: 0 | P86: 0 | Q86: 0 | R86: =SUM(F86:Q86) -> 0
C87: =C41 -> Plus Depreciation/Amortization | F87: =F80 -> 0 | G87: =G81 -> 0 | H87: =H81 -> 0 | I87: 0 | J87: 0 | K87: 0 | L87: 0 | M87: 0 | N87: 0 | O87: 0 | P87: 0 | Q87: 0 | R87: 0
C88: =C42 -> Sheep Loan Advance | F88: 0 | G88: 0 | H88: 0 | I88: 0 | J88: 0 | K88: 0 | L88: 0 | M88: 0 | N88: 0 | O88: 0 | P88: 0 | Q88: 0 | R88: 0
C89: =C43 -> Less Principal Payments | F89: 0 | G89: 0 | H89: 0 | I89: 0 | J89: 0 | K89: 0 | L89: 0 | M89: 0 | N89: 0 | O89: 0 | P89: 0 | Q89: 0 | R89: 0
C90: =C44 -> Net Cash Flow, Before Taxes | F90: =F84+F87-F88-F89 -> 0 | G90: 0 | H90: 0 | I90: 0 | J90: 0 | K90: 0 | L90: 0 | M90: 0 | N90: 0 | O90: 0 | P90: 0 | Q90: 0 | R90: 0
C91: =C45 -> Operating Account Balance | F91: =F92+F90 -> 0 | G91: =F91+G90 -> 0 | H91: 0 | I91: 0 | J91: 0 | K91: 0 | L91: 0 | M91: 0 | N91: 0 | O91: 0 | P91: 0 | Q91: 0 | R91: 0
C92: Starting Balance | F92: 0
E101: Actual Days | F101: 31 | G101: 28 | H101: 31 | I101: 30 | J101: 31 | K101: 30 | L101: 31 | M101: 31 | N101: 30 | O101: 31 | P101: 30 | Q101: 31 | R101: =SUM(F101:Q101) -> 365
D102: FEEDING DAYS | F102: =F9 -> January | G102: February | H102: March | I102: April | J102: May | K102: June | L102: July | M102: August | N102: September | O102: October | P102: November | Q102: December
D103: Lambs - Creep | I103: =IF(Input!$E$231>61,30,Input!$E$231-31) -> 19 | J103: =IF(Input!$E$231-(I101+J101)>0,J101,Input!$E$231-I103) -> 31 | K103: =IF(Input!$E$231-(I103+J103)>0,Input!$E$231-I103-J103,0) -> 0
D104: Lambs - Weaning | K104: =IF(Input!$E$251>30,30,Input!$E$251) -> 30 | L104: =IF(Input!$E$251>30,Input!$E$251-30,0) -> 0
B105: Feeding Days | D105: Lambs - Feeder | L105: =IF(Input!$E$271>31,31,Input!$E$271) -> 31 | M105: =IF(Input!$E$271>62,31,Input!$E$271-31) -> 31 | N105: =IF(Input!$E$271>92,30,Input!$E$271-62) -> 30 | O105: =IF(Input!$E$271>92,Input!$E$271-92,0) -> 8
B106: In Each Ration | D106: Lambs - Pasture | L106: =Input!$E$294/4 -> 0 | M106: =Input!$E$294/4 -> 0 | N106: =Input!$E$294/4 -> 0 | O106: =Input!$E$294/4 -> 0
B107: Can Change Manually | D107: Ewes - Flushing/Pre-lamb | H107: =IF(Input!$E$134>31,Input!$E$134/2,Input!$E$134) -> 30 | O107: =IF(Input!$E$134>31,Input!$E$134/2,Input!$E$134) -> 30
D108: Ewes - Lactation | G108: 0 | I108: =IF(Input!$E$152>31,Input!$E$152/2,Input!$E$152) -> 30 | J108: =IF(Input!$E$152>31,Input!$E$152/2,Input!$E$152) -> 30
D109: Ewes - Maintenance | F109: =IF(Input!$E$170>95,31,Input!$E$170-61) -> 31 | G109: =IF(Input!$E$170>121,28,Input!$E$170-92) -> 28 | P109: =IF(Input!$E$170>90,30,Input!$E$170-60) -> 30 | Q109: =IF(Input!$E$170>90,31,Input!$E$170-30) -> 31
D110: Ewes - Pasture | K110: =IF(Input!$E$191>30,30,Input!$E$191) -> 30 | L110: =IF(Input!$E$191>60,31,Input!$E$191-30) -> 31 | M110: =IF(Input!$E$191>90,31,Input!$E$191-60) -> 31 | N110: =IF(Input!$E$191>120,30,Input!$E$191-90) -> 30 | O110: =IF(Input!$E$191>155,31,Input!$E$191-122) -> 3
D111: Rams | F111: =IF(Input!$E$202>90,31,Input!$E$202-60) -> 31 | G111: =IF(Input!$E$202>120,28,Input!$E$202-90) -> 28 | H111: =IF(Input!$E$202>150,31,Input!$E$202-120) -> 31 | I111: =IF(Input!$E$202>180,30,Input!$E$202-150) -> 30 | J111: =IF(Input!$E$202>210,30,Input!$E$202-180) -> 20 | P111: =IF(Input!$E$202>30,30,Input!$E$202) -> 30 | Q111: =IF(Input!$E$202>60,31,Input!$E$202-30) -> 31
D112: Rams - Pasture | F112: 0 | G112: 0 | H112: 0 | I112: 0 | J112: =IF(Input!$E$220>180,30,Input!$E$220-150) -> 15 | K112: =IF(Input!$E$220>30,30,Input!$E$220) -> 30 | L112: =IF(Input!$E$220>60,31,Input!$E$220-30) -> 31 | M112: =IF(Input!$E$220>90,31,Input!$E$220-60) -> 31 | N112: =IF(Input!$E$220>120,30,Input!$E$220-90) -> 30 | O112: =IF(Input!$E$220>150,31,Input!$E$220-120) -> 31 | P112: 0 | Q112: 0
D114: FEED COST | F114: =F9 -> January | G114: February | H114: March | I114: April | J114: May | K114: June | L114: July | M114: August | N114: September | O114: October | P114: November | Q114: December | R114: Total
D115: =D103 -> Lambs - Creep | F115: =IF(F103>0,F103*(Input!$E$232*Input!$E$247),0) -> 0 | G115: =IF(G103>0,G103*(Input!$E$232*Input!$E$247),0) -> 0 | H115: =IF(H103>0,H103*(Input!$E$232*Input!$E$247),0) -> 0 | I115: =IF(I103>0,I103*(Input!$E$232*Input!$E$247),0) -> 1551.28775 | J115: =IF(J103>0,J103*(Input!$E$232*Input!$E$247),0) -> 2531.048435 | K115: =IF(K103>0,K103*(Input!$E$232*Input!$E$247),0) -> 0 | L115: =IF(L103>0,L103*(Input!$E$232*Input!$E$247),0) -> 0 | M115: =IF(M103>0,M103*(Input!$E$232*Input!$E$247),0) -> 0 | N115: =IF(N103>0,N103*(Input!$E$232*Input!$E$247),0) -> 0 | O115: =IF(O103>0,O103*(Input!$E$232*Input!$E$247),0) -> 0 | P115: =IF(P103>0,P103*(Input!$E$232*Input!$E$247),0) -> 0 | Q115: =IF(Q103>0,Q103*(Input!$E$232*Input!$E$247),0) -> 0 | R115: =SUM(F115:Q115) -> 4082.336185
D116: =D104 -> Lambs - Weaning | F116: =IF(F104>0,F104*(Input!$E$252*Input!$E$267),0) -> 0 | G116: =IF(G104>0,G104*(Input!$E$252*Input!$E$267),0) -> 0 | H116: =IF(H104>0,H104*(Input!$E$252*Input!$E$267),0) -> 0 | I116: =IF(I104>0,I104*(Input!$E$252*Input!$E$267),0) -> 0 | J116: =IF(J104>0,J104*(Input!$E$252*Input!$E$267),0) -> 0 | K116: =IF(K104>0,K104*(Input!$E$252*Input!$E$267),0) -> 4653.863251 | L116: =IF(L104>0,L104*(Input!$E$252*Input!$E$267),0) -> 0 | M116: =IF(M104>0,M104*(Input!$E$252*Input!$E$267),0) -> 0 | N116: =IF(N104>0,N104*(Input!$E$252*Input!$E$267),0) -> 0 | O116: =IF(O104>0,O104*(Input!$E$252*Input!$E$267),0) -> 0 | P116: =IF(P104>0,P104*(Input!$E$252*Input!$E$267),0) -> 0 | Q116: =IF(Q104>0,Q104*(Input!$E$252*Input!$E$267),0) -> 0 | R116: 4653.863251
D117: =D105 -> Lambs - Feeder | F117: =IF(F105>0,F105*(Input!$E$272*Input!$E$287),0) -> 0 | G117: =IF(G105>0,G105*(Input!$E$272*Input!$E$287),0) -> 0 | H117: =IF(H105>0,H105*(Input!$E$272*Input!$E$287),0) -> 0 | I117: =IF(I105>0,I105*(Input!$E$272*Input!$E$287),0) -> 0 | J117: =IF(J105>0,J105*(Input!$E$272*Input!$E$287),0) -> 0 | K117: =IF(K105>0,K105*(Input!$E$272*Input!$E$287),0) -> 0 | L117: =IF(L105>0,L105*(Input!$E$272*Input!$E$287),0) -> 8124.665475 | M117: =IF(M105>0,M105*(Input!$E$272*Input!$E$287),0) -> 8124.665475 | N117: =IF(N105>0,N105*(Input!$E$272*Input!$E$287),0) -> 7862.579492 | O117: =IF(O105>0,O105*(Input!$E$272*Input!$E$287),0) -> 2096.687865 | P117: =IF(P105>0,P105*(Input!$E$272*Input!$E$287),0) -> 0 | Q117: =IF(Q105>0,Q105*(Input!$E$272*Input!$E$287),0) -> 0 | R117: 26208.59831
D118: =D107 -> Ewes - Flushing/Pre-lamb | F118: =IF(F107>0,F107*(Input!$E$15)*Input!$E$148,0) -> 0 | G118: =IF(G107>0,G107*(Input!$E$15)*Input!$E$148,0) -> 0 | H118: =IF(H107>0,H107*(Input!$E$15)*Input!$E$148,0) -> 6109.89649 | I118: =IF(I107>0,I107*(Input!$E$15)*Input!$E$148,0) -> 0 | J118: =IF(J107>0,J107*(Input!$E$15)*Input!$E$148,0) -> 0 | K118: =IF(K107>0,K107*(Input!$E$15)*Input!$E$148,0) -> 0 | L118: =IF(L107>0,L107*(Input!$E$15)*Input!$E$148,0) -> 0 | M118: =IF(M107>0,M107*(Input!$E$27)*Input!$E$148,0) -> 0 | N118: =IF(N107>0,N107*(Input!$E$27)*Input!$E$148,0) -> 0 | O118: =IF(O107>0,O107*(Input!$E$27)*Input!$E$148,0) -> 6109.89649 | P118: =IF(P107>0,P107*(Input!$E$27)*Input!$E$148,0) -> 0 | Q118: =IF(Q107>0,Q107*(Input!$E$27)*Input!$E$148,0) -> 0 | R118: 12219.79298 | S118: Market Lamb | T118: =((R115+R116+R117+R127)+(0.3*R122))-R124 -> 31515.63535 | U118: =T118/Sensitivity!$W$86 -> 51.49613619
D119: =D108 -> Ewes - Lactation | F119: =IF(F108>0,F108*(Input!$E$15)*Input!$E$166,0) -> 0 | G119: =IF(G108>0,G108*(Input!$E$15)*Input!$E$166,0) -> 0 | H119: =IF(H108>0,H108*(Input!$E$15)*Input!$E$166,0) -> 0 | I119: =IF(I108>0,I108*(Input!$E$15)*Input!$E$166,0) -> 7021.618238 | J119: =IF(J108>0,J108*(Input!$E$15)*Input!$E$166,0) -> 7021.618238 | K119: =IF(K108>0,K108*(Input!$E$15)*Input!$E$166,0) -> 0 | L119: =IF(L108>0,L108*(Input!$E$15)*Input!$E$166,0) -> 0 | M119: =IF(M108>0,M108*(Input!$E$27)*Input!$E$166,0) -> 0 | N119: =IF(N108>0,N108*(Input!$E$27)*Input!$E$166,0) -> 0 | O119: =IF(O108>0,O108*(Input!$E$27)*Input!$E$166,0) -> 0 | P119: =IF(P108>0,P108*(Input!$E$27)*Input!$E$166,0) -> 0 | Q119: =IF(Q108>0,Q108*(Input!$E$27)*Input!$E$166,0) -> 0 | R119: 14043.23648 | S119: Breed Sheep | T119: =(R118+R119+R120+R121)+(0.5*R122) -> 44813.41853
D120: =D109 -> Ewes - Maintenance | F120: =IF(F109>0,F109*(Input!$E$15)*Input!$E$184,0) -> 4443.396141 | G120: =IF(G109>0,G109*(Input!$E$15)*Input!$E$184,0) -> 4013.390063 | H120: =IF(H109>0,H109*(Input!$E$15)*Input!$E$184,0) -> 0 | I120: =IF(I109>0,I109*(Input!$E$15)*Input!$E$184,0) -> 0 | J120: =IF(J109>0,J109*(Input!$E$15)*Input!$E$184,0) -> 0 | K120: =IF(K109>0,K109*(Input!$E$15)*Input!$E$184,0) -> 0 | L120: =IF(L109>0,L109*(Input!$E$15)*Input!$E$184,0) -> 0 | M120: =IF(M109>0,M109*(Input!$E$27)*Input!$E$184,0) -> 0 | N120: =IF(N109>0,N109*(Input!$E$27)*Input!$E$184,0) -> 0 | O120: =IF(O109>0,O109*(Input!$E$27)*Input!$E$184,0) -> 0 | P120: =IF(P109>0,P109*(Input!$E$27)*Input!$E$184,0) -> 4300.060781 | Q120: =IF(Q109>0,Q109*(Input!$E$27)*Input!$E$184,0) -> 4443.396141 | R120: 17200.24313
D121: =D111 -> Rams | F121: =IF(F111>0,F111*(Input!$E$16)*Input!$E$216,0) -> 208.2314639 | G121: =IF(G111>0,G111*(Input!$E$16)*Input!$E$216,0) -> 188.0800319 | H121: =IF(H111>0,H111*(Input!$E$16)*Input!$E$216,0) -> 208.2314639 | I121: =IF(I111>0,I111*(Input!$E$16)*Input!$E$216,0) -> 201.5143199 | J121: =IF(J111>0,J111*(Input!$E$16)*Input!$E$216,0) -> 134.34288 | K121: =IF(K111>0,K111*(Input!$E$16)*Input!$E$216,0) -> 0 | L121: =IF(L111>0,L111*(Input!$E$16)*Input!$E$216,0) -> 0 | M121: =IF(M111>0,M111*(Input!$E$16)*Input!$E$216,0) -> 0 | N121: =IF(N111>0,N111*(Input!$E$16)*Input!$E$216,0) -> 0 | O121: =IF(O111>0,O111*(Input!$E$16)*Input!$E$216,0) -> 0 | P121: =IF(P111>0,P111*(Input!$E$16)*Input!$E$216,0) -> 201.5143199 | Q121: =IF(Q111>0,Q111*(Input!$E$16)*Input!$E$216,0) -> 208.2314639 | R121: 1350.145944
D122: Grain & Hay Production Costs | F122: 0 | G122: 0 | H122: 0 | I122: 0 | J122: =(Input!$E123+Input!$E124)/4 -> 0 | K122: =(Input!$E123+Input!$E124)/4 -> 0 | L122: =(Input!$E123+Input!$E124)/4 -> 0 | M122: =(Input!$E123+Input!$E124)/4 -> 0 | N122: 0 | O122: 0 | P122: 0 | Q122: 0 | R122: 0
E123: TOTAL FEED COST | F123: =SUM(F115:F122) -> 4651.627605 | G123: 4201.470095 | H123: 6318.127954 | I123: 8774.420308 | J123: 9687.009553 | K123: 4653.863251 | L123: 8124.665475 | M123: 8124.665475 | N123: 7862.579492 | O123: 8206.584355 | P123: 4501.575101 | Q123: 4651.627605 | R123: 79758.21627
D124: Lambs - Breeding Feed | F124: =(Input!$E$24/Input!$E$232)*F115+(Input!$E$24/Input!$E$252)*F116+(Input!$E$24/Input!$E$272)*F117 -> 0 | G124: =(Input!$E$24/Input!$E$232)*G115+(Input!$E$24/Input!$E$252)*G116+(Input!$E$24/Input!$E$272)*G117 -> 0 | H124: =(Input!$E$24/Input!$E$232)*H115+(Input!$E$24/Input!$E$252)*H116+(Input!$E$24/Input!$E$272)*H117 -> 0 | I124: =(Input!$E$24/Input!$E$232)*I115+(Input!$E$24/Input!$E$252)*I116+(Input!$E$24/Input!$E$272)*I117 -> 139.6158975 | J124: =(Input!$E$24/Input!$E$232)*J115+(Input!$E$24/Input!$E$252)*J116+(Input!$E$24/Input!$E$272)*J117 -> 227.7943591 | K124: =(Input!$E$24/Input!$E$232)*K115+(Input!$E$24/Input!$E$252)*K116+(Input!$E$24/Input!$E$272)*K117 -> 440.892308 | L124: =(Input!$E$24/Input!$E$232)*L115+(Input!$E$24/Input!$E$252)*L116+(Input!$E$24/Input!$E$272)*L117 -> 812.4665475 | M124: =(Input!$E$24/Input!$E$232)*M115+(Input!$E$24/Input!$E$252)*M116+(Input!$E$24/Input!$E$272)*M117 -> 812.4665475 | N124: =(Input!$E$24/Input!$E$232)*N115+(Input!$E$24/Input!$E$252)*N116+(Input!$E$24/Input!$E$272)*N117 -> 786.2579492 | O124: =(Input!$E$24/Input!$E$232)*O115+(Input!$E$24/Input!$E$252)*O116+(Input!$E$24/Input!$E$272)*O117 -> 209.6687865 | P124: =(Input!$E$24/Input!$E$232)*P115+(Input!$E$24/Input!$E$252)*P116+(Input!$E$24/Input!$E$272)*P117 -> 0 | Q124: =(Input!$E$24/Input!$E$232)*Q115+(Input!$E$24/Input!$E$252)*Q116+(Input!$E$24/Input!$E$272)*Q117 -> 0 | R124: 3429.162395
D126: PASTURE COST | F126: =F114 -> January | G126: February | H126: March | I126: April | J126: May | K126: June | L126: July | M126: August | N126: September | O126: October | P126: November | Q126: December | R126: Total
D127: Lambs - Pasture | F127: =IF(F106>0,F106*(Input!$E$272*Input!$E$295),0) -> 0 | G127: =IF(G106>0,G106*(Input!$E$272*Input!$E$295),0) -> 0 | H127: =IF(H106>0,H106*(Input!$E$272*Input!$E$295),0) -> 0 | I127: =IF(I106>0,I106*(Input!$E$272*Input!$E$295),0) -> 0 | J127: =IF(J106>0,J106*(Input!$E$272*Input!$E$295),0) -> 0 | K127: =IF(K106>0,K106*(Input!$E$272*Input!$E$301),0) -> 0 | L127: =IF(L106>0,L106*(Input!$E$272*Input!$E$301),0) -> 0 | M127: =IF(M106>0,M106*(Input!$E$272*Input!$E$301),0) -> 0 | N127: =IF(N106>0,N106*(Input!$E$272*Input!$E$301),0) -> 0 | O127: =IF(O106>0,O106*(Input!$E$272*Input!$E$295),0) -> 0 | P127: =IF(P106>0,P106*(Input!$E$272*Input!$E$295),0) -> 0 | Q127: =IF(Q106>0,Q106*(Input!$E$272*Input!$E$295),0) -> 0 | R127: =SUM(F127:Q127) -> 0
D128: Ewes - Pasture | F128: =IF(F110>0,F110*(Input!$E$15)*Input!$E$192,0) -> 0 | G128: =IF(G110>0,G110*(Input!$E$15)*Input!$E$192,0) -> 0 | H128: =IF(H110>0,H110*(Input!$E$15)*Input!$E$192,0) -> 0 | I128: =IF(I110>0,I110*(Input!$E$15)*Input!$E$192,0) -> 0 | J128: =IF(J110>0,J110*(Input!$E$15)*Input!$E$197,0) -> 0 | K128: =IF(K110>0,K110*(Input!$E$15)*Input!$E$197,0) -> 1800 | L128: =IF(L110>0,L110*(Input!$E$15)*Input!$E$197,0) -> 1860 | M128: =IF(M110>0,M110*(Input!$E$15)*Input!$E$197,0) -> 1860 | N128: =IF(N110>0,N110*(Input!$E$15)*Input!$E$197,0) -> 1800 | O128: =IF(O110>0,O110*(Input!$E$15)*Input!$E$197,0) -> 180 | P128: =IF(P110>0,P110*(Input!$E$15)*Input!$E$192,0) -> 0 | Q128: =IF(Q110>0,Q110*(Input!$E$15)*Input!$E$192,0) -> 0 | R128: =SUM(F128:Q128) -> 7500
D129: Rams - Pasture | F129: =IF(F112>0,F112*(Input!$E$16)*Input!$E$226,0) -> 0 | G129: =IF(G112>0,G112*(Input!$E$16)*Input!$E$226,0) -> 0 | H129: =IF(H112>0,H112*(Input!$E$16)*Input!$E$226,0) -> 0 | I129: =IF(I112>0,I112*(Input!$E$16)*Input!$E$226,0) -> 0 | J129: =IF(J112>0,J112*(Input!$E$16)*Input!$E$226,0) -> 24.75 | K129: =IF(K112>0,K112*(Input!$E$16)*Input!$E$226,0) -> 49.5 | L129: =IF(L112>0,L112*(Input!$E$16)*Input!$E$226,0) -> 51.15 | M129: =IF(M112>0,M112*(Input!$E$16)*Input!$E$226,0) -> 51.15 | N129: =IF(N112>0,N112*(Input!$E$16)*Input!$E$226,0) -> 49.5 | O129: =IF(O112>0,O112*(Input!$E$16)*Input!$E$226,0) -> 51.15 | P129: =IF(P112>0,P112*(Input!$E$16)*Input!$E$226,0) -> 0 | Q129: =IF(Q112>0,Q112*(Input!$E$16)*Input!$E$226,0) -> 0 | R129: =SUM(F129:Q129) -> 277.2
D130: Farm Pasture Costs | J130: =Input!$E$125 -> 0 | R130: =SUM(F130:Q130) -> 0
F131: =SUM(F127:F130) -> 0 | G131: =SUM(G127:G130) -> 0 | H131: 0 | I131: 0 | J131: 24.75 | K131: 1849.5 | L131: 1911.15 | M131: 1911.15 | N131: 1849.5 | O131: 231.15 | P131: 0 | Q131: 0 | R131: 7777.2

Sheet Income_Expense
B5: =Input!$C$10 -> Name: 400 Head Ewe Operation | D5: INCOME AND EXPENSE PROJECTIONS
D6: =Input!E14 -> Year 1 | E6: =Input!F14 -> Year 2 | F6: =Input!G14 -> Year 3 | G6: =Input!H14 -> Year 4 | H6: =Input!I14 -> Year 5
B7: REVENUE | D7: Total $ | E7: Total $ | F7: Total $ | G7: Total $ | H7: Total $
C8: Feeder Lamb Sales (under 90lbs) | D8: =Monthly!R10 -> 0 | E8: =IF(Input!F$50>0,(Input!F$50*Input!F$53),(0)) -> 0 | F8: =IF(Input!G$50>0,(Input!G$50*Input!G$53),(0)) -> 0 | G8: =IF(Input!H$50>0,(Input!H$50*Input!H$53),(0)) -> 0 | H8: =IF(Input!I$50>0,(Input!I$50*Input!I$53),(0)) -> 0
C9: Slaughter Lamb Sales (90lbs+) | D9: =Monthly!R11 -> 161874 | E9: =IF(Input!F$55>0,(Input!F$55*Input!F$58),(0)) -> 161874 | F9: =IF(Input!G$55>0,(Input!G$55*Input!G$58),(0)) -> 161874 | G9: =IF(Input!H$55>0,(Input!H$55*Input!H$58),(0)) -> 161874 | H9: =IF(Input!I$55>0,(Input!I$55*Input!I$58),(0)) -> 161874
C10: Breeding Stock Sales | D10: =Monthly!R13 -> 0 | E10: =(Input!F$61*Input!F$62)+(Input!F$63*Input!F$64)+(Input!F$65*Input!F$66) -> 0 | F10: =(Input!G61*Input!G62)+(Input!G63*Input!G64)+(Input!G65*Input!G66) -> 0 | G10: =(Input!H61*Input!H62)+(Input!H63*Input!H64)+(Input!H65*Input!H66) -> 0 | H10: =(Input!I61*Input!I62)+(Input!I63*Input!I64)+(Input!I65*Input!I66) -> 0
C11: Cull Ewe and Ram Sales | D11: =Monthly!R12 -> 12515.625 | E11: =(Input!F$69*Input!F$72)+(Input!F$73*Input!F$76) -> 12516.5625 | F11: =(Input!G$69*Input!G$72)+(Input!G$73*Input!G$76) -> 12517.33125 | G11: =(Input!H$69*Input!H$72)+(Input!H$73*Input!H$76) -> 12517.96162 | H11: =(Input!I$69*Input!I$72)+(Input!I$73*Input!I$76) -> 12518.47853
C12: Wool Sales | D12: =Monthly!R14 -> 1644 | E12: =Input!F83 -> 1644.08 | F12: =Input!G83 -> 1644.1456 | G12: =Input!H83 -> 1644.199392 | H12: =Input!I83 -> 1644.243501
C13: Other Sales | D13: =Monthly!R15 -> 0 | E13: =Input!F93+Input!F102 -> 0 | F13: =Input!G93+Input!G102 -> 0 | G13: =Input!H93+Input!H102 -> 0 | H13: =Input!I93+Input!I102 -> 0
C14: TOTAL REVENUE | D14: =SUM(D8:D13) -> 176033.625 | E14: =SUM(E8:E13) -> 176034.6425 | F14: =SUM(F8:F13) -> 176035.4768 | G14: =SUM(G8:G13) -> 176036.161 | H14: =SUM(H8:H13) -> 176036.722
B15: EXPENSES - VARIABLE COSTS
C16: Feed Grain/Pellets, Hay & Minerals | D16: =Monthly!R18 -> 76329.05387 | E16: =(Input!F$15*(Input!F$149+Input!F$167+Input!F$185))+(Input!F$16*(Input!F$217))+(Input!F$232*Input!F$248)+(Input!F$252*Input!F$268)+(Input!F$272*Input!$F$288)+Input!F$123+Input!F$124-(Input!$F$24*(Input!$F248+Input!$F268+Input!$F288)) -> 76324.77933 | F16: =(Input!G$15*(Input!G$149+Input!G$167+Input!G$185))+(Input!G$16*(Input!G$217))+(Input!G$232*Input!G$248)+(Input!G$252*Input!G$268)+(Input!G$272*Input!$F$288)+Input!G$123+Input!G$124-(Input!$F$24*(Input!$F248+Input!$F268+Input!$F288)) -> 76326.78226 | G16: =(Input!H$15*(Input!H$149+Input!H$167+Input!H$185))+(Input!H$16*(Input!H$217))+(Input!H$232*Input!H$248)+(Input!H$252*Input!H$268)+(Input!H$272*Input!$F$288)+Input!H$123+Input!H$124-(Input!$F$24*(Input!$F248+Input!$F268+Input!$F288)) -> 76328.42466 | H16: =(Input!I$15*(Input!I$149+Input!I$167+Input!I$185))+(Input!I$16*(Input!I$217))+(Input!I$232*Input!I$248)+(Input!I$252*Input!I$268)+(Input!I$272*Input!$F$288)+Input!I$123+Input!I$124-(Input!$F$24*(Input!$F248+Input!$F268+Input!$F288)) -> 76329.77143
C17: Pasture and Grazing | D17: =Monthly!R19 -> 7777.2 | E17: =(Input!$F15*Input!$F198)+(Input!$F16*Input!F227)+(Input!$F272*Input!$F302)+Input!$F125 -> 7772.745 | F17: =(Input!$F15*Input!$F198)+(Input!$F16*Input!G227)+(Input!$F272*Input!$F302)+Input!$F125 -> 7772.745 | G17: =(Input!$F15*Input!$F198)+(Input!$F16*Input!H227)+(Input!$F272*Input!$F302)+Input!$F125 -> 7772.745 | H17: =(Input!$F15*Input!$F198)+(Input!$F16*Input!I227)+(Input!$F272*Input!$F302)+Input!$F125 -> 7772.745
C18: Breeding Stock Purchases & Supplies | D18: =Monthly!R20 -> 4629.162395 | E18: =IF(Input!F$25>0,(Input!F$25*Input!F$26)+(Input!F$33*Input!F$34)+Input!F$317,(Input!F$33*Input!F$34)+Input!F$317)+(Input!$F$24*(Input!$F248+Input!$F268+Input!$F288)) -> 4629.162395 | F18: =IF(Input!G$25>0,(Input!G$25*Input!G$26)+(Input!G$33*Input!G$34)+Input!G$317,(Input!G$33*Input!G$34)+Input!G$317)+(Input!$F$24*(Input!$F248+Input!$F268+Input!$F288)) -> 4629.162395 | G18: =IF(Input!H$25>0,(Input!H$25*Input!H$26)+(Input!H$33*Input!H$34)+Input!H$317,(Input!H$33*Input!H$34)+Input!H$317)+(Input!$F$24*(Input!$F248+Input!$F268+Input!$F288)) -> 4629.162395 | H18: =IF(Input!I$25>0,(Input!I$25*Input!I$26)+(Input!I$33*Input!I$34)+Input!I$317,(Input!I$33*Input!I$34)+Input!I$317)+(Input!$F$24*(Input!$F248+Input!$F268+Input!$F288)) -> 4629.162395
C19: Veterinary Services and Medication | D19: =Monthly!R21 -> 5758.9 | E19: =Input!F$310 -> 5874.32076 | F19: =Input!G$310 -> 5992.01022 | G19: =Input!H$310 -> 6112.02025 | H19: =Input!I$310 -> 6234.402698
C20: Guardian and Herd Dog Costs | D20: =Monthly!R22 -> 2700 | E20: =Input!$F$320+Input!$F$321+Input!$F$324+Input!$F$325 -> 2720 | F20: =Input!G$320+Input!G$321+Input!G$324+Input!G$325 -> 2740.4 | G20: =Input!H$320+Input!H$321+Input!H$324+Input!H$325 -> 2761.208 | H20: =Input!I$320+Input!I$321+Input!I$324+Input!I$325 -> 2782.43216
C21: Labour Costs | D21: =Monthly!R23 -> 21720 | E21: =Input!F$333 -> 22154.4 | F21: =Input!G$333 -> 22597.488 | G21: =Input!H$333 -> 23049.43776 | H21: =Input!I$333 -> 23510.42652
C22: Custom Work/Manure Removal Costs | D22: =Monthly!R24 -> 2400 | E22: =Input!F339 -> 2448 | F22: =Input!G339 -> 2496.96 | G22: =Input!H339 -> 2546.8992 | H22: =Input!I339 -> 2597.837184
C23: Fuel and Utility Costs | D23: =Monthly!R25 -> 3500 | E23: =Input!F$342+Input!F$344 -> 3570 | F23: =Input!G$342+Input!G$344 -> 3641.4 | G23: =Input!H$342+Input!H$344 -> 3714.228 | H23: =Input!I$342+Input!I$344 -> 3788.51256
C24: Building and Equipment Repairs | D24: =Monthly!R26 -> 3500 | E24: =Input!F$348+Input!F$350 -> 3570 | F24: =Input!G$348+Input!G$350 -> 3641.4 | G24: =Input!H$348+Input!H$350 -> 3714.228 | H24: =Input!I$348+Input!I$350 -> 3788.51256
C25: Marketing, Check-Off, & Transportation Costs | D25: =Monthly!R27 -> 13742.46 | E25: =Input!F$357+Input!F$362+Input!F$367 -> 13904.19792 | F25: =Input!G$357+Input!G$362+Input!G$367 -> 14069.15955 | G25: =Input!H$357+Input!H$362+Input!H$367 -> 14237.41126 | H25: =Input!I$357+Input!I$362+Input!I$367 -> 14409.02041
C26: Shearing and Wool Production Costs | D26: =Monthly!R28 -> 2466 | E26: =Input!F86 -> 2466.12 | F26: =Input!G86 -> 2466.2184 | G26: =Input!H86 -> 2466.299088 | H26: =Input!I86 -> 2466.365252
C27: Accounting, Property Taxes, Licenses | D27: =Monthly!R30 -> 5100 | E27: =Input!F$371+Input!F$372+Input!F$373 -> 5202 | F27: =Input!G$371+Input!G$372+Input!G$373 -> 5306.04 | G27: =Input!H$371+Input!H$372+Input!H$373 -> 5412.1608 | H27: =Input!I$371+Input!I$372+Input!I$373 -> 5520.404016
C28: Insurance Costs | D28: =Monthly!R31 -> 1423.8 | E28: =Input!F$376+Input!F$379 -> 1435.116 | F28: =Input!G$376+Input!G$379 -> 1446.64512 | G28: =Input!H$376+Input!H$379 -> 1458.393998 | H28: =Input!I$376+Input!I$379 -> 1470.368979
C29: Operating Interest Costs | D29: =Monthly!R32 -> 1973.749629 | E29: =Input!F$407 -> 1903.088519 | F29: =Input!G$407 -> 1916.29843 | G29: =Input!H$407 -> 1929.766614 | H29: =Input!I$407 -> 1943.499296
C30: TOTAL VARIABLE COSTS | D30: =SUM(D16:D29) -> 153020.3259 | E30: =SUM(E16:E29) -> 153973.9299 | F30: =SUM(F16:F29) -> 155042.7094 | G30: =SUM(G16:G29) -> 156132.385 | H30: =SUM(H16:H29) -> 157243.4605
C31: Depreciation | D31: =Monthly!R34 -> 8750 | E31: =Depreciation!G$9 -> 8062.5 | F31: =Depreciation!I$9 -> 7434.375 | G31: =Depreciation!K$9 -> 6860.15625 | H31: =Depreciation!M$9 -> 6334.898438
C32: Long Term Interest | D32: =Monthly!R35 -> 4250 | E32: =Financing!D41 -> 3960.92413 | F32: =Financing!D42 -> 3657.394467 | G32: =Financing!D43 -> 3338.688321 | H32: =Financing!D44 -> 3004.046868
C33: TOTAL FIXED COSTS | D33: =D31+D32 -> 13000 | E33: =E31+E32 -> 12023.42413 | F33: =F31+F32 -> 11091.76947 | G33: =G31+G32 -> 10198.84457 | H33: =H31+H32 -> 9338.945305
C34: TOTAL COSTS | D34: =D30+D33 -> 166020.3259 | E34: =E30+E33 -> 165997.3541 | F34: =F30+F33 -> 166134.4788 | G34: =G30+G33 -> 166331.2296 | H34: =H30+H33 -> 166582.4058
C35: NET INCOME, Before Taxes | D35: =D14-D34 -> 10013.2991 | E35: =E14-E34 -> 10037.28845 | F35: =F14-F34 -> 9900.998009 | G35: =G14-G34 -> 9704.931422 | H35: =H14-H34 -> 9454.316277
C36: ACCRUED NET INCOME, Before Taxes | D36: =D35+Balance_Sheet!D54 -> 10013.2991 | E36: =E35+Balance_Sheet!E54 -> 10049.28845 | F36: =F35+Balance_Sheet!F54 -> 9910.838009 | G36: =G35+Balance_Sheet!G54 -> 9713.000222 | H36: =H35+Balance_Sheet!H54 -> 9454.316277
D37: =Input!E14 -> Year 1 | E37: =Input!F14 -> Year 2 | F37: =Input!G14 -> Year 3 | G37: =Input!H14 -> Year 4 | H37: =Input!I14 -> Year 5
C38: CASH FLOW, Before Taxes | D38: Total $ | E38: Total $ | F38: Total $ | G38: Total $ | H38: Total $
C39: NET INCOME, Before Taxes | D39: =D35 -> 10013.2991 | E39: =E35 -> 10037.28845 | F39: =F35 -> 9900.998009 | G39: =G35 -> 9704.931422 | H39: =H35 -> 9454.316277
C40: Plus Depreciation/Amortization | D40: =D31 -> 8750 | E40: =E31 -> 8062.5 | F40: =F31 -> 7434.375 | G40: =G31 -> 6860.15625 | H40: =H31 -> 6334.898438
C41: Sheep Loan Advance | D41: =Input!E423 -> 0 | E41: =Input!E429 -> 0 | F41: =Input!E435 -> 0 | G41: =Input!E441 -> 0 | H41: =Input!E447 -> 0
C42: Less Principal Payments | D42: =Monthly!R43 -> 5781.517391 | E42: =Financing!E41 -> 6070.593261 | F42: =Financing!E42 -> 6374.122924 | G42: =Financing!E43 -> 6692.82907 | H42: =Financing!E44 -> 7027.470523
C43: Net Cash Flow, Before Taxes | D43: =D39+D40+D41-D42 -> 12981.78171 | E43: =E39+E40+E41-E42 -> 12029.19519 | F43: =F39+F40+F41-F42 -> 10961.25009 | G43: =G39+G40+G41-G42 -> 9872.258602 | H43: =H39+H40+H41-H42 -> 8761.744191
C45: Number of Ewes Lambing During The Year | D45: =Input!E$15-Input!$G$17 -> 400 | E45: =Input!F$15-Input!$G$17 -> 400 | F45: =Input!G$15-Input!$G$17 -> 400 | G45: =Input!H$15-Input!$H$17 -> 400 | H45: =Input!I$15-Input!$I$17 -> 400
C46: =C8 -> Feeder Lamb Sales (under 90lbs) | D46: =Input!$E$50 -> 0 | E46: =Input!$F$50 -> 0 | F46: =Input!$G$50 -> 0 | G46: =Input!$H$50 -> 0 | H46: =Input!$I$50 -> 0
C47: =C9 -> Slaughter Lamb Sales (90lbs+) | D47: =Input!$E$55 -> 612 | E47: =Input!$F$55 -> 612 | F47: =Input!$G$55 -> 612 | G47: =Input!$H$55 -> 612 | H47: =Input!$I$55 -> 612
C48: Kept For Breeding | D48: =Input!E$24 -> 72 | E48: =Input!F$24 -> 72 | F48: =Input!G$24 -> 72 | G48: =Input!H$24 -> 72 | H48: =Input!I$24 -> 72
C49: Breeding Stock Sales | D49: =Input!E$61+Input!$F63+Input!E$65 -> 0 | E49: =Input!F$61+Input!$F63+Input!F$65 -> 0 | F49: =Input!G$61+Input!$F63+Input!G$65 -> 0 | G49: =Input!H$61+Input!$F63+Input!H$65 -> 0 | H49: =Input!I$61+Input!$F63+Input!I$65 -> 0
C50: =C13 -> Other Sales | D50: =Input!E$89+Input!E$98 -> 0 | E50: =Input!F$89+Input!F$98 -> 0 | F50: =Input!G$89+Input!G$98 -> 0 | G50: =Input!H$89+Input!H$98 -> 0 | H50: =Input!I$89+Input!I$98 -> 0
C51: Cull Rams & Ewes | D51: =Input!E$22+Input!E$32 -> 61.65 | E51: =Input!F$22+Input!F$32 -> 61.653 | F51: =Input!G$22+Input!G$32 -> 61.65546 | G51: =Input!H$22+Input!H$32 -> 61.6574772 | H51: =Input!I$22+Input!I$32 -> 61.6591313
C52: Lambs Available For Sale | D52: =Input!E$45 -> 684 | E52: =Input!F$45 -> 684 | F52: =Input!G$45 -> 684 | G52: =Input!H$45 -> 684 | H52: =Input!I$45 -> 684
C53: End Of Year | D53: =D6 -> Year 1 | E53: =E6 -> Year 2 | F53: =F6 -> Year 3 | G53: =G6 -> Year 4 | H53: =H6 -> Year 5
C54: Account Balance | D54: =Monthly!R45 -> 12981.78171 | E54: =D54+E43 -> 25010.9769 | F54: =E54+F43 -> 35972.22698 | G54: =F54+G43 -> 45844.48559 | H54: =G54+H43 -> 54606.22978
C59: =Input!$C$10 -> Name: 400 Head Ewe Operation | D59: INCOME AND EXPENSE - $/Per Ewe
D60: =D6 -> Year 1 | E60: =E6 -> Year 2 | F60: =F6 -> Year 3 | G60: =G6 -> Year 4 | H60: =H6 -> Year 5
C61: REVENUE | D61: $/Ewe | E61: $/Ewe | F61: $/Ewe | G61: $/Ewe | H61: $/Ewe
C62: Feeder Lamb Sales (under 90lbs) | D62: =IF(D8>0,D8/$D$99,0) -> 0 | E62: =IF(E8>0,E8/$E$99,0) -> 0 | F62: =IF(F8>0,F8/$F$99,0) -> 0 | G62: =IF(G8>0,G8/$G$99,0) -> 0 | H62: =IF(H8>0,H8/$H$99,0) -> 0
C63: Slaughter Lamb Sales (90lbs+) | D63: 404.685 | E63: =E9/$E$99 -> 404.685 | F63: =F9/$F$99 -> 404.685 | G63: =G9/$G$99 -> 404.685 | H63: =H9/$H$99 -> 404.685
C64: Breeding Stock Sales | D64: 0 | E64: =IF(E10>0,E10/$E$99,0) -> 0 | F64: =F10/$F$99 -> 0 | G64: =G10/$G$99 -> 0 | H64: =H10/$G$99 -> 0
C65: Cull Ewe and Ram Sales | D65: 31.2890625 | E65: =IF(E11>0,E11/$E$99,0) -> 31.29140625 | F65: =F11/$F$99 -> 31.29332812 | G65: =G11/$G$99 -> 31.29490406 | H65: =H11/$G$99 -> 31.29619633
C66: Wool Sales | D66: 4.11 | E66: =IF(E12>0,E12/$E$99,0) -> 4.1102 | F66: =F12/$F$99 -> 4.110364 | G66: =G12/$G$99 -> 4.11049848 | H66: =H12/$G$99 -> 4.110608754
C67: Other Sales | D67: 0 | E67: =IF(E13>0,E13/$E$99,0) -> 0 | F67: =F13/$F$99 -> 0 | G67: =G13/$G$99 -> 0 | H67: =H13/$G$99 -> 0
C68: TOTAL REVENUE | D68: 440.0840625 | E68: =IF(E14>0,E14/$E$99,0) -> 440.0866062 | F68: =IF(F14>0,F14/$F$99,0) -> 440.0886921 | G68: =IF(G14>0,G14/$G$99,0) -> 440.0904025 | H68: =IF(H14>0,H14/$H$99,0) -> 440.0918051
C69: EXPENSES - VARIABLE COSTS
C70: Feed Grain/Pellets, Hay & Minerals | D70: =D16/$D$99 -> 190.8226347 | E70: =E16/$E$99 -> 190.8119483 | F70: =F16/$F$99 -> 190.8169556 | G70: =G16/$G$99 -> 190.8210617 | H70: =H16/$H$99 -> 190.8244286
C71: Pasture and Grazing | D71: 19.443 | E71: 19.4318625 | F71: 19.4318625 | G71: 19.4318625 | H71: 19.4318625
C72: Breeding Stock Purchases & Supplies | D72: 11.57290599 | E72: 11.57290599 | F72: 11.57290599 | G72: 11.57290599 | H72: 11.57290599
C73: Veterinary Services and Medication | D73: 14.39725 | E73: 14.6858019 | F73: 14.98002555 | G73: 15.28005063 | H73: 15.58600675
C74: Guardian and Herd Dog Costs | D74: 6.75 | E74: 6.8 | F74: 6.851 | G74: 6.90302 | H74: 6.9560804
C75: Labour Costs | D75: 54.3 | E75: 55.386 | F75: 56.49372 | G75: 57.6235944 | H75: 58.77606629
C76: Custom Work/Manure Removal Costs | D76: 6 | E76: 6.12 | F76: 6.2424 | G76: 6.367248 | H76: 6.49459296
C77: Fuel and Utility Costs | D77: 8.75 | E77: 8.925 | F77: 9.1035 | G77: 9.28557 | H77: 9.4712814
C78: Building and Equipment Repairs | D78: 8.75 | E78: 8.925 | F78: 9.1035 | G78: 9.28557 | H78: 9.4712814
C79: Marketing, Check-Off, & Transportation Costs | D79: 34.35615 | E79: 34.7604948 | F79: 35.17289888 | G79: 35.59352814 | H79: 36.02255102
C80: Shearing and Wool Production Costs | D80: 6.165 | E80: 6.1653 | F80: 6.165546 | G80: 6.16574772 | H80: 6.16591313
C81: Accounting, Property Taxes, Licenses | D81: 12.75 | E81: 13.005 | F81: 13.2651 | G81: 13.530402 | H81: 13.80101004
C82: Insurance Costs | D82: 3.5595 | E82: 3.58779 | F82: 3.6166128 | G82: 3.645984996 | H82: 3.675922447
C83: Operating Interest Costs | D83: 4.934374072 | E83: 4.757721298 | F83: 4.790746076 | G83: 4.824416536 | H83: 4.858748239
C84: TOTAL VARIABLE COSTS | D84: =SUM(D70:D83) -> 382.5508147 | E84: =SUM(E70:E83) -> 384.9348248 | F84: =SUM(F70:F83) -> 387.6067734 | G84: =SUM(G70:G83) -> 390.3309626 | H84: =SUM(H70:H83) -> 393.1086511
C85: Depreciation | D85: =D31/$D$99 -> 21.875 | E85: =E31/$E$99 -> 20.15625 | F85: =F31/$F$99 -> 18.5859375 | G85: =G31/$G$99 -> 17.15039062 | H85: =H31/$H$99 -> 15.83724609
C86: Long Term Interest | D86: =D32/$D$99 -> 10.625 | E86: =E32/$E$99 -> 9.902310326 | F86: =F32/$F$99 -> 9.143486169 | G86: =G32/$G$99 -> 8.346720803 | H86: =H32/$H$99 -> 7.510117169
C87: TOTAL FIXED COSTS | D87: =D85+D86 -> 32.5 | E87: =E85+E86 -> 30.05856033 | F87: =F85+F86 -> 27.72942367 | G87: =G85+G86 -> 25.49711143 | H87: =H85+H86 -> 23.34736326
C88: TOTAL COSTS | D88: =D84+D87 -> 415.0508147 | E88: =E84+E87 -> 414.9933851 | F88: =F84+F87 -> 415.3361971 | G88: =G84+G87 -> 415.828074 | H88: =H84+H87 -> 416.4560144
C89: NET INCOME, Before Taxes | D89: =D68-D88 -> 25.03324776 | E89: =E68-E88 -> 25.09322112 | F89: =F68-F88 -> 24.75249502 | G89: =G68-G88 -> 24.26232855 | H89: =H68-H88 -> 23.63579069
C90: ACCRUED NET INCOME, Before Taxes | D90: =D36/$D$99 -> 25.03324776 | E90: =E36/$E$99 -> 25.12322112 | F90: =F36/$F$99 -> 24.77709502 | G90: =G36/$F$99 -> 24.28250055 | H90: =H36/$F$99 -> 23.63579069
D91: =D60 -> Year 1 | E91: Year 2 | F91: Year 3 | G91: =G60 -> Year 4 | H91: =H60 -> Year 5
C92: CASH FLOW, Before Taxes | D92: $/Ewe | E92: $/Ewe | F92: $/Ewe | G92: =G61 -> $/Ewe | H92: =H61 -> $/Ewe
C93: NET INCOME, Before Taxes | D93: =D39/$D$99 -> 25.03324776 | E93: =E39/$E$99 -> 25.09322112 | F93: =F39/$F$99 -> 24.75249502 | G93: =G39/$G$99 -> 24.26232855 | H93: =H39/$H$99 -> 23.63579069
C94: Plus Depreciation/Amortization | D94: =D40/$D$99 -> 21.875 | E94: =E40/$E$99 -> 20.15625 | F94: =F40/$F$99 -> 18.5859375 | G94: =G40/$G$99 -> 17.15039062 | H94: =H40/$H$99 -> 15.83724609
C95: Sheep Loan Advance | D95: =D41/$D$99 -> 0 | E95: =E41/$E$99 -> 0 | F95: =F41/$F$99 -> 0 | G95: =G41/$G$99 -> 0 | H95: =H41/$H$99 -> 0
C96: Less Principal Payments | D96: =D42/$D$99 -> 14.45379348 | E96: =E42/$E$99 -> 15.17648315 | F96: =F42/$F$99 -> 15.93530731 | G96: =G42/$G$99 -> 16.73207267 | H96: =H42/$H$99 -> 17.56867631
C97: Net Cash Flow, Before Taxes | D97: =D93+D94+D95-D96 -> 32.45445428 | E97: =E93+E94+E95-E96 -> 30.07298797 | F97: =F93+F94+F95-F96 -> 27.40312521 | G97: =G93+G94+G95-G96 -> 24.68064651 | H97: =H93+H94+H95-H96 -> 21.90436048
C99: Number of Ewes Lambing During The Year | D99: =Input!E$15-Input!$E$17 -> 400 | E99: =Input!F$15-Input!$F$17 -> 400 | F99: =Input!G$15-Input!$F$17 -> 400 | G99: =Input!H$15-Input!$F$17 -> 400 | H99: =Input!I$15-Input!$F$17 -> 400
C100: Cull Rams & Ewes | D100: =Input!E$22+Input!E$32 -> 61.65 | E100: =Input!F$22+Input!F$32 -> 61.653 | F100: =Input!G$22+Input!G$32 -> 61.65546 | G100: =Input!H$22+Input!H$32 -> 61.6574772 | H100: =Input!I$22+Input!I$32 -> 61.6591313
C105: =Input!$C$10 -> Name: 400 Head Ewe Operation | D105: INCOME AND EXPENSE - $/Per Lamb
D106: =D6 -> Year 1 | E106: =E6 -> Year 2 | F106: =F6 -> Year 3 | G106: =G6 -> Year 4 | H106: =H6 -> Year 5
C107: REVENUE | D107: $/Lamb | E107: $/Lamb | F107: $/Lamb | G107: $/Lamb | H107: $/Lamb
C108: Feeder Lamb Sales (under 90lbs) | D108: =IF(D8>0,D8/D$147,0) -> 0 | E108: =IF(E8>0,E8/E$147,0) -> 0 | F108: =IF(F8>0,F8/F$147,0) -> 0 | G108: =IF(G8>0,G8/G$147,0) -> 0 | H108: =IF(H8>0,H8/H$147,0) -> 0
C109: Slaughter Lamb Sales (90lbs+) | D109: =IF(D9>0,D9/D$148,0) -> 264.5 | E109: =IF(E9>0,E9/E$148,0) -> 264.5 | F109: =IF(F9>0,F9/F$148,0) -> 264.5 | G109: =IF(G9>0,G9/G$148,0) -> 264.5 | H109: =IF(H9>0,H9/H$148,0) -> 264.5
C110: Breeding Stock Sales | D110: =IF(D10>0,D10/D$150,0) -> 0 | E110: =IF(E10>0,E10/E$150,0) -> 0 | F110: =IF(F10>0,F10/F$150,0) -> 0 | G110: =IF(G10>0,G10/G$150,0) -> 0 | H110: =IF(H10>0,H10/H$150,0) -> 0
C111: Cull Ewe and Ram Sales | D111: =IF(D11>0,D11/D$152,0) -> 203.0109489 | E111: =IF(E11>0,E11/E$152,0) -> 203.0162766 | F111: =IF(F11>0,F11/F$152,0) -> 203.0206449 | G111: =IF(G11>0,G11/G$152,0) -> 203.0242266 | H111: =IF(H11>0,H11/H$152,0) -> 203.0271635
C112: Wool Sales | D112: =IF(D12>0,D12/D$153,0) -> 2.403508772 | E112: 2.403625731 | F112: 2.403721637 | G112: 2.403800281 | H112: 2.403864768
C113: Other Sales | D113: 0 | E113: 0 | F113: 0 | G113: 0 | H113: 0
C114: TOTAL REVENUE | D114: =D14/D$153 -> 257.3591009 | E114: =E14/E$153 -> 257.3605885 | F114: =F14/F$153 -> 257.3618083 | G114: =G14/G$153 -> 257.3628085 | H114: =H14/H$153 -> 257.3636287
C115: EXPENSES - VARIABLE COSTS
C116: Feed Grain/Pellets, Hay & Minerals | D116: =D16/D$154 -> 124.7206763 | E116: =E16/E$154 -> 124.7136917 | F116: =F16/F$154 -> 124.7169645 | G116: =G16/G$154 -> 124.7196481 | H116: =H16/H$154 -> 124.7218487
C117: Pasture and Grazing | D117: =D17/D$153 -> 11.37017544 | E117: 11.36366228 | F117: 11.36366228 | G117: 11.36366228 | H117: 11.36366228
C118: Breeding Stock Purchases & Supplies | D118: 6.76778128 | E118: 6.76778128 | F118: 6.76778128 | G118: 6.76778128 | H118: 6.76778128
C119: Veterinary Services and Medication | D119: 8.419444444 | E119: 8.588188246 | F119: 8.760248859 | G119: 8.935702121 | H119: 9.114623828
C120: Guardian and Herd Dog Costs | D120: 3.947368421 | E120: 3.976608187 | F120: 4.006432749 | G120: 4.036853801 | H120: 4.067883275
C121: Labour Costs | D121: 31.75438596 | E121: 32.38947368 | F121: 33.03726316 | G121: 33.69800842 | H121: 34.37196859
C122: Custom Work/Manure Removal Costs | D122: 3.50877193 | E122: 3.578947368 | F122: 3.650526316 | G122: 3.723536842 | H122: 3.798007579
C123: Fuel and Utility Costs | D123: 5.116959064 | E123: 5.219298246 | F123: 5.323684211 | G123: 5.430157895 | H123: 5.538761053
C124: Building and Equipment Repairs | D124: 5.116959064 | E124: 5.219298246 | F124: 5.323684211 | G124: 5.430157895 | H124: 5.538761053
C125: Marketing, Check-Off, & Transportation Costs | D125: 20.09131579 | E125: 20.32777474 | F125: 20.56894671 | G125: 20.81492874 | H125: 21.06581931
C126: Shearing and Wool Production Costs | D126: =D26/D$153 -> 3.605263158 | E126: 3.605438596 | F126: 3.605582456 | G126: 3.605700421 | H126: 3.605797152
C127: Accounting, Property Taxes, Licenses | D127: 7.456140351 | E127: 7.605263158 | F127: 7.757368421 | G127: 7.912515789 | H127: 8.070766105
C128: Insurance Costs | D128: 2.081578947 | E128: 2.098122807 | F128: 2.114978246 | G128: 2.132154968 | H128: 2.14966225
C129: Operating Interest Costs | D129: 2.885598873 | E129: 2.782293157 | F129: 2.801605892 | G129: 2.82129622 | H129: 2.841373239
C130: TOTAL VARIABLE COSTS | D130: 223.7139268 | E130: 225.1080847 | F130: 226.6706277 | G130: 228.2637208 | H130: 229.8881001
C131: Depreciation | D131: 12.79239766 | E131: 11.7872807 | F131: 10.8689693 | G131: 10.0294682 | H131: 9.261547423
C132: Long Term Interest | D132: 6.213450292 | E132: 5.790824752 | F132: 5.347067935 | G132: 4.881123277 | H132: 4.391881386
C133: TOTAL FIXED COSTS | D133: =D131+D132 -> 19.00584795 | E133: =E131+E132 -> 17.57810545 | F133: =F131+F132 -> 16.21603723 | G133: =G131+G132 -> 14.91059148 | H133: =H131+H132 -> 13.65342881
C134: TOTAL COSTS | D134: =D130+D133 -> 242.7197747 | E134: =E130+E133 -> 242.6861901 | F134: =F130+F133 -> 242.886665 | G134: =G130+G133 -> 243.1743123 | H134: =H130+H133 -> 243.5415289
C135: NET INCOME, Before Taxes | D135: =D35/D$154 -> 16.36159984 | E135: =E35/E$154 -> 16.40079812 | F135: =F35/F$154 -> 16.17810132 | G135: 15.85773108 | H135: 15.44822921
C136: ACCRUED NET INCOME, Before Taxes | D136: =D36/D$154 -> 16.36159984 | E136: =E36/E$154 -> 16.42040596 | F136: =F36/F$154 -> 16.19417975 | G136: 15.8709154 | H136: 15.44822921
D137: Year 1 | E137: Year 2 | F137: Year 3 | G137: Year 4 | H137: Year 5
C138: CASH FLOW, Before Taxes | D138: =D107 -> $/Lamb | E138: =E107 -> $/Lamb | F138: =F107 -> $/Lamb | G138: =G107 -> $/Lamb | H138: =H107 -> $/Lamb
C139: NET INCOME, Before Taxes | D139: =D39/D$154 -> 16.36159984 | E139: =E39/E$154 -> 16.40079812 | F139: =F39/F$154 -> 16.17810132 | G139: =G39/G$154 -> 15.85773108 | H139: =H39/H$154 -> 15.44822921
C140: Plus Depreciation/Amortization | D140: =D40/D$153 -> 12.79239766 | E140: 11.7872807 | F140: 10.8689693 | G140: 10.0294682 | H140: 9.261547423
C141: Sheep Loan Advance | D141: 0 | E141: 0 | F141: 0 | G141: 0 | H141: 0
C142: Less Principal Payments | D142: 8.452510806 | E142: 8.875136346 | F142: 9.318893163 | G142: 9.784837822 | H142: 10.27407971
C143: Net Cash Flow, Before Taxes | D143: =D139+D140-D141-D142 -> 20.7014867 | E143: =E139+E140-E141-E142 -> 19.31294247 | F143: =F139+F140-F141-F142 -> 17.72817746 | G143: =G139+G140-G141-G142 -> 16.10236146 | H143: =H139+H140-H141-H142 -> 14.43569692
C146: Number of Ewes Lambing During The Year | D146: =Input!E$15-Input!$G$17 -> 400 | E146: =Input!F$15-Input!$G$17 -> 400 | F146: =Input!G$15-Input!$G$17 -> 400 | G146: =Input!H$15-Input!$G$17 -> 400 | H146: =Input!I$15-Input!$G$17 -> 400
C147: =C8 -> Feeder Lamb Sales (under 90lbs) | D147: =Input!$E$50 -> 0 | E147: =Input!$F$50 -> 0 | F147: =Input!$G$50 -> 0 | G147: =Input!$H$50 -> 0 | H147: =Input!$I$50 -> 0
C148: =C9 -> Slaughter Lamb Sales (90lbs+) | D148: =Input!E$55 -> 612 | E148: =Input!F$55 -> 612 | F148: =Input!G$55 -> 612 | G148: =Input!H$55 -> 612 | H148: =Input!I$55 -> 612
C149: Kept For Breeding | D149: =Input!E$24 -> 72 | E149: =Input!F$24 -> 72 | F149: =Input!G$24 -> 72 | G149: =Input!H$24 -> 72 | H149: =Input!I$24 -> 72
C150: Breeding Stock Sales | D150: =Input!E$61+Input!E$63+Input!E$65 -> 0 | E150: =Input!F$61+Input!F$63+Input!F$65 -> 0 | F150: =Input!G$61+Input!G$63+Input!G$65 -> 0 | G150: =Input!H$61+Input!H$63+Input!H$65 -> 0 | H150: =Input!I$61+Input!I$63+Input!I$65 -> 0
C151: =C13 -> Other Sales | D151: =Input!E$89+Input!E$98 -> 0 | E151: =Input!F$89+Input!F$98 -> 0 | F151: =Input!G$89+Input!G$98 -> 0 | G151: =Input!H$89+Input!H$98 -> 0 | H151: =Input!I$89+Input!I$98 -> 0
C152: Cull Rams & Ewes | D152: =Input!E$22+Input!E$32 -> 61.65 | E152: =Input!F$22+Input!F$32 -> 61.653 | F152: =Input!G$22+Input!G$32 -> 61.65546 | G152: =Input!H$22+Input!H$32 -> 61.6574772 | H152: =Input!I$22+Input!I$32 -> 61.6591313
C153: Lambs Available For Sale | D153: =Input!E$45 -> 684 | E153: =Input!F$45 -> 684 | F153: =Input!G$45 -> 684 | G153: =Input!H$45 -> 684 | H153: =Input!I$45 -> 684
C154: Lambs Sold | D154: =D147+D148+D150+D151 -> 612 | E154: =E147+E148+E150+E151 -> 612 | F154: 612 | G154: 612 | H154: 612

Sheet Sensitivity
B6: Sensitivity To Market Price, (<90lbs) Feeder Lambs
B7: Market Price | D7: Net Income | U7: Number of Animals - Marketings | AC7: Total | AE7: Expenses | AF7: Total | AH7: Net Income
B8: $ Per LB | C8: Total | D8: $/Per Ewe | E8: $/Per Lamb | U8: FL 90- | V8: ML 90+ | W8: Ewes K.B. | Z8: Feeder | AA8: Market Lamb | AB8: Other | AC8: Revenue | AD8: Variable | AE8: Fixed | AF8: Costs | AG8: Total | AH8: Per Ewe | AI8: Per Lamb
B9: =B10+0.05 -> 3.1 | C9: =IF(Input!$E$50<1,0,AG9) -> 0 | D9: =IF(Input!$E$50<1,0,AH9) -> 0 | E9: =IF(Input!$E$50<1,0,AI9) -> 0 | U9: =Input!$E$50 -> 0 | V9: =Input!$E$55 -> 612 | W9: =Input!$E$24 -> 72 | Z9: =IF(U9>1,B9/$B$19*$U$31*$U$32*U9,0) -> 0 | AA9: =IF(V9>1,C9/$B$19*$V$31*$V$32*V9,0) -> 0 | AB9: =Income_Expense!$D$9+Income_Expense!$D$10+Income_Expense!$D$11+Income_Expense!$D$12+Income_Expense!$D$13 -> 176033.625 | AC9: =Z9+AA9+AB9 -> 176033.625 | AD9: =Income_Expense!$D$30 -> 153020.3259 | AE9: =Income_Expense!$D$33 -> 13000 | AF9: =AD9+AE9 -> 166020.3259 | AG9: =AC9-AF9 -> 10013.2991 | AH9: =IF(Z9<1,0,AG9/$AH$30) -> 0 | AI9: =IF(Z9<1,0,AG9/$AI$30) -> 0
B10: 3.05 | C10: =IF(Input!$E$50<1,0,AG10) -> 0 | D10: =IF(Input!$E$50<1,0,AH10) -> 0 | E10: =IF(Input!$E$50<1,0,AI10) -> 0 | U10: =Input!$E$50 -> 0 | V10: =Input!$E$55 -> 612 | W10: =Input!$E$24 -> 72 | Z10: =IF(U10>1,B10/$B$19*$U$31*$U$32*U10,0) -> 0 | AA10: =IF(V10>1,C10/$B$19*$V$31*$V$32*V10,0) -> 0 | AB10: =Income_Expense!$D$9+Income_Expense!$D$10+Income_Expense!$D$11+Income_Expense!$D$12+Income_Expense!$D$13 -> 176033.625 | AC10: =Z10+AA10+AB10 -> 176033.625 | AD10: =Income_Expense!$D$30 -> 153020.3259 | AE10: =Income_Expense!$D$33 -> 13000 | AF10: =AD10+AE10 -> 166020.3259 | AG10: =AC10-AF10 -> 10013.2991 | AH10: =IF(Z9<1,0,AG10/$AH$30) -> 0 | AI10: =IF(Z10<1,0,AG10/$AI$30) -> 0
B11: 3 | C11: =IF(Input!$E$50<1,0,AG11) -> 0 | D11: =IF(Input!$E$50<1,0,AH11) -> 0 | E11: =IF(Input!$E$50<1,0,AI11) -> 0 | U11: =Input!$E$50 -> 0 | V11: =Input!$E$55 -> 612 | W11: =Input!$E$24 -> 72 | Z11: 0 | AA11: 0 | AB11: =Income_Expense!$D$9+Income_Expense!$D$10+Income_Expense!$D$11+Income_Expense!$D$12+Income_Expense!$D$13 -> 176033.625 | AC11: 176033.625 | AD11: =Income_Expense!$D$30 -> 153020.3259 | AE11: =Income_Expense!$D$33 -> 13000 | AF11: 166020.3259 | AG11: 10013.2991 | AH11: =IF(Z9<1,0,AG11/$AH$30) -> 0 | AI11: 0
B12: 2.95 | C12: =IF(Input!$E$50<1,0,AG12) -> 0 | D12: =IF(Input!$E$50<1,0,AH12) -> 0 | E12: =IF(Input!$E$50<1,0,AI12) -> 0 | U12: =Input!$E$50 -> 0 | V12: =Input!$E$55 -> 612 | W12: =Input!$E$24 -> 72 | Z12: 0 | AA12: 0 | AB12: =Income_Expense!$D$9+Income_Expense!$D$10+Income_Expense!$D$11+Income_Expense!$D$12+Income_Expense!$D$13 -> 176033.625 | AC12: 176033.625 | AD12: =Income_Expense!$D$30 -> 153020.3259 | AE12: =Income_Expense!$D$33 -> 13000 | AF12: 166020.3259 | AG12: 10013.2991 | AH12: =IF(Z10<1,0,AG12/$AH$30) -> 0 | AI12: 0
B13: 2.9 | C13: =IF(Input!$E$50<1,0,AG13) -> 0 | D13: =IF(Input!$E$50<1,0,AH13) -> 0 | E13: =IF(Input!$E$50<1,0,AI13) -> 0 | U13: =Input!$E$50 -> 0 | V13: =Input!$E$55 -> 612 | W13: =Input!$E$24 -> 72 | Z13: 0 | AA13: 0 | AB13: =Income_Expense!$D$9+Income_Expense!$D$10+Income_Expense!$D$11+Income_Expense!$D$12+Income_Expense!$D$13 -> 176033.625 | AC13: 176033.625 | AD13: =Income_Expense!$D$30 -> 153020.3259 | AE13: =Income_Expense!$D$33 -> 13000 | AF13: 166020.3259 | AG13: 10013.2991 | AH13: 0 | AI13: 0
B14: 2.85 | C14: =IF(Input!$E$50<1,0,AG14) -> 0 | D14: =IF(Input!$E$50<1,0,AH14) -> 0 | E14: =IF(Input!$E$50<1,0,AI14) -> 0 | U14: =Input!$E$50 -> 0 | V14: =Input!$E$55 -> 612 | W14: =Input!$E$24 -> 72 | Z14: 0 | AA14: 0 | AB14: =Income_Expense!$D$9+Income_Expense!$D$10+Income_Expense!$D$11+Income_Expense!$D$12+Income_Expense!$D$13 -> 176033.625 | AC14: 176033.625 | AD14: =Income_Expense!$D$30 -> 153020.3259 | AE14: =Income_Expense!$D$33 -> 13000 | AF14: 166020.3259 | AG14: 10013.2991 | AH14: 0 | AI14: 0
B15: 2.8 | C15: =IF(Input!$E$50<1,0,AG15) -> 0 | D15: =IF(Input!$E$50<1,0,AH15) -> 0 | E15: =IF(Input!$E$50<1,0,AI15) -> 0 | U15: =Input!$E$50 -> 0 | V15: =Input!$E$55 -> 612 | W15: =Input!$E$24 -> 72 | Z15: 0 | AA15: 0 | AB15: =Income_Expense!$D$9+Income_Expense!$D$10+Income_Expense!$D$11+Income_Expense!$D$12+Income_Expense!$D$13 -> 176033.625 | AC15: 176033.625 | AD15: =Income_Expense!$D$30 -> 153020.3259 | AE15: =Income_Expense!$D$33 -> 13000 | AF15: 166020.3259 | AG15: 10013.2991 | AH15: 0 | AI15: 0
B16: 2.75 | C16: =IF(Input!$E$50<1,0,AG16) -> 0 | D16: =IF(Input!$E$50<1,0,AH16) -> 0 | E16: =IF(Input!$E$50<1,0,AI16) -> 0 | U16: =Input!$E$50 -> 0 | V16: =Input!$E$55 -> 612 | W16: =Input!$E$24 -> 72 | Z16: =IF(U16>1,B16/$B$19*$U$31*$U$32*U16,0) -> 0 | AA16: =IF(V16>1,C16/$B$19*$V$31*$V$32*V16,0) -> 0 | AB16: =Income_Expense!$D$9+Income_Expense!$D$10+Income_Expense!$D$11+Income_Expense!$D$12+Income_Expense!$D$13 -> 176033.625 | AC16: 176033.625 | AD16: =Income_Expense!$D$30 -> 153020.3259 | AE16: =Income_Expense!$D$33 -> 13000 | AF16: 166020.3259 | AG16: 10013.2991 | AH16: 0 | AI16: 0
B17: 2.7 | C17: =IF(Input!$E$50<1,0,AG17) -> 0 | D17: =IF(Input!$E$50<1,0,AH17) -> 0 | E17: =IF(Input!$E$50<1,0,AI17) -> 0 | U17: =Input!$E$50 -> 0 | V17: =Input!$E$55 -> 612 | W17: =Input!$E$24 -> 72 | Z17: =IF(U17>1,B17/$B$19*$U$31*$U$32*U17,0) -> 0 | AA17: =IF(V17>1,C17/$B$19*$V$31*$V$32*V17,0) -> 0 | AB17: =Income_Expense!$D$9+Income_Expense!$D$10+Income_Expense!$D$11+Income_Expense!$D$12+Income_Expense!$D$13 -> 176033.625 | AC17: 176033.625 | AD17: =Income_Expense!$D$30 -> 153020.3259 | AE17: =Income_Expense!$D$33 -> 13000 | AF17: 166020.3259 | AG17: 10013.2991 | AH17: 0 | AI17: 0
B18: 2.65 | C18: =IF(Input!$E$50<1,0,AG18) -> 0 | D18: =IF(Input!$E$50<1,0,AH18) -> 0 | E18: =IF(Input!$E$50<1,0,AI18) -> 0 | U18: =Input!$E$50 -> 0 | V18: =Input!$E$55 -> 612 | W18: =Input!$E$24 -> 72 | Z18: =IF(U18>1,B18/$B$19*$U$31*$U$32*U18,0) -> 0 | AA18: =IF(V18>1,C18/$B$19*$V$31*$V$32*V18,0) -> 0 | AB18: =Income_Expense!$D$9+Income_Expense!$D$10+Income_Expense!$D$11+Income_Expense!$D$12+Income_Expense!$D$13 -> 176033.625 | AC18: 176033.625 | AD18: =Income_Expense!$D$30 -> 153020.3259 | AE18: =Income_Expense!$D$33 -> 13000 | AF18: 166020.3259 | AG18: 10013.2991 | AH18: 0 | AI18: 0
A19: Base | B19: =Input!$E$52 -> 2.6 | C19: =IF(Input!$E$50<1,0,AG19) -> 0 | D19: =IF(Input!$E$50<1,0,AH19) -> 0 | E19: =IF(Input!$E$50<1,0,AI19) -> 0 | U19: =Input!$E$50 -> 0 | V19: =Input!$E$55 -> 612 | W19: =Input!$E$24 -> 72 | Z19: =IF(U19>1,B19/$B$19*$U$31*$U$32*U19,0) -> 0 | AA19: =IF(V19>1,C19/$B$19*$V$31*$V$32*V19,0) -> 0 | AB19: =Income_Expense!$D$9+Income_Expense!$D$10+Income_Expense!$D$11+Income_Expense!$D$12+Income_Expense!$D$13 -> 176033.625 | AC19: 176033.625 | AD19: =Income_Expense!$D$30 -> 153020.3259 | AE19: =Income_Expense!$D$33 -> 13000 | AF19: 166020.3259 | AG19: 10013.2991 | AH19: 0 | AI19: 0
B20: =B19-0.1 -> 2.5 | C20: =IF(Input!$E$50<1,0,AG20) -> 0 | D20: =IF(Input!$E$50<1,0,AH20) -> 0 | E20: =IF(Input!$E$50<1,0,AI20) -> 0 | U20: =Input!$E$50 -> 0 | V20: =Input!$E$55 -> 612 | W20: =Input!$E$24 -> 72 | Z20: =IF(U20>1,B20/$B$19*$U$31*$U$32*U20,0) -> 0 | AA20: =IF(V20>1,C20/$B$19*$V$31*$V$32*V20,0) -> 0 | AB20: =Income_Expense!$D$9+Income_Expense!$D$10+Income_Expense!$D$11+Income_Expense!$D$12+Income_Expense!$D$13 -> 176033.625 | AC20: 176033.625 | AD20: =Income_Expense!$D$30 -> 153020.3259 | AE20: =Income_Expense!$D$33 -> 13000 | AF20: 166020.3259 | AG20: 10013.2991 | AH20: 0 | AI20: 0
B21: =B20-0.05 -> 2.45 | C21: =IF(Input!$E$50<1,0,AG21) -> 0 | D21: =IF(Input!$E$50<1,0,AH21) -> 0 | E21: =IF(Input!$E$50<1,0,AI21) -> 0 | U21: =Input!$E$50 -> 0 | V21: =Input!$E$55 -> 612 | W21: =Input!$E$24 -> 72 | Z21: =IF(U21>1,B21/$B$19*$U$31*$U$32*U21,0) -> 0 | AA21: =IF(V21>1,C21/$B$19*$V$31*$V$32*V21,0) -> 0 | AB21: =Income_Expense!$D$9+Income_Expense!$D$10+Income_Expense!$D$11+Income_Expense!$D$12+Income_Expense!$D$13 -> 176033.625 | AC21: 176033.625 | AD21: =Income_Expense!$D$30 -> 153020.3259 | AE21: =Income_Expense!$D$33 -> 13000 | AF21: 166020.3259 | AG21: 10013.2991 | AH21: 0 | AI21: 0
B22: 2.4 | C22: =IF(Input!$E$50<1,0,AG22) -> 0 | D22: =IF(Input!$E$50<1,0,AH22) -> 0 | E22: =IF(Input!$E$50<1,0,AI22) -> 0 | U22: =Input!$E$50 -> 0 | V22: =Input!$E$55 -> 612 | W22: =Input!$E$24 -> 72 | Z22: 0 | AA22: 0 | AB22: =Income_Expense!$D$9+Income_Expense!$D$10+Income_Expense!$D$11+Income_Expense!$D$12+Income_Expense!$D$13 -> 176033.625 | AC22: 176033.625 | AD22: =Income_Expense!$D$30 -> 153020.3259 | AE22: =Income_Expense!$D$33 -> 13000 | AF22: 166020.3259 | AG22: 10013.2991 | AH22: 0 | AI22: 0
B23: 2.35 | C23: =IF(Input!$E$50<1,0,AG23) -> 0 | D23: =IF(Input!$E$50<1,0,AH23) -> 0 | E23: =IF(Input!$E$50<1,0,AI23) -> 0 | U23: =Input!$E$50 -> 0 | V23: =Input!$E$55 -> 612 | W23: =Input!$E$24 -> 72 | Z23: 0 | AA23: 0 | AB23: =Income_Expense!$D$9+Income_Expense!$D$10+Income_Expense!$D$11+Income_Expense!$D$12+Income_Expense!$D$13 -> 176033.625 | AC23: 176033.625 | AD23: =Income_Expense!$D$30 -> 153020.3259 | AE23: =Income_Expense!$D$33 -> 13000 | AF23: 166020.3259 | AG23: 10013.2991 | AH23: 0 | AI23: 0
B24: 2.3 | C24: =IF(Input!$E$50<1,0,AG24) -> 0 | D24: =IF(Input!$E$50<1,0,AH24) -> 0 | E24: =IF(Input!$E$50<1,0,AI24) -> 0 | U24: =Input!$E$50 -> 0 | V24: =Input!$E$55 -> 612 | W24: =Input!$E$24 -> 72 | Z24: 0 | AA24: 0 | AB24: =Income_Expense!$D$9+Income_Expense!$D$10+Income_Expense!$D$11+Income_Expense!$D$12+Income_Expense!$D$13 -> 176033.625 | AC24: 176033.625 | AD24: =Income_Expense!$D$30 -> 153020.3259 | AE24: =Income_Expense!$D$33 -> 13000 | AF24: 166020.3259 | AG24: 10013.2991 | AH24: 0 | AI24: 0
B25: 2.25 | C25: =IF(Input!$E$50<1,0,AG25) -> 0 | D25: =IF(Input!$E$50<1,0,AH25) -> 0 | E25: =IF(Input!$E$50<1,0,AI25) -> 0 | U25: =Input!$E$50 -> 0 | V25: =Input!$E$55 -> 612 | W25: =Input!$E$24 -> 72 | Z25: 0 | AA25: 0 | AB25: =Income_Expense!$D$9+Income_Expense!$D$10+Income_Expense!$D$11+Income_Expense!$D$12+Income_Expense!$D$13 -> 176033.625 | AC25: 176033.625 | AD25: =Income_Expense!$D$30 -> 153020.3259 | AE25: =Income_Expense!$D$33 -> 13000 | AF25: 166020.3259 | AG25: 10013.2991 | AH25: 0 | AI25: 0
B26: 2.2 | C26: =IF(Input!$E$50<1,0,AG26) -> 0 | D26: =IF(Input!$E$50<1,0,AH26) -> 0 | E26: =IF(Input!$E$50<1,0,AI26) -> 0 | U26: =Input!$E$50 -> 0 | V26: =Input!$E$55 -> 612 | W26: =Input!$E$24 -> 72 | Z26: 0 | AA26: 0 | AB26: =Income_Expense!$D$9+Income_Expense!$D$10+Income_Expense!$D$11+Income_Expense!$D$12+Income_Expense!$D$13 -> 176033.625 | AC26: 176033.625 | AD26: =Income_Expense!$D$30 -> 153020.3259 | AE26: =Income_Expense!$D$33 -> 13000 | AF26: 166020.3259 | AG26: 10013.2991 | AH26: 0 | AI26: 0
B27: 2.15 | C27: =IF(Input!$E$50<1,0,AG27) -> 0 | D27: =IF(Input!$E$50<1,0,AH27) -> 0 | E27: =IF(Input!$E$50<1,0,AI27) -> 0 | U27: =Input!$E$50 -> 0 | V27: =Input!$E$55 -> 612 | W27: =Input!$E$24 -> 72 | Z27: =IF(U27>1,B27/$B$19*$U$31*$U$32*U27,0) -> 0 | AA27: =IF(V27>1,C27/$B$19*$V$31*$V$32*V27,0) -> 0 | AB27: =Income_Expense!$D$9+Income_Expense!$D$10+Income_Expense!$D$11+Income_Expense!$D$12+Income_Expense!$D$13 -> 176033.625 | AC27: 176033.625 | AD27: =Income_Expense!$D$30 -> 153020.3259 | AE27: =Income_Expense!$D$33 -> 13000 | AF27: 166020.3259 | AG27: 10013.2991 | AH27: 0 | AI27: 0
B28: 2.1 | C28: =IF(Input!$E$50<1,0,AG28) -> 0 | D28: =IF(Input!$E$50<1,0,AH28) -> 0 | E28: =IF(Input!$E$50<1,0,AI28) -> 0 | U28: =Input!$E$50 -> 0 | V28: =Input!$E$55 -> 612 | W28: =Input!$E$24 -> 72 | Z28: =IF(U28>1,B28/$B$19*$U$31*$U$32*U28,0) -> 0 | AA28: =IF(V28>1,C28/$B$19*$V$31*$V$32*V28,0) -> 0 | AB28: =Income_Expense!$D$9+Income_Expense!$D$10+Income_Expense!$D$11+Income_Expense!$D$12+Income_Expense!$D$13 -> 176033.625 | AC28: 176033.625 | AD28: =Income_Expense!$D$30 -> 153020.3259 | AE28: =Income_Expense!$D$33 -> 13000 | AF28: 166020.3259 | AG28: 10013.2991 | AH28: 0 | AI28: 0
B29: 2.05 | C29: =IF(Input!$E$50<1,0,AG29) -> 0 | D29: =AH29 -> 0 | E29: =IF(Input!$E$50<1,0,AI29) -> 0 | U29: =Input!$E$50 -> 0 | V29: =Input!$E$55 -> 612 | W29: =Input!$E$24 -> 72 | Z29: =IF(U29>1,B29/$B$19*$U$31*$U$32*U29,0) -> 0 | AA29: =IF(V29>1,C29/$B$19*$V$31*$V$32*V29,0) -> 0 | AB29: =Income_Expense!$D$9+Income_Expense!$D$10+Income_Expense!$D$11+Income_Expense!$D$12+Income_Expense!$D$13 -> 176033.625 | AC29: 176033.625 | AD29: =Income_Expense!$D$30 -> 153020.3259 | AE29: =Income_Expense!$D$33 -> 13000 | AF29: 166020.3259 | AG29: 10013.2991 | AH29: 0 | AI29: 0
AH30: =Income_Expense!$D$99 -> 400 | AI30: =U29+V29 -> 612
T31: Base Prices | U31: =AVERAGE(Input!$E$52:'Input'!$G$52) -> 2.6 | V31: =AVERAGE(Input!$E$57:'Input'!$G$57) -> 2.3 | W31: =AVERAGE(Input!$E$57:'Input'!$G$57) -> 2.3
T32: Weight | U32: =AVERAGE(Input!$E$51:'Input'!$G$51) -> 0 | V32: =AVERAGE(Input!$E$56:'Input'!$G$56) -> 115 | W32: =AVERAGE(Input!$E$56:'Input'!$G$56) -> 115
B35: Sensitivity To Market Price, (>90lbs) Slaughter Lambs
B36: Market Price | D36: Net Income | U36: Number of Animals - Marketings | AC36: Total | AE36: Expenses | AF36: Total | AH36: Net Income
B37: $ Per LB | C37: Total | D37: $/Per Ewe | E37: $/Per Lamb | U37: FL 90- | V37: ML 90+ | W37: Ewes K.B. | Z37: Feeder | AA37: Market Lamb | AB37: Other | AC37: Revenue | AD37: Variable | AE37: Fixed | AF37: Costs | AG37: Total | AH37: Per Ewe | AI37: Per Lamb
B38: =B39+0.05 -> 2.8 | C38: =IF(Input!$E$55<1,0,AG38) -> 45203.2991 | D38: =IF(Input!$E$55<1,0,AH38) -> 113.0082478 | E38: =IF(Input!$E$55<1,0,AI38) -> 73.86159984 | U38: =Input!$E$50 -> 0 | V38: =Input!$E$55 -> 612 | W38: =Input!$E$24 -> 72 | Z38: =(B38/$B$48)*$U$60*$U$61*U38 -> 0 | AA38: =IF(V38>0,V38*B38*$V$61,0) -> 197064 | AB38: =Income_Expense!$D$8+Income_Expense!$D$10+Income_Expense!$D$11+Income_Expense!$D$12+Income_Expense!$D$13 -> 14159.625 | AC38: =Z38+AA38+AB38 -> 211223.625 | AD38: =Income_Expense!$D$30 -> 153020.3259 | AE38: =Income_Expense!$D$33 -> 13000 | AF38: =AD38+AE38 -> 166020.3259 | AG38: =AC38-AF38 -> 45203.2991 | AH38: =IF(AA38<1,0,AG38/$AH$59) -> 113.0082478 | AI38: =IF(AA38<1,0,AG38/$AI$59) -> 73.86159984
B39: 2.75 | C39: =IF(Input!$E$55<1,0,AG39) -> 41684.2991 | D39: =IF(Input!$E$55<1,0,AH39) -> 104.2107478 | E39: =IF(Input!$E$55<1,0,AI39) -> 68.11159984 | U39: =Input!$E$50 -> 0 | V39: =Input!$E$55 -> 612 | W39: =Input!$E$24 -> 72 | Z39: 0 | AA39: =IF(V39>0,V39*B39*$V$61,0) -> 193545 | AB39: =Income_Expense!$D$8+Income_Expense!$D$10+Income_Expense!$D$11+Income_Expense!$D$12+Income_Expense!$D$13 -> 14159.625 | AC39: =Z39+AA39+AB39 -> 207704.625 | AD39: =Income_Expense!$D$30 -> 153020.3259 | AE39: =Income_Expense!$D$33 -> 13000 | AF39: =AD39+AE39 -> 166020.3259 | AG39: =AC39-AF39 -> 41684.2991 | AH39: =IF(AA38<1,0,AG39/$AH$59) -> 104.2107478 | AI39: =IF(AA39<1,0,AG39/$AI$59) -> 68.11159984
B40: 2.7 | C40: =IF(Input!$E$55<1,0,AG40) -> 38165.2991 | D40: =IF(Input!$E$55<1,0,AH40) -> 95.41324776 | E40: =IF(Input!$E$55<1,0,AI40) -> 62.36159984 | U40: =Input!$E$50 -> 0 | V40: =Input!$E$55 -> 612 | W40: =Input!$E$24 -> 72 | Z40: 0 | AA40: 190026 | AB40: =Income_Expense!$D$8+Income_Expense!$D$10+Income_Expense!$D$11+Income_Expense!$D$12+Income_Expense!$D$13 -> 14159.625 | AC40: 204185.625 | AD40: =Income_Expense!$D$30 -> 153020.3259 | AE40: =Income_Expense!$D$33 -> 13000 | AF40: 166020.3259 | AG40: 38165.2991 | AH40: =IF(AA39<1,0,AG40/$AH$59) -> 95.41324776 | AI40: =IF(AA40<1,0,AG40/$AI$59) -> 62.36159984
B41: 2.65 | C41: =IF(Input!$E$55<1,0,AG41) -> 34646.2991 | D41: =IF(Input!$E$55<1,0,AH41) -> 86.61574776 | E41: =IF(Input!$E$55<1,0,AI41) -> 56.61159984 | U41: =Input!$E$50 -> 0 | V41: =Input!$E$55 -> 612 | W41: =Input!$E$24 -> 72 | Z41: 0 | AA41: 186507 | AB41: =Income_Expense!$D$8+Income_Expense!$D$10+Income_Expense!$D$11+Income_Expense!$D$12+Income_Expense!$D$13 -> 14159.625 | AC41: 200666.625 | AD41: =Income_Expense!$D$30 -> 153020.3259 | AE41: =Income_Expense!$D$33 -> 13000 | AF41: 166020.3259 | AG41: 34646.2991 | AH41: 86.61574776 | AI41: 56.61159984
B42: 2.6 | C42: =IF(Input!$E$55<1,0,AG42) -> 31127.2991 | D42: =IF(Input!$E$55<1,0,AH42) -> 77.81824776 | E42: =IF(Input!$E$55<1,0,AI42) -> 50.86159984 | U42: =Input!$E$50 -> 0 | V42: =Input!$E$55 -> 612 | W42: =Input!$E$24 -> 72 | Z42: 0 | AA42: 182988 | AB42: =Income_Expense!$D$8+Income_Expense!$D$10+Income_Expense!$D$11+Income_Expense!$D$12+Income_Expense!$D$13 -> 14159.625 | AC42: 197147.625 | AD42: =Income_Expense!$D$30 -> 153020.3259 | AE42: =Income_Expense!$D$33 -> 13000 | AF42: 166020.3259 | AG42: 31127.2991 | AH42: 77.81824776 | AI42: 50.86159984
B43: 2.55 | C43: =IF(Input!$E$55<1,0,AG43) -> 27608.2991 | D43: =IF(Input!$E$55<1,0,AH43) -> 69.02074776 | E43: =IF(Input!$E$55<1,0,AI43) -> 45.11159984 | U43: =Input!$E$50 -> 0 | V43: =Input!$E$55 -> 612 | W43: =Input!$E$24 -> 72 | Z43: 0 | AA43: 179469 | AB43: =Income_Expense!$D$8+Income_Expense!$D$10+Income_Expense!$D$11+Income_Expense!$D$12+Income_Expense!$D$13 -> 14159.625 | AC43: 193628.625 | AD43: =Income_Expense!$D$30 -> 153020.3259 | AE43: =Income_Expense!$D$33 -> 13000 | AF43: 166020.3259 | AG43: 27608.2991 | AH43: 69.02074776 | AI43: 45.11159984
B44: 2.5 | C44: =IF(Input!$E$55<1,0,AG44) -> 24089.2991 | D44: =IF(Input!$E$55<1,0,AH44) -> 60.22324776 | E44: =IF(Input!$E$55<1,0,AI44) -> 39.36159984 | U44: =Input!$E$50 -> 0 | V44: =Input!$E$55 -> 612 | W44: =Input!$E$24 -> 72 | Z44: 0 | AA44: 175950 | AB44: =Income_Expense!$D$8+Income_Expense!$D$10+Income_Expense!$D$11+Income_Expense!$D$12+Income_Expense!$D$13 -> 14159.625 | AC44: 190109.625 | AD44: =Income_Expense!$D$30 -> 153020.3259 | AE44: =Income_Expense!$D$33 -> 13000 | AF44: 166020.3259 | AG44: 24089.2991 | AH44: 60.22324776 | AI44: 39.36159984
B45: 2.45 | C45: =IF(Input!$E$55<1,0,AG45) -> 20570.2991 | D45: =IF(Input!$E$55<1,0,AH45) -> 51.42574776 | E45: =IF(Input!$E$55<1,0,AI45) -> 33.61159984 | U45: =Input!$E$50 -> 0 | V45: =Input!$E$55 -> 612 | W45: =Input!$E$24 -> 72 | Z45: 0 | AA45: 172431 | AB45: =Income_Expense!$D$8+Income_Expense!$D$10+Income_Expense!$D$11+Income_Expense!$D$12+Income_Expense!$D$13 -> 14159.625 | AC45: 186590.625 | AD45: =Income_Expense!$D$30 -> 153020.3259 | AE45: =Income_Expense!$D$33 -> 13000 | AF45: 166020.3259 | AG45: 20570.2991 | AH45: 51.42574776 | AI45: 33.61159984
B46: 2.4 | C46: =IF(Input!$E$55<1,0,AG46) -> 17051.2991 | D46: =IF(Input!$E$55<1,0,AH46) -> 42.62824776 | E46: =IF(Input!$E$55<1,0,AI46) -> 27.86159984 | U46: =Input!$E$50 -> 0 | V46: =Input!$E$55 -> 612 | W46: =Input!$E$24 -> 72 | Z46: 0 | AA46: 168912 | AB46: =Income_Expense!$D$8+Income_Expense!$D$10+Income_Expense!$D$11+Income_Expense!$D$12+Income_Expense!$D$13 -> 14159.625 | AC46: 183071.625 | AD46: =Income_Expense!$D$30 -> 153020.3259 | AE46: =Income_Expense!$D$33 -> 13000 | AF46: 166020.3259 | AG46: 17051.2991 | AH46: 42.62824776 | AI46: 27.86159984
B47: 2.35 | C47: =IF(Input!$E$55<1,0,AG47) -> 13532.2991 | D47: =IF(Input!$E$55<1,0,AH47) -> 33.83074776 | E47: =IF(Input!$E$55<1,0,AI47) -> 22.11159984 | U47: =Input!$E$50 -> 0 | V47: =Input!$E$55 -> 612 | W47: =Input!$E$24 -> 72 | Z47: 0 | AA47: 165393 | AB47: =Income_Expense!$D$8+Income_Expense!$D$10+Income_Expense!$D$11+Income_Expense!$D$12+Income_Expense!$D$13 -> 14159.625 | AC47: 179552.625 | AD47: =Income_Expense!$D$30 -> 153020.3259 | AE47: =Income_Expense!$D$33 -> 13000 | AF47: 166020.3259 | AG47: 13532.2991 | AH47: 33.83074776 | AI47: 22.11159984
A48: Base | B48: =Input!$E$57 -> 2.3 | C48: =IF(Input!$E$55<1,0,AG48) -> 10013.2991 | D48: =IF(Input!$E$55<1,0,AH48) -> 25.03324776 | E48: =IF(Input!$E$55<1,0,AI48) -> 16.36159984 | U48: =Input!$E$50 -> 0 | V48: =Input!$E$55 -> 612 | W48: =Input!$E$24 -> 72 | Z48: 0 | AA48: 161874 | AB48: =Income_Expense!$D$8+Income_Expense!$D$10+Income_Expense!$D$11+Income_Expense!$D$12+Income_Expense!$D$13 -> 14159.625 | AC48: 176033.625 | AD48: =Income_Expense!$D$30 -> 153020.3259 | AE48: =Income_Expense!$D$33 -> 13000 | AF48: 166020.3259 | AG48: 10013.2991 | AH48: 25.03324776 | AI48: 16.36159984
B49: =B48-0.05 -> 2.25 | C49: =IF(Input!$E$55<1,0,AG49) -> 6494.299102 | D49: =IF(Input!$E$55<1,0,AH49) -> 16.23574776 | E49: =IF(Input!$E$55<1,0,AI49) -> 10.61159984 | U49: =Input!$E$50 -> 0 | V49: =Input!$E$55 -> 612 | W49: =Input!$E$24 -> 72 | Z49: 0 | AA49: 158355 | AB49: =Income_Expense!$D$8+Income_Expense!$D$10+Income_Expense!$D$11+Income_Expense!$D$12+Income_Expense!$D$13 -> 14159.625 | AC49: 172514.625 | AD49: =Income_Expense!$D$30 -> 153020.3259 | AE49: =Income_Expense!$D$33 -> 13000 | AF49: 166020.3259 | AG49: 6494.299102 | AH49: 16.23574776 | AI49: 10.61159984
B50: =B49-0.05 -> 2.2 | C50: =IF(Input!$E$55<1,0,AG50) -> 2975.299102 | D50: =IF(Input!$E$55<1,0,AH50) -> 7.438247756 | E50: =IF(Input!$E$55<1,0,AI50) -> 4.861599841 | U50: =Input!$E$50 -> 0 | V50: =Input!$E$55 -> 612 | W50: =Input!$E$24 -> 72 | Z50: 0 | AA50: 154836 | AB50: =Income_Expense!$D$8+Income_Expense!$D$10+Income_Expense!$D$11+Income_Expense!$D$12+Income_Expense!$D$13 -> 14159.625 | AC50: 168995.625 | AD50: =Income_Expense!$D$30 -> 153020.3259 | AE50: =Income_Expense!$D$33 -> 13000 | AF50: 166020.3259 | AG50: 2975.299102 | AH50: 7.438247756 | AI50: 4.861599841
B51: 2.15 | C51: =IF(Input!$E$55<1,0,AG51) -> -543.7008975 | D51: =IF(Input!$E$55<1,0,AH51) -> -1.359252244 | E51: =IF(Input!$E$55<1,0,AI51) -> -0.8884001593 | U51: =Input!$E$50 -> 0 | V51: =Input!$E$55 -> 612 | W51: =Input!$E$24 -> 72 | Z51: 0 | AA51: 151317 | AB51: =Income_Expense!$D$8+Income_Expense!$D$10+Income_Expense!$D$11+Income_Expense!$D$12+Income_Expense!$D$13 -> 14159.625 | AC51: 165476.625 | AD51: =Income_Expense!$D$30 -> 153020.3259 | AE51: =Income_Expense!$D$33 -> 13000 | AF51: 166020.3259 | AG51: -543.7008975 | AH51: -1.359252244 | AI51: -0.8884001593
B52: 2.1 | C52: =IF(Input!$E$55<1,0,AG52) -> -4062.700898 | D52: =IF(Input!$E$55<1,0,AH52) -> -10.15675224 | E52: =IF(Input!$E$55<1,0,AI52) -> -6.638400159 | U52: =Input!$E$50 -> 0 | V52: =Input!$E$55 -> 612 | W52: =Input!$E$24 -> 72 | Z52: 0 | AA52: 147798 | AB52: =Income_Expense!$D$8+Income_Expense!$D$10+Income_Expense!$D$11+Income_Expense!$D$12+Income_Expense!$D$13 -> 14159.625 | AC52: 161957.625 | AD52: =Income_Expense!$D$30 -> 153020.3259 | AE52: =Income_Expense!$D$33 -> 13000 | AF52: 166020.3259 | AG52: -4062.700898 | AH52: -10.15675224 | AI52: -6.638400159
B53: 2.05 | C53: =IF(Input!$E$55<1,0,AG53) -> -7581.700898 | D53: =IF(Input!$E$55<1,0,AH53) -> -18.95425224 | E53: =IF(Input!$E$55<1,0,AI53) -> -12.38840016 | U53: =Input!$E$50 -> 0 | V53: =Input!$E$55 -> 612 | W53: =Input!$E$24 -> 72 | Z53: 0 | AA53: 144279 | AB53: =Income_Expense!$D$8+Income_Expense!$D$10+Income_Expense!$D$11+Income_Expense!$D$12+Income_Expense!$D$13 -> 14159.625 | AC53: 158438.625 | AD53: =Income_Expense!$D$30 -> 153020.3259 | AE53: =Income_Expense!$D$33 -> 13000 | AF53: 166020.3259 | AG53: -7581.700898 | AH53: -18.95425224 | AI53: -12.38840016
B54: 2 | C54: =IF(Input!$E$55<1,0,AG54) -> -11100.7009 | D54: =IF(Input!$E$55<1,0,AH54) -> -27.75175224 | E54: =IF(Input!$E$55<1,0,AI54) -> -18.13840016 | U54: =Input!$E$50 -> 0 | V54: =Input!$E$55 -> 612 | W54: =Input!$E$24 -> 72 | Z54: 0 | AA54: 140760 | AB54: =Income_Expense!$D$8+Income_Expense!$D$10+Income_Expense!$D$11+Income_Expense!$D$12+Income_Expense!$D$13 -> 14159.625 | AC54: 154919.625 | AD54: =Income_Expense!$D$30 -> 153020.3259 | AE54: =Income_Expense!$D$33 -> 13000 | AF54: 166020.3259 | AG54: -11100.7009 | AH54: -27.75175224 | AI54: -18.13840016
B55: 1.95 | C55: =IF(Input!$E$55<1,0,AG55) -> -14619.7009 | D55: =IF(Input!$E$55<1,0,AH55) -> -36.54925224 | E55: =IF(Input!$E$55<1,0,AI55) -> -23.88840016 | U55: =Input!$E$50 -> 0 | V55: =Input!$E$55 -> 612 | W55: =Input!$E$24 -> 72 | Z55: 0 | AA55: 137241 | AB55: =Income_Expense!$D$8+Income_Expense!$D$10+Income_Expense!$D$11+Income_Expense!$D$12+Income_Expense!$D$13 -> 14159.625 | AC55: 151400.625 | AD55: =Income_Expense!$D$30 -> 153020.3259 | AE55: =Income_Expense!$D$33 -> 13000 | AF55: 166020.3259 | AG55: -14619.7009 | AH55: -36.54925224 | AI55: -23.88840016
B56: 1.9 | C56: =IF(Input!$E$55<1,0,AG56) -> -18138.7009 | D56: =IF(Input!$E$55<1,0,AH56) -> -45.34675224 | E56: =IF(Input!$E$55<1,0,AI56) -> -29.63840016 | U56: =Input!$E$50 -> 0 | V56: =Input!$E$55 -> 612 | W56: =Input!$E$24 -> 72 | Z56: 0 | AA56: 133722 | AB56: =Income_Expense!$D$8+Income_Expense!$D$10+Income_Expense!$D$11+Income_Expense!$D$12+Income_Expense!$D$13 -> 14159.625 | AC56: 147881.625 | AD56: =Income_Expense!$D$30 -> 153020.3259 | AE56: =Income_Expense!$D$33 -> 13000 | AF56: 166020.3259 | AG56: -18138.7009 | AH56: -45.34675224 | AI56: -29.63840016
B57: 1.85 | C57: =IF(Input!$E$55<1,0,AG57) -> -21657.7009 | D57: =IF(Input!$E$55<1,0,AH57) -> -54.14425224 | E57: =IF(Input!$E$55<1,0,AI57) -> -35.38840016 | U57: =Input!$E$50 -> 0 | V57: =Input!$E$55 -> 612 | W57: =Input!$E$24 -> 72 | Z57: 0 | AA57: 130203 | AB57: =Income_Expense!$D$8+Income_Expense!$D$10+Income_Expense!$D$11+Income_Expense!$D$12+Income_Expense!$D$13 -> 14159.625 | AC57: 144362.625 | AD57: =Income_Expense!$D$30 -> 153020.3259 | AE57: =Income_Expense!$D$33 -> 13000 | AF57: 166020.3259 | AG57: -21657.7009 | AH57: -54.14425224 | AI57: -35.38840016
B58: 1.8 | C58: =IF(Input!$E$55<1,0,AG58) -> -25176.7009 | D58: =IF(Input!$E$55<1,0,AH58) -> -62.94175224 | E58: =IF(Input!$E$55<1,0,AI58) -> -41.13840016 | U58: =Input!$E$50 -> 0 | V58: =Input!$E$55 -> 612 | W58: =Input!$E$24 -> 72 | Z58: 0 | AA58: 126684 | AB58: =Income_Expense!$D$8+Income_Expense!$D$10+Income_Expense!$D$11+Income_Expense!$D$12+Income_Expense!$D$13 -> 14159.625 | AC58: 140843.625 | AD58: =Income_Expense!$D$30 -> 153020.3259 | AE58: =Income_Expense!$D$33 -> 13000 | AF58: 166020.3259 | AG58: -25176.7009 | AH58: -62.94175224 | AI58: -41.13840016
AH59: =Income_Expense!$D$99 -> 400 | AI59: =U58+V58 -> 612
T60: Base Prices | U60: =AVERAGE(Input!$E$52:'Input'!$G$52) -> 2.6 | V60: =AVERAGE(Input!$E$57:'Input'!$G$57) -> 2.3 | W60: =AVERAGE(Input!$E$57:'Input'!$G$57) -> 2.3
T61: Weight | U61: =AVERAGE(Input!$E$51:'Input'!$G$51) -> 0 | V61: =AVERAGE(Input!$E$56:'Input'!$G$56) -> 115 | W61: =AVERAGE(Input!$E$56:'Input'!$G$56) -> 115
B64: Sensitivity to Lambing Productivity
B65: Productivity | D65: Net Income | T65: TOTAL | U65: Number of Animals - Marketings | Y65: Loss | Z65: Lambs | AA65: Loss | AB65: Lambs | AD65: Market and Feeder Lambs | AH65: >90 | AI65: <90 | AK65: Total | AM65: Variable Expenses | AO65: Fixed | AP65: Total | AR65: Net Income | AT65: Lambs
B66: Lamb. Rate | C66: $/Per Lamb | D66: $/Per Ewe | E66: Total | T66: BASE | U66: FL 90- | V66: ML 90+ | W66: Other | X66: Born | Y66: birth-wean | Z66: weaned | AA66: wean-market | AB66: Available | AD66: ML 90+ | AE66: FL 90- | AH66: Market | AI66: Feeder | AJ66: Other Rev. | AK66: Revenue | AL66: Feed | AM66: Marketing | AN66: Other Var. | AO66: Expenses | AP66: Expenses | AQ66: Total | AR66: Per Ewe | AS66: Per Lamb | AT66: Sold
B67: =B68+0.1 -> 2.9 | C67: =AS67 -> 75.36444474 | D67: =AR67 -> 173.3382229 | E67: =AQ67 -> 69335.28916 | S67: 18 | T67: =AB67 -> 992 | U67: =(T67)*($U$86/$W$86) -> 0 | V67: =(T67)*($V$86/$W$86)-W67 -> 920 | W67: =Input!$E$24+Input!$E$61+Input!$E$63+Input!$E$65+Input!$E$89+Input!$E$98 -> 72 | X67: =(Input!$E$15*B67) -> 1160 | Y67: =ROUND(Input!$E$39*X67,0) -> 116 | Z67: =X67-Y67 -> 1044 | AA67: =ROUND(Input!$E$43*Z67,0) -> 52 | AB67: =Z67-AA67 -> 992 | AD67: =V67 -> 920 | AE67: =U67 -> 0 | AH67: =V67*$V$89*$V$90 -> 243340 | AI67: =U67*$U$89*$U$90 -> 0 | AJ67: =Income_Expense!$D$10+Income_Expense!$D$11+Income_Expense!$D$12+Income_Expense!$D$13 -> 14159.625 | AK67: =AH67+AI67+AJ67 -> 257499.625 | AL67: =Monthly!$T$119+Monthly!$U$118*(U67+V67)+Input!$E$123+Input!$E$124+Input!$E$125 -> 92189.86382 | AM67: =(AD67+AE67)*(Input!$E$355+Input!$E$360+Input!$E$365)+(Input!$E$22+Input!$E$73)*(Input!$E$356+Input!$E$361+Input!$E$366)+Input!$E$368 -> 20025.66 | AN67: =Income_Expense!$D$30-Income_Expense!$D$16-Income_Expense!$D$25 -> 62948.81202 | AO67: =Income_Expense!$D$33 -> 13000 | AP67: =AL67+AM67+AN67+AO67 -> 188164.3358 | AQ67: =AK67-AL67-AM67-AN67-AO67 -> 69335.28916 | AR67: =AQ67/$AR$88 -> 173.3382229 | AS67: =AQ67/AT67 -> 75.36444474 | AT67: =AD67+AE67 -> 920
B68: 2.8 | C68: 70.86541511 | D68: 156.9668945 | E68: 62786.75779 | S68: 17 | T68: 958 | U68: =(T68)*($U$86/$W$86) -> 0 | V68: 886 | W68: =Input!$E$24+Input!$E$61+Input!$E$63+Input!$E$65+Input!$E$89+Input!$E$98 -> 72 | X68: =(Input!$E$15*B68) -> 1120 | Y68: =ROUND(Input!$E$39*X68,0) -> 112 | Z68: =X68-Y68 -> 1008 | AA68: =ROUND(Input!$E$43*Z68,0) -> 50 | AB68: =Z68-AA68 -> 958 | AD68: 886 | AE68: =U68 -> 0 | AH68: 234347 | AI68: =U68*$U$89*$U$90 -> 0 | AJ68: =Income_Expense!$D$10+Income_Expense!$D$11+Income_Expense!$D$12+Income_Expense!$D$13 -> 14159.625 | AK68: =AH68+AI68+AJ68 -> 248506.625 | AL68: =Monthly!$T$119+Monthly!$U$118*(U68+V68)+Input!$E$123+Input!$E$124+Input!$E$125 -> 90438.99519 | AM68: =(AD68+AE68)*(Input!$E$355+Input!$E$360+Input!$E$365)+(Input!$E$22+Input!$E$73)*(Input!$E$356+Input!$E$361+Input!$E$366)+Input!$E$368 -> 19332.06 | AN68: =Income_Expense!$D$30-Income_Expense!$D$16-Income_Expense!$D$25 -> 62948.81202 | AO68: =Income_Expense!$D$33 -> 13000 | AP68: =AL68+AM68+AN68+AO68 -> 185719.8672 | AQ68: 62786.75779 | AR68: 156.9668945 | AS68: =AQ68/AT68 -> 70.86541511 | AT68: 886
B69: 2.7 | C69: 65.85854589 | D69: 140.1140564 | E69: 56045.62255 | S69: 16 | T69: 923 | U69: 0 | V69: 851 | W69: =Input!$E$24+Input!$E$61+Input!$E$63+Input!$E$65+Input!$E$89+Input!$E$98 -> 72 | X69: =(Input!$E$15*B69) -> 1080 | Y69: =ROUND(Input!$E$39*X69,0) -> 108 | Z69: =X69-Y69 -> 972 | AA69: =ROUND(Input!$E$43*Z69,0) -> 49 | AB69: =Z69-AA69 -> 923 | AD69: 851 | AE69: =U69 -> 0 | AH69: 225089.5 | AI69: =U69*$U$89*$U$90 -> 0 | AJ69: =Income_Expense!$D$10+Income_Expense!$D$11+Income_Expense!$D$12+Income_Expense!$D$13 -> 14159.625 | AK69: =AH69+AI69+AJ69 -> 239249.125 | AL69: =Monthly!$T$119+Monthly!$U$118*(U69+V69)+Input!$E$123+Input!$E$124+Input!$E$125 -> 88636.63042 | AM69: =(AD69+AE69)*(Input!$E$355+Input!$E$360+Input!$E$365)+(Input!$E$22+Input!$E$73)*(Input!$E$356+Input!$E$361+Input!$E$366)+Input!$E$368 -> 18618.06 | AN69: =Income_Expense!$D$30-Income_Expense!$D$16-Income_Expense!$D$25 -> 62948.81202 | AO69: =Income_Expense!$D$33 -> 13000 | AP69: 183203.5024 | AQ69: 56045.62255 | AR69: 140.1140564 | AS69: =AQ69/AT69 -> 65.85854589 | AT69: 851
B70: 2.6 | C70: 60.58395494 | D70: 123.742728 | E70: 49497.09118 | S70: 15 | T70: 889 | U70: 0 | V70: 817 | W70: =Input!$E$24+Input!$E$61+Input!$E$63+Input!$E$65+Input!$E$89+Input!$E$98 -> 72 | X70: =(Input!$E$15*B70) -> 1040 | Y70: =ROUND(Input!$E$39*X70,0) -> 104 | Z70: =X70-Y70 -> 936 | AA70: =ROUND(Input!$E$43*Z70,0) -> 47 | AB70: =Z70-AA70 -> 889 | AD70: 817 | AE70: =U70 -> 0 | AH70: 216096.5 | AI70: =U70*$U$89*$U$90 -> 0 | AJ70: =Income_Expense!$D$10+Income_Expense!$D$11+Income_Expense!$D$12+Income_Expense!$D$13 -> 14159.625 | AK70: =AH70+AI70+AJ70 -> 230256.125 | AL70: =Monthly!$T$119+Monthly!$U$118*(U70+V70)+Input!$E$123+Input!$E$124+Input!$E$125 -> 86885.76179 | AM70: =(AD70+AE70)*(Input!$E$355+Input!$E$360+Input!$E$365)+(Input!$E$22+Input!$E$73)*(Input!$E$356+Input!$E$361+Input!$E$366)+Input!$E$368 -> 17924.46 | AN70: =Income_Expense!$D$30-Income_Expense!$D$16-Income_Expense!$D$25 -> 62948.81202 | AO70: =Income_Expense!$D$33 -> 13000 | AP70: 180759.0338 | AQ70: 49497.09118 | AR70: 123.742728 | AS70: =AQ70/AT70 -> 60.58395494 | AT70: 817
B71: 2.5 | C71: 54.85128967 | D71: 107.3713995 | E71: 42948.55981 | S71: 14 | T71: 855 | U71: 0 | V71: 783 | W71: =Input!$E$24+Input!$E$61+Input!$E$63+Input!$E$65+Input!$E$89+Input!$E$98 -> 72 | X71: =(Input!$E$15*B71) -> 1000 | Y71: =ROUND(Input!$E$39*X71,0) -> 100 | Z71: =X71-Y71 -> 900 | AA71: =ROUND(Input!$E$43*Z71,0) -> 45 | AB71: =Z71-AA71 -> 855 | AD71: 783 | AE71: =U71 -> 0 | AH71: 207103.5 | AI71: =U71*$U$89*$U$90 -> 0 | AJ71: =Income_Expense!$D$10+Income_Expense!$D$11+Income_Expense!$D$12+Income_Expense!$D$13 -> 14159.625 | AK71: =AH71+AI71+AJ71 -> 221263.125 | AL71: =Monthly!$T$119+Monthly!$U$118*(U71+V71)+Input!$E$123+Input!$E$124+Input!$E$125 -> 85134.89316 | AM71: =(AD71+AE71)*(Input!$E$355+Input!$E$360+Input!$E$365)+(Input!$E$22+Input!$E$73)*(Input!$E$356+Input!$E$361+Input!$E$366)+Input!$E$368 -> 17230.86 | AN71: =Income_Expense!$D$30-Income_Expense!$D$16-Income_Expense!$D$25 -> 62948.81202 | AO71: =Income_Expense!$D$33 -> 13000 | AP71: 178314.5652 | AQ71: 42948.55981 | AR71: 107.3713995 | AS71: =AQ71/AT71 -> 54.85128967 | AT71: 783
B72: 2.4 | C72: 48.59816882 | D72: 91.00007111 | E72: 36400.02844 | S72: 13 | T72: 821 | U72: 0 | V72: 749 | W72: =Input!$E$24+Input!$E$61+Input!$E$63+Input!$E$65+Input!$E$89+Input!$E$98 -> 72 | X72: =(Input!$E$15*B72) -> 960 | Y72: =ROUND(Input!$E$39*X72,0) -> 96 | Z72: 864 | AA72: =ROUND(Input!$E$43*Z72,0) -> 43 | AB72: 821 | AD72: 749 | AE72: 0 | AH72: 198110.5 | AI72: 0 | AJ72: =Income_Expense!$D$10+Income_Expense!$D$11+Income_Expense!$D$12+Income_Expense!$D$13 -> 14159.625 | AK72: 212270.125 | AL72: =Monthly!$T$119+Monthly!$U$118*(U72+V72)+Input!$E$123+Input!$E$124+Input!$E$125 -> 83384.02453 | AM72: =(AD72+AE72)*(Input!$E$355+Input!$E$360+Input!$E$365)+(Input!$E$22+Input!$E$73)*(Input!$E$356+Input!$E$361+Input!$E$366)+Input!$E$368 -> 16537.26 | AN72: =Income_Expense!$D$30-Income_Expense!$D$16-Income_Expense!$D$25 -> 62948.81202 | AO72: =Income_Expense!$D$33 -> 13000 | AP72: 175870.0966 | AQ72: 36400.02844 | AR72: 91.00007111 | AS72: 48.59816882 | AT72: 749
B73: 2.3 | C73: 41.75034556 | D73: 74.62874269 | E73: 29851.49708 | S73: 12 | T73: 787 | U73: 0 | V73: 715 | W73: =Input!$E$24+Input!$E$61+Input!$E$63+Input!$E$65+Input!$E$89+Input!$E$98 -> 72 | X73: =(Input!$E$15*B73) -> 920 | Y73: =ROUND(Input!$E$39*X73,0) -> 92 | Z73: 828 | AA73: =ROUND(Input!$E$43*Z73,0) -> 41 | AB73: 787 | AD73: 715 | AE73: 0 | AH73: 189117.5 | AI73: 0 | AJ73: =Income_Expense!$D$10+Income_Expense!$D$11+Income_Expense!$D$12+Income_Expense!$D$13 -> 14159.625 | AK73: 203277.125 | AL73: =Monthly!$T$119+Monthly!$U$118*(U73+V73)+Input!$E$123+Input!$E$124+Input!$E$125 -> 81633.1559 | AM73: =(AD73+AE73)*(Input!$E$355+Input!$E$360+Input!$E$365)+(Input!$E$22+Input!$E$73)*(Input!$E$356+Input!$E$361+Input!$E$366)+Input!$E$368 -> 15843.66 | AN73: =Income_Expense!$D$30-Income_Expense!$D$16-Income_Expense!$D$25 -> 62948.81202 | AO73: =Income_Expense!$D$33 -> 13000 | AP73: 173425.6279 | AQ73: 29851.49708 | AR73: 74.62874269 | AS73: 41.75034556 | AT73: 715
B74: 2.2 | C74: 33.98582624 | D74: 57.7759046 | E74: 23110.36184 | S74: 11 | T74: 752 | U74: 0 | V74: 680 | W74: =Input!$E$24+Input!$E$61+Input!$E$63+Input!$E$65+Input!$E$89+Input!$E$98 -> 72 | X74: =(Input!$E$15*B74) -> 880 | Y74: =ROUND(Input!$E$39*X74,0) -> 88 | Z74: 792 | AA74: =ROUND(Input!$E$43*Z74,0) -> 40 | AB74: 752 | AD74: 680 | AE74: 0 | AH74: 179860 | AI74: 0 | AJ74: =Income_Expense!$D$10+Income_Expense!$D$11+Income_Expense!$D$12+Income_Expense!$D$13 -> 14159.625 | AK74: 194019.625 | AL74: =Monthly!$T$119+Monthly!$U$118*(U74+V74)+Input!$E$123+Input!$E$124+Input!$E$125 -> 79830.79113 | AM74: =(AD74+AE74)*(Input!$E$355+Input!$E$360+Input!$E$365)+(Input!$E$22+Input!$E$73)*(Input!$E$356+Input!$E$361+Input!$E$366)+Input!$E$368 -> 15129.66 | AN74: =Income_Expense!$D$30-Income_Expense!$D$16-Income_Expense!$D$25 -> 62948.81202 | AO74: =Income_Expense!$D$33 -> 13000 | AP74: 170909.2632 | AQ74: 23110.36184 | AR74: 57.7759046 | AS74: 33.98582624 | AT74: =AD74+AE74 -> 680
B75: 2.1 | C75: 25.63750847 | D75: 41.40457618 | E75: 16561.83047 | S75: 10 | T75: 718 | U75: 0 | V75: 646 | W75: =Input!$E$24+Input!$E$61+Input!$E$63+Input!$E$65+Input!$E$89+Input!$E$98 -> 72 | X75: =(Input!$E$15*B75) -> 840 | Y75: =ROUND(Input!$E$39*X75,0) -> 84 | Z75: 756 | AA75: =ROUND(Input!$E$43*Z75,0) -> 38 | AB75: 718 | AD75: 646 | AE75: 0 | AH75: 170867 | AI75: 0 | AJ75: =Income_Expense!$D$10+Income_Expense!$D$11+Income_Expense!$D$12+Income_Expense!$D$13 -> 14159.625 | AK75: 185026.625 | AL75: =Monthly!$T$119+Monthly!$U$118*(U75+V75)+Input!$E$123+Input!$E$124+Input!$E$125 -> 78079.9225 | AM75: =(AD75+AE75)*(Input!$E$355+Input!$E$360+Input!$E$365)+(Input!$E$22+Input!$E$73)*(Input!$E$356+Input!$E$361+Input!$E$366)+Input!$E$368 -> 14436.06 | AN75: =Income_Expense!$D$30-Income_Expense!$D$16-Income_Expense!$D$25 -> 62948.81202 | AO75: =Income_Expense!$D$33 -> 13000 | AP75: 168464.7945 | AQ75: 16561.83047 | AR75: 41.40457618 | AS75: 25.63750847 | AT75: =AD75+AE75 -> 646
A76: Base | B76: =Input!$E$37 -> 2 | C76: 16.36159984 | D76: 25.03324776 | E76: 10013.2991 | R76: Base | S76: 9 | T76: 684 | U76: 0 | V76: 612 | W76: =Input!$E$24+Input!$E$61+Input!$E$63+Input!$E$65+Input!$E$89+Input!$E$98 -> 72 | X76: =(Input!$E$15*B76) -> 800 | Y76: =ROUND(Input!$E$39*X76,0) -> 80 | Z76: 720 | AA76: =ROUND(Input!$E$43*Z76,0) -> 36 | AB76: 684 | AD76: 612 | AE76: 0 | AH76: 161874 | AI76: 0 | AJ76: =Income_Expense!$D$10+Income_Expense!$D$11+Income_Expense!$D$12+Income_Expense!$D$13 -> 14159.625 | AK76: 176033.625 | AL76: =Monthly!$T$119+Monthly!$U$118*(U76+V76)+Input!$E$123+Input!$E$124+Input!$E$125 -> 76329.05387 | AM76: =(AD76+AE76)*(Input!$E$355+Input!$E$360+Input!$E$365)+(Input!$E$22+Input!$E$73)*(Input!$E$356+Input!$E$361+Input!$E$366)+Input!$E$368 -> 13742.46 | AN76: =Income_Expense!$D$30-Income_Expense!$D$16-Income_Expense!$D$25 -> 62948.81202 | AO76: =Income_Expense!$D$33 -> 13000 | AP76: 166020.3259 | AQ76: 10013.2991 | AR76: 25.03324776 | AS76: 16.36159984 | AT76: =AD76+AE76 -> 612
B77: =B76-0.1 -> 1.9 | C77: 5.994407842 | D77: 8.661919332 | E77: 3464.767733 | S77: 8 | T77: 650 | U77: 0 | V77: =(T77)*($V$86/$W$86)-W77 -> 578 | W77: =Input!$E$24+Input!$E$61+Input!$E$63+Input!$E$65+Input!$E$89+Input!$E$98 -> 72 | X77: =(Input!$E$15*B77) -> 760 | Y77: =ROUND(Input!$E$39*X77,0) -> 76 | Z77: 684 | AA77: =ROUND(Input!$E$43*Z77,0) -> 34 | AB77: 650 | AD77: =V77 -> 578 | AE77: =U77 -> 0 | AH77: 152881 | AI77: 0 | AJ77: =Income_Expense!$D$10+Income_Expense!$D$11+Income_Expense!$D$12+Income_Expense!$D$13 -> 14159.625 | AK77: 167040.625 | AL77: =Monthly!$T$119+Monthly!$U$118*(U77+V77)+Input!$E$123+Input!$E$124+Input!$E$125 -> 74578.18524 | AM77: =(AD77+AE77)*(Input!$E$355+Input!$E$360+Input!$E$365)+(Input!$E$22+Input!$E$73)*(Input!$E$356+Input!$E$361+Input!$E$366)+Input!$E$368 -> 13048.86 | AN77: =Income_Expense!$D$30-Income_Expense!$D$16-Income_Expense!$D$25 -> 62948.81202 | AO77: =Income_Expense!$D$33 -> 13000 | AP77: 163575.8573 | AQ77: 3464.767733 | AR77: 8.661919332 | AS77: 5.994407842 | AT77: =AD77+AE77 -> 578
B78: 1.8 | C78: -5.668683156 | D78: -7.709409092 | E78: -3083.763637 | S78: 7 | T78: 616 | U78: 0 | V78: 544 | W78: =Input!$E$24+Input!$E$61+Input!$E$63+Input!$E$65+Input!$E$89+Input!$E$98 -> 72 | X78: =(Input!$E$15*B78) -> 720 | Y78: =ROUND(Input!$E$39*X78,0) -> 72 | Z78: 648 | AA78: =ROUND(Input!$E$43*Z78,0) -> 32 | AB78: 616 | AD78: =V78 -> 544 | AE78: =U78 -> 0 | AH78: 143888 | AI78: 0 | AJ78: =Income_Expense!$D$10+Income_Expense!$D$11+Income_Expense!$D$12+Income_Expense!$D$13 -> 14159.625 | AK78: 158047.625 | AL78: =Monthly!$T$119+Monthly!$U$118*(U78+V78)+Input!$E$123+Input!$E$124+Input!$E$125 -> 72827.31661 | AM78: =(AD78+AE78)*(Input!$E$355+Input!$E$360+Input!$E$365)+(Input!$E$22+Input!$E$73)*(Input!$E$356+Input!$E$361+Input!$E$366)+Input!$E$368 -> 12355.26 | AN78: =Income_Expense!$D$30-Income_Expense!$D$16-Income_Expense!$D$25 -> 62948.81202 | AO78: =Income_Expense!$D$33 -> 13000 | AP78: 161131.3886 | AQ78: -3083.763637 | AR78: -7.709409092 | AS78: -5.668683156 | AT78: =AD78+AE78 -> 544
B79: 1.7 | C79: -19.30235534 | D79: -24.56224718 | E79: -9824.89887 | S79: 6 | T79: 581 | U79: 0 | V79: 509 | W79: =Input!$E$24+Input!$E$61+Input!$E$63+Input!$E$65+Input!$E$89+Input!$E$98 -> 72 | X79: =(Input!$E$15*B79) -> 680 | Y79: =ROUND(Input!$E$39*X79,0) -> 68 | Z79: 612 | AA79: =ROUND(Input!$E$43*Z79,0) -> 31 | AB79: 581 | AD79: 509 | AE79: 0 | AH79: 134630.5 | AI79: 0 | AJ79: =Income_Expense!$D$10+Income_Expense!$D$11+Income_Expense!$D$12+Income_Expense!$D$13 -> 14159.625 | AK79: 148790.125 | AL79: =Monthly!$T$119+Monthly!$U$118*(U79+V79)+Input!$E$123+Input!$E$124+Input!$E$125 -> 71024.95185 | AM79: =(AD79+AE79)*(Input!$E$355+Input!$E$360+Input!$E$365)+(Input!$E$22+Input!$E$73)*(Input!$E$356+Input!$E$361+Input!$E$366)+Input!$E$368 -> 11641.26 | AN79: =Income_Expense!$D$30-Income_Expense!$D$16-Income_Expense!$D$25 -> 62948.81202 | AO79: =Income_Expense!$D$33 -> 13000 | AP79: 158615.0239 | AQ79: -9824.89887 | AR79: -24.56224718 | AS79: -19.30235534 | AT79: 509
B80: 1.6 | C80: -34.47037945 | D80: -40.9335756 | E80: -16373.43024 | S80: 5 | T80: =AB80 -> 547 | U80: 0 | V80: 475 | W80: =Input!$E$24+Input!$E$61+Input!$E$63+Input!$E$65+Input!$E$89+Input!$E$98 -> 72 | X80: =(Input!$E$15*B80) -> 640 | Y80: =ROUND(Input!$E$39*X80,0) -> 64 | Z80: 576 | AA80: =ROUND(Input!$E$43*Z80,0) -> 29 | AB80: 547 | AD80: 475 | AE80: 0 | AH80: 125637.5 | AI80: 0 | AJ80: =Income_Expense!$D$10+Income_Expense!$D$11+Income_Expense!$D$12+Income_Expense!$D$13 -> 14159.625 | AK80: 139797.125 | AL80: =Monthly!$T$119+Monthly!$U$118*(U80+V80)+Input!$E$123+Input!$E$124+Input!$E$125 -> 69274.08322 | AM80: =(AD80+AE80)*(Input!$E$355+Input!$E$360+Input!$E$365)+(Input!$E$22+Input!$E$73)*(Input!$E$356+Input!$E$361+Input!$E$366)+Input!$E$368 -> 10947.66 | AN80: =Income_Expense!$D$30-Income_Expense!$D$16-Income_Expense!$D$25 -> 62948.81202 | AO80: =Income_Expense!$D$33 -> 13000 | AP80: 156170.5552 | AQ80: -16373.43024 | AR80: -40.9335756 | AS80: -34.47037945 | AT80: 475
B81: 1.5 | C81: -51.97723721 | D81: -57.30490402 | E81: -22921.96161 | S81: 4 | T81: =AB81 -> 513 | U81: 0 | V81: 441 | W81: =Input!$E$24+Input!$E$61+Input!$E$63+Input!$E$65+Input!$E$89+Input!$E$98 -> 72 | X81: =(Input!$E$15*B81) -> 600 | Y81: =ROUND(Input!$E$39*X81,0) -> 60 | Z81: 540 | AA81: =ROUND(Input!$E$43*Z81,0) -> 27 | AB81: 513 | AD81: 441 | AE81: 0 | AH81: 116644.5 | AI81: 0 | AJ81: =Income_Expense!$D$10+Income_Expense!$D$11+Income_Expense!$D$12+Income_Expense!$D$13 -> 14159.625 | AK81: 130804.125 | AL81: =Monthly!$T$119+Monthly!$U$118*(U81+V81)+Input!$E$123+Input!$E$124+Input!$E$125 -> 67523.21458 | AM81: =(AD81+AE81)*(Input!$E$355+Input!$E$360+Input!$E$365)+(Input!$E$22+Input!$E$73)*(Input!$E$356+Input!$E$361+Input!$E$366)+Input!$E$368 -> 10254.06 | AN81: =Income_Expense!$D$30-Income_Expense!$D$16-Income_Expense!$D$25 -> 62948.81202 | AO81: =Income_Expense!$D$33 -> 13000 | AP81: 153726.0866 | AQ81: -22921.96161 | AR81: -57.30490402 | AS81: -51.97723721 | AT81: 441
B82: 1.4 | C82: -72.40907366 | D82: -73.67623245 | E82: -29470.49298 | S82: 3 | T82: =AB82 -> 479 | U82: 0 | V82: 407 | W82: =Input!$E$24+Input!$E$61+Input!$E$63+Input!$E$65+Input!$E$89+Input!$E$98 -> 72 | X82: =(Input!$E$15*B82) -> 560 | Y82: =ROUND(Input!$E$39*X82,0) -> 56 | Z82: 504 | AA82: =ROUND(Input!$E$43*Z82,0) -> 25 | AB82: 479 | AD82: 407 | AE82: 0 | AH82: 107651.5 | AI82: 0 | AJ82: =Income_Expense!$D$10+Income_Expense!$D$11+Income_Expense!$D$12+Income_Expense!$D$13 -> 14159.625 | AK82: 121811.125 | AL82: =Monthly!$T$119+Monthly!$U$118*(U82+V82)+Input!$E$123+Input!$E$124+Input!$E$125 -> 65772.34595 | AM82: =(AD82+AE82)*(Input!$E$355+Input!$E$360+Input!$E$365)+(Input!$E$22+Input!$E$73)*(Input!$E$356+Input!$E$361+Input!$E$366)+Input!$E$368 -> 9560.46 | AN82: =Income_Expense!$D$30-Income_Expense!$D$16-Income_Expense!$D$25 -> 62948.81202 | AO82: =Income_Expense!$D$33 -> 13000 | AP82: 151281.618 | AQ82: -29470.49298 | AR82: -73.67623245 | AS82: -72.40907366 | AT82: 407
B83: 1.3 | C83: -96.56574892 | D83: -90.04756087 | E83: -36019.02435 | S83: 2 | T83: =AB83 -> 445 | U83: 0 | V83: 373 | W83: =Input!$E$24+Input!$E$61+Input!$E$63+Input!$E$65+Input!$E$89+Input!$E$98 -> 72 | X83: =(Input!$E$15*B83) -> 520 | Y83: =ROUND(Input!$E$39*X83,0) -> 52 | Z83: 468 | AA83: =ROUND(Input!$E$43*Z83,0) -> 23 | AB83: 445 | AD83: 373 | AE83: 0 | AH83: 98658.5 | AI83: 0 | AJ83: =Income_Expense!$D$10+Income_Expense!$D$11+Income_Expense!$D$12+Income_Expense!$D$13 -> 14159.625 | AK83: 112818.125 | AL83: =Monthly!$T$119+Monthly!$U$118*(U83+V83)+Input!$E$123+Input!$E$124+Input!$E$125 -> 64021.47732 | AM83: =(AD83+AE83)*(Input!$E$355+Input!$E$360+Input!$E$365)+(Input!$E$22+Input!$E$73)*(Input!$E$356+Input!$E$361+Input!$E$366)+Input!$E$368 -> 8866.86 | AN83: =Income_Expense!$D$30-Income_Expense!$D$16-Income_Expense!$D$25 -> 62948.81202 | AO83: =Income_Expense!$D$33 -> 13000 | AP83: 148837.1493 | AQ83: -36019.02435 | AR83: -90.04756087 | AS83: -96.56574892 | AT83: 373
B84: 1.2 | C84: -126.5093479 | D84: -106.900399 | E84: -42760.15958 | S84: 1 | T84: =AB84 -> 410 | U84: 0 | V84: 338 | W84: =Input!$E$24+Input!$E$61+Input!$E$63+Input!$E$65+Input!$E$89+Input!$E$98 -> 72 | X84: =(Input!$E$15*B84) -> 480 | Y84: =ROUND(Input!$E$39*X84,0) -> 48 | Z84: =X84-Y84 -> 432 | AA84: =ROUND(Input!$E$43*Z84,0) -> 22 | AB84: =Z84-AA84 -> 410 | AD84: 338 | AE84: 0 | AH84: 89401 | AI84: =U84*$U$89*$U$90 -> 0 | AJ84: =Income_Expense!$D$10+Income_Expense!$D$11+Income_Expense!$D$12+Income_Expense!$D$13 -> 14159.625 | AK84: 103560.625 | AL84: =Monthly!$T$119+Monthly!$U$118*(U84+V84)+Input!$E$123+Input!$E$124+Input!$E$125 -> 62219.11256 | AM84: =(AD84+AE84)*(Input!$E$355+Input!$E$360+Input!$E$365)+(Input!$E$22+Input!$E$73)*(Input!$E$356+Input!$E$361+Input!$E$366)+Input!$E$368 -> 8152.86 | AN84: =Income_Expense!$D$30-Income_Expense!$D$16-Income_Expense!$D$25 -> 62948.81202 | AO84: =Income_Expense!$D$33 -> 13000 | AP84: 146320.7846 | AQ84: -42760.15958 | AR84: -106.900399 | AS84: -126.5093479 | AT84: 338
T86: base | U86: =Input!$E$50 -> 0 | V86: =Input!$E$55 -> 612 | W86: =U86+V86 -> 612
T87: total | W87: =W84+W86 -> 684
T88: Percent | U88: =U77/(V77+U77) -> 0 | V88: =V77/(V77+U77) -> 1 | AR88: =Input!$E$15 -> 400
T89: Base Prices | U89: =Input!$E$52 -> 2.6 | V89: =Input!$E$57 -> 2.3 | AD89: =Input!$E$57 -> 2.3 | AE89: =Input!$E$52 -> 2.6
T90: Weight | U90: =Input!$E$51 -> 0 | V90: =Input!$E$56 -> 115 | AD90: =Input!$E$56 -> 115 | AE90: =Input!$E$51 -> 0
T91: Price/Head | U91: =U89*U90 -> 0 | V91: =V89*V90 -> 264.5
B92: Sensitivity To Feed and Pasture Costs
B93: Feed | D93: Net Income, Before Taxes | Y93: Total | Z93: Variable Expenses | AB93: Fixed | AC93: Total | AE93: Net Income
B94: Costs | C94: Total | D94: $/Per Ewe | E94: $/Per Lamb | Y94: Revenue | Z94: Feed | AA94: Other | AB94: Expenses | AC94: Expenses | AD94: Total | AE94: Per Ewe | AF94: Per Lamb
B95: =B96+0.05 -> 0.5 | C95: =AD95 -> -28151.22783 | D95: =AE95 -> -70.37806959 | E95: =AF95 -> -45.99873829 | Y95: =Income_Expense!$D$14 -> 176033.625 | Z95: =$Z$105*(1+B95) -> 114493.5808 | AA95: =Income_Expense!$D$30-Income_Expense!$D$16 -> 76691.27202 | AB95: =Income_Expense!$D$33 -> 13000 | AC95: =Z95+AA95+AB95 -> 204184.8528 | AD95: =Y95-AC95 -> -28151.22783 | AE95: =AD95/$AE$116 -> -70.37806959 | AF95: =AD95/$AF$116 -> -45.99873829
B96: 0.45 | C96: =AD96 -> -24334.77514 | D96: =AE96 -> -60.83693785 | E96: =AF96 -> -39.76270448 | Y96: =Income_Expense!$D$14 -> 176033.625 | Z96: 110677.1281 | AA96: =Income_Expense!$D$30-Income_Expense!$D$16 -> 76691.27202 | AB96: =Income_Expense!$D$33 -> 13000 | AC96: =Z96+AA96+AB96 -> 200368.4001 | AD96: =Y96-AC96 -> -24334.77514 | AE96: =AD96/$AE$116 -> -60.83693785 | AF96: =AD96/$AF$116 -> -39.76270448
B97: 0.4 | C97: -20518.32245 | D97: -51.29580612 | E97: -33.52667066 | Y97: =Income_Expense!$D$14 -> 176033.625 | Z97: 106860.6754 | AA97: =Income_Expense!$D$30-Income_Expense!$D$16 -> 76691.27202 | AB97: =Income_Expense!$D$33 -> 13000 | AC97: 196551.9474 | AD97: -20518.32245 | AE97: -51.29580612 | AF97: =AD97/$AF$116 -> -33.52667066
B98: 0.35 | C98: -16701.86975 | D98: -41.75467438 | E98: -27.29063685 | Y98: =Income_Expense!$D$14 -> 176033.625 | Z98: 103044.2227 | AA98: =Income_Expense!$D$30-Income_Expense!$D$16 -> 76691.27202 | AB98: =Income_Expense!$D$33 -> 13000 | AC98: 192735.4948 | AD98: -16701.86975 | AE98: -41.75467438 | AF98: -27.29063685
B99: 0.3 | C99: -12885.41706 | D99: -32.21354265 | E99: -21.05460304 | Y99: =Income_Expense!$D$14 -> 176033.625 | Z99: 99227.77004 | AA99: =Income_Expense!$D$30-Income_Expense!$D$16 -> 76691.27202 | AB99: =Income_Expense!$D$33 -> 13000 | AC99: 188919.0421 | AD99: -12885.41706 | AE99: -32.21354265 | AF99: -21.05460304
B100: 0.25 | C100: -9068.964366 | D100: -22.67241091 | E100: -14.81856923 | Y100: =Income_Expense!$D$14 -> 176033.625 | Z100: 95411.31734 | AA100: =Income_Expense!$D$30-Income_Expense!$D$16 -> 76691.27202 | AB100: =Income_Expense!$D$33 -> 13000 | AC100: 185102.5894 | AD100: -9068.964366 | AE100: -22.67241091 | AF100: -14.81856923
B101: 0.2 | C101: -5252.511672 | D101: -13.13127918 | E101: -8.582535412 | Y101: =Income_Expense!$D$14 -> 176033.625 | Z101: 91594.86465 | AA101: =Income_Expense!$D$30-Income_Expense!$D$16 -> 76691.27202 | AB101: =Income_Expense!$D$33 -> 13000 | AC101: 181286.1367 | AD101: -5252.511672 | AE101: -13.13127918 | AF101: -8.582535412
B102: 0.15 | C102: -1436.058978 | D102: -3.590147446 | E102: -2.346501599 | Y102: =Income_Expense!$D$14 -> 176033.625 | Z102: 87778.41195 | AA102: =Income_Expense!$D$30-Income_Expense!$D$16 -> 76691.27202 | AB102: =Income_Expense!$D$33 -> 13000 | AC102: 177469.684 | AD102: -1436.058978 | AE102: -3.590147446 | AF102: -2.346501599
B103: 0.1 | C103: 2380.393715 | D103: 5.950984288 | E103: 3.889532214 | Y103: =Income_Expense!$D$14 -> 176033.625 | Z103: 83961.95926 | AA103: =Income_Expense!$D$30-Income_Expense!$D$16 -> 76691.27202 | AB103: =Income_Expense!$D$33 -> 13000 | AC103: 173653.2313 | AD103: 2380.393715 | AE103: 5.950984288 | AF103: 3.889532214
B104: 0.05 | C104: 6196.846409 | D104: 15.49211602 | E104: 10.12556603 | Y104: =Income_Expense!$D$14 -> 176033.625 | Z104: 80145.50657 | AA104: =Income_Expense!$D$30-Income_Expense!$D$16 -> 76691.27202 | AB104: =Income_Expense!$D$33 -> 13000 | AC104: 169836.7786 | AD104: 6196.846409 | AE104: 15.49211602 | AF104: 10.12556603
B105: Base | C105: 10013.2991 | D105: 25.03324776 | E105: 16.36159984 | Y105: =Income_Expense!$D$14 -> 176033.625 | Z105: =Income_Expense!$D$16 -> 76329.05387 | AA105: =Income_Expense!$D$30-Income_Expense!$D$16 -> 76691.27202 | AB105: =Income_Expense!$D$33 -> 13000 | AC105: 166020.3259 | AD105: 10013.2991 | AE105: 25.03324776 | AF105: 16.36159984
B106: -0.05 | C106: =AD106 -> 13829.7518 | D106: =AE106 -> 34.57437949 | E106: =AF106 -> 22.59763365 | Y106: =Income_Expense!$D$14 -> 176033.625 | Z106: =$Z$105*(1+B106) -> 72512.60118 | AA106: =Income_Expense!$D$30-Income_Expense!$D$16 -> 76691.27202 | AB106: =Income_Expense!$D$33 -> 13000 | AC106: 162203.8732 | AD106: 13829.7518 | AE106: 34.57437949 | AF106: 22.59763365
B107: =B106-0.05 -> -0.1 | C107: =AD107 -> 17646.20449 | D107: =AE107 -> 44.11551122 | E107: =AF107 -> 28.83366747 | Y107: =Income_Expense!$D$14 -> 176033.625 | Z107: =$Z$105*(1+B107) -> 68696.14849 | AA107: =Income_Expense!$D$30-Income_Expense!$D$16 -> 76691.27202 | AB107: =Income_Expense!$D$33 -> 13000 | AC107: 158387.4205 | AD107: 17646.20449 | AE107: 44.11551122 | AF107: 28.83366747
B108: =B107-0.05 -> -0.15 | C108: 21462.65718 | D108: 53.65664296 | E108: 35.06970128 | Y108: =Income_Expense!$D$14 -> 176033.625 | Z108: 64879.69579 | AA108: =Income_Expense!$D$30-Income_Expense!$D$16 -> 76691.27202 | AB108: =Income_Expense!$D$33 -> 13000 | AC108: 154570.9678 | AD108: 21462.65718 | AE108: 53.65664296 | AF108: 35.06970128
B109: -0.2 | C109: 25279.10988 | D109: 63.19777469 | E109: 41.30573509 | Y109: =Income_Expense!$D$14 -> 176033.625 | Z109: 61063.2431 | AA109: =Income_Expense!$D$30-Income_Expense!$D$16 -> 76691.27202 | AB109: =Income_Expense!$D$33 -> 13000 | AC109: 150754.5151 | AD109: 25279.10988 | AE109: 63.19777469 | AF109: 41.30573509
B110: -0.25 | C110: 29095.56257 | D110: 72.73890643 | E110: 47.54176891 | Y110: =Income_Expense!$D$14 -> 176033.625 | Z110: 57246.7904 | AA110: =Income_Expense!$D$30-Income_Expense!$D$16 -> 76691.27202 | AB110: =Income_Expense!$D$33 -> 13000 | AC110: 146938.0624 | AD110: 29095.56257 | AE110: 72.73890643 | AF110: 47.54176891
B111: -0.3 | C111: 32912.01526 | D111: 82.28003816 | E111: 53.77780272 | Y111: =Income_Expense!$D$14 -> 176033.625 | Z111: 53430.33771 | AA111: =Income_Expense!$D$30-Income_Expense!$D$16 -> 76691.27202 | AB111: =Income_Expense!$D$33 -> 13000 | AC111: 143121.6097 | AD111: 32912.01526 | AE111: 82.28003816 | AF111: 53.77780272
B112: -0.35 | C112: 36728.46796 | D112: 91.8211699 | E112: 60.01383653 | Y112: =Income_Expense!$D$14 -> 176033.625 | Z112: 49613.88502 | AA112: =Income_Expense!$D$30-Income_Expense!$D$16 -> 76691.27202 | AB112: =Income_Expense!$D$33 -> 13000 | AC112: 139305.157 | AD112: 36728.46796 | AE112: 91.8211699 | AF112: 60.01383653
B113: -0.4 | C113: 40544.92065 | D113: 101.3623016 | E113: 66.24987035 | Y113: =Income_Expense!$D$14 -> 176033.625 | Z113: 45797.43232 | AA113: =Income_Expense!$D$30-Income_Expense!$D$16 -> 76691.27202 | AB113: =Income_Expense!$D$33 -> 13000 | AC113: 135488.7043 | AD113: 40544.92065 | AE113: 101.3623016 | AF113: 66.24987035
B114: -0.45 | C114: 44361.37335 | D114: 110.9034334 | E114: 72.48590416 | Y114: =Income_Expense!$D$14 -> 176033.625 | Z114: 41980.97963 | AA114: =Income_Expense!$D$30-Income_Expense!$D$16 -> 76691.27202 | AB114: =Income_Expense!$D$33 -> 13000 | AC114: 131672.2517 | AD114: 44361.37335 | AE114: 110.9034334 | AF114: 72.48590416
B115: -0.5 | C115: 48177.82604 | D115: 120.4445651 | E115: 78.72193797 | Y115: =Income_Expense!$D$14 -> 176033.625 | Z115: 38164.52694 | AA115: =Income_Expense!$D$30-Income_Expense!$D$16 -> 76691.27202 | AB115: =Income_Expense!$D$33 -> 13000 | AC115: 127855.799 | AD115: 48177.82604 | AE115: 120.4445651 | AF115: 78.72193797
AE116: =Income_Expense!$D$99 -> 400 | AF116: =U58+V58 -> 612

Sheet Balance_Sheet
B6: =Input!$C$10 -> Name: 400 Head Ewe Operation | D6: PROJECTED BALANCE SHEET (YEAR END)
C7: Initial | D7: Year 1 | E7: Year 2 | F7: Year 3 | G7: Year 4 | H7: Year 5
B8: Current Assets: | C8: (Time 0)
B9: =Input!C384 -> Cash | C9: =Input!E384 -> 0 | D9: =Input!F384 -> 12981.78171 | E9: =Input!G384 -> 25010.9769 | F9: =Input!H384 -> 35972.22698 | G9: =Input!I384 -> 45844.48559 | H9: =IF((G9+Income_Expense!H43)>0,(G9+Income_Expense!H43),0) -> 54606.22978
B10: =Input!C385 -> Accounts Receivable | C10: =Input!E385 -> 0 | D10: =Input!F385 -> 0 | E10: =Input!G385 -> 0 | F10: =Input!H385 -> 0 | G10: =Input!I385 -> 0 | H10: =G10 -> 0
B11: =Input!C386 -> Market Inventory - Lambs | C11: =Input!E386 -> 0 | D11: =Input!F386 -> 0 | E11: =Input!G386 -> 0 | F11: =Input!H386 -> 0 | G11: =Input!I386 -> 0 | H11: =G11 -> 0
B12: =Input!C389 -> Feed Supplies/Hay/Grain | C12: =Input!E389 -> 0 | D12: =Input!F389 -> 0 | E12: =Input!G389 -> 0 | F12: =Input!H389 -> 0 | G12: =Input!I389 -> 0 | H12: =G12 -> 0
B13: =Input!C390 -> General Farm Supplies/Medication | C13: =Input!E390 -> 0 | D13: =Input!F390 -> 0 | E13: =Input!G390 -> 0 | F13: =Input!H390 -> 0 | G13: =Input!I390 -> 0 | H13: =G13 -> 0
B14: Total Current Assets | C14: =SUM(C9:C13) -> 0 | D14: 12981.78171 | E14: 25010.9769 | F14: 35972.22698 | G14: 45844.48559 | H14: 54606.22978
B15: Long Term Assets:
B16: =Input!$C387 -> Breeding Stock - Ewes | C16: =Input!E$387 -> 150000 | D16: =Input!F$387 -> 150000 | E16: =Input!G$387 -> 150000 | F16: =Input!H$387 -> 150000 | G16: =Input!I$387 -> 150000 | H16: =G16 -> 150000
B17: =Input!$C388 -> Breeding Stock - Rams | C17: =Input!E$388 -> 6600 | D17: =Input!F$388 -> 6600 | E17: =Input!G$388 -> 6612 | F17: =Input!H$388 -> 6621.84 | G17: =Input!I$388 -> 6629.9088 | H17: =G17 -> 6629.9088
B18: Buildings and Fences | C18: =Input!E$392 -> 75000 | D18: =Input!F$392 -> 71250 | E18: =Input!G$392 -> 67687.5 | F18: =Input!H$392 -> 64303.125 | G18: =Input!I$392 -> 61087.96875 | H18: =Depreciation!N6 -> 58033.57031
B19: Machinery and Equipment | C19: =Input!E$393 -> 50000 | D19: =Input!F$393 -> 45000 | E19: =Input!G$393 -> 40500 | F19: =Input!H$393 -> 36450 | G19: =Input!I$393 -> 32805 | H19: =Depreciation!N7 -> 29524.5
B20: Land and Other Non Depreciating Assets | C20: =Input!E$391 -> 100000 | D20: =Input!F$391 -> 100000 | E20: =Input!G$391 -> 100000 | F20: =Input!H$391 -> 100000 | G20: =Input!I$391 -> 100000 | H20: =Depreciation!N5 -> 100000
B21: Infrastructure and Site Development | C21: =Input!E$394 -> 0 | D21: =Input!F$394 -> 0 | E21: =Input!G$394 -> 0 | F21: =Input!H$394 -> 0 | G21: =Input!I$394 -> 0 | H21: =Depreciation!N8 -> 0
B22: Long Term Assets | C22: =SUM(C16:C21) -> 381600 | D22: 372850 | E22: 364799.5 | F22: 357374.965 | G22: 350522.8775 | H22: 344187.9791
B23: TOTAL ASSETS | C23: =C14+C22 -> 381600 | D23: 385831.7817 | E23: 389810.4769 | F23: 393347.192 | G23: 396367.3631 | H23: 398794.2089
B24: Current Liabilities:
B25: Operating Loans/Account | C25: =Input!E$398 -> 0 | D25: =Input!F$398 -> 0 | E25: =Input!G$398 -> 0 | F25: =Input!H$398 -> 0 | G25: =Input!I$398 -> 0 | H25: =IF(Income_Expense!V54<0,Income_Expense!V54*(-1),0) -> 0
B26: Accounts Payable | C26: =Input!E$399 -> 0 | D26: =Input!F$399 -> 0 | E26: =Input!G$399 -> 0 | F26: =Input!H$399 -> 0 | G26: =Input!I$399 -> 0 | H26: =Input!J$399 -> 0
B27: Principal in Arrears | C27: =Input!E$400 -> 0 | D27: =Input!F$400 -> 0 | E27: =Input!G$400 -> 0 | F27: =Input!H$400 -> 0 | G27: =Input!I$400 -> 0 | H27: =Input!J$400 -> 0
B28: Other Current Debt/Annual Principal Due | C28: =Input!E401 -> 5781.517391 | D28: =Input!F401 -> 6070.593261 | E28: =Input!G401 -> 6374.122924 | F28: =Input!H401 -> 6692.82907 | G28: =Input!I401 -> 7027.470523 | H28: =Financing!E45 -> 1604.474096
B29: Total Current Liabilities | C29: =SUM(C25:C28) -> 5781.517391 | D29: 6070.593261 | E29: 6374.122924 | F29: 6692.82907 | G29: 7027.470523 | H29: 1604.474096
B30: Long Term Liabilities:
B31: =Input!C410 -> Loan#1 - Land and Buildings | C31: =Input!E411 -> 60000 | D31: =Financing!$F$12 -> 58742.85256 | E31: =Financing!$F$13 -> 57422.84775 | F31: =Financing!$F$14 -> 56036.8427 | G31: =Financing!$F$15 -> 54581.5374 | H31: =Financing!$F$16 -> 53053.46683
B32: =Input!C416 -> Loan#2 - Machinery and Equipment | C32: =Input!E417 -> 25000 | D32: =Financing!$L$12 -> 20475.63005 | E32: =Financing!$L$13 -> 15725.0416 | F32: =Financing!$L$14 -> 10736.92372 | G32: =Financing!$L$15 -> 5499.399955 | H32: =Financing!$L$16 -> 0
B33: =Input!C422 -> Loan#3 - Sheep Loan Purchase #1 (Year #1) | C33: 0 | D33: =Input!E423 -> 0 | E33: =Financing!$R$13 -> 0 | F33: =Financing!$R$14 -> 0 | G33: =Financing!$R$15 -> 0 | H33: =Financing!$R$16 -> 0
B34: =Input!C428 -> Loan#4 - Sheep Loan Purchase #2 (Year #2) | C34: 0 | D34: 0 | E34: =Financing!$X$13 -> 0 | F34: =Financing!$X$14 -> 0 | G34: =Financing!$X$15 -> 0 | H34: =Financing!$X$16 -> 0
B35: =Input!C434 -> Loan#5 - Sheep Loan Purchase #3 (Year #3) | C35: 0 | D35: 0 | E35: =Financing!$AD$14 -> 0 | F35: =Financing!$AD$15 -> 0 | G35: =Financing!$AD$16 -> 0 | H35: =Financing!$AD$17 -> 0
B36: =Input!C440 -> Loan#6 - Sheep Loan Purchase #4 (Year #4) | C36: 0 | D36: 0 | E36: 0 | F36: =Financing!$AJ$15 -> 0 | G36: =Financing!$AJ$16 -> 0 | H36: =Financing!$AJ$17 -> 0
B37: =Input!C446 -> Loan#7 - Sheep Loan Purchase #5 (Year #5) | C37: 0 | D37: 0 | E37: 0 | F37: 0 | G37: =Financing!$AP$16 -> 0 | H37: =Financing!$AP$17 -> 0
B38: Total Long Term Liabilities | C38: =SUM(C31:C37) -> 85000 | D38: 79218.48261 | E38: 73147.88935 | F38: 66773.76642 | G38: 60080.93735 | H38: 53053.46683
B39: TOTAL LIABILITIES | C39: =C29+C38 -> 90781.51739 | D39: 85289.07587 | E39: 79522.01227 | F39: 73466.59549 | G39: 67108.40788 | H39: 54657.94093
B40: NET EQUITY | C40: =C23-C39 -> 290818.4826 | D40: 300542.7058 | E40: 310288.4646 | F40: 319880.5965 | G40: 329258.9553 | H40: 344136.268
C50: =C7 -> Initial | D50: Year 1 | E50: Year 2 | F50: Year 3 | G50: Year 4 | H50: Year 5
B51: Inventory | C51: =C11+C12+C13+C16+C17 -> 156600 | D51: 156600 | E51: 156612 | F51: 156621.84 | G51: 156629.9088 | H51: 156629.9088
B52: Accounts Receivable | C52: =C10 -> 0 | D52: 0 | E52: 0 | F52: 0 | G52: 0 | H52: 0
B53: Accounts Payable | C53: =C26 -> 0 | D53: 0 | E53: 0 | F53: 0 | G53: 0 | H53: 0
B54: Accrual Adjustments | D54: =D51-C51+C53-D53+D52-C52 -> 0 | E54: =E51-D51+D53-E53+E52-D52 -> 12 | F54: =F51-E51+E53-F53+F52-E52 -> 9.84 | G54: =G51-F51+F53-G53+G52-F52 -> 8.0688 | H54: =H51-G51+G53-H53+H52-G52 -> 0

Sheet Investment
E2: NOMINAL INVESTMENT RETURNS ON EQUITY
C3: Start of Year
C4: Year 1 | D4: Year 2 | E4: Year 3 | F4: Year 4 | G4: Year 5 | H4: Average
B5: Total Assets | C5: =Balance_Sheet!C23 -> 381600 | D5: =Balance_Sheet!D23 -> 385831.7817 | E5: =Balance_Sheet!E23 -> 389810.4769 | F5: =Balance_Sheet!F23 -> 393347.192 | G5: =Balance_Sheet!G23 -> 396367.3631 | H5: =AVERAGE(C5:G5) -> 389391.3627
B6: Total Liabilities | C6: =Balance_Sheet!C39 -> 90781.51739 | D6: =Balance_Sheet!D39 -> 85289.07587 | E6: =Balance_Sheet!E39 -> 79522.01227 | F6: =Balance_Sheet!F39 -> 73466.59549 | G6: =Balance_Sheet!G39 -> 67108.40788 | H6: =AVERAGE(C6:G6) -> 79233.52178
B7: Total Equity | C7: =C5-C6 -> 290818.4826 | D7: =D5-D6 -> 300542.7058 | E7: =E5-E6 -> 310288.4646 | F7: =F5-F6 -> 319880.5965 | G7: =G5-G6 -> 329258.9553 | H7: =AVERAGE(C7:G7) -> 310157.841
C8: End of Year
B9: Year-End | C9: Year 1 | D9: Year 2 | E9: Year 3 | F9: Year 4 | G9: Year 5 | H9: Average
B10: Pre-tax Earnings | C10: =Income_Expense!D36 -> 10013.2991 | D10: =Income_Expense!E36 -> 10049.28845 | E10: =Income_Expense!F36 -> 9910.838009 | F10: =Income_Expense!G36 -> 9713.000222 | G10: =Income_Expense!H36 -> 9454.316277 | H10: =AVERAGE(C10:G10) -> 9828.148412
B11: Return on Equity | C11: =C10/C7 -> 0.03443143989 | D11: =D10/D7 -> 0.03343713972 | E11: =E10/E7 -> 0.03194072336 | F11: =F10/F7 -> 0.03036445576 | G11: =G10/G7 -> 0.02871392297 | H11: =AVERAGE(C11:G11) -> 0.03177753634
B12: (Note: For a proper return on equity calculation, labour costs/or opportunity cost must be included)

Sheet Financing
B4: =Input!C410 -> Loan#1 - Land and Buildings | H4: =Input!C416 -> Loan#2 - Machinery and Equipment | N4: =Input!C422 -> Loan#3 - Sheep Loan Purchase #1 (Year #1) | T4: =Input!C428 -> Loan#4 - Sheep Loan Purchase #2 (Year #2) | Z4: =Input!C434 -> Loan#5 - Sheep Loan Purchase #3 (Year #3) | AF4: =Input!C440 -> Loan#6 - Sheep Loan Purchase #4 (Year #4) | AL4: =Input!C446 -> Loan#7 - Sheep Loan Purchase #5 (Year #5)
C6: Principal | D6: =Input!E411 -> 60000 | E6: =IF(D6>0,1,0) -> 1 | I6: Principal | J6: =Input!E417 -> 25000 | O6: Principal | P6: =Input!E423 -> 0 | U6: Principal | V6: =Input!E429 -> 0 | AA6: Principal | AB6: =Input!E435 -> 0 | AG6: Principal | AH6: =Input!E441 -> 0 | AM6: Principal | AN6: =Input!E447 -> 0
C7: Interest Rate | D7: =Input!E412 -> 0.05 | E7: =D7/12 -> 0.004166666667 | I7: Interest Rate | J7: =Input!E418 -> 0.05 | O7: Interest Rate | P7: =Input!E424 -> 0 | U7: Interest Rate | V7: =Input!E430 -> 0 | AA7: Interest Rate | AB7: =Input!E436 -> 0 | AG7: Interest Rate | AH7: =Input!E442 -> 0 | AM7: Interest Rate | AN7: =Input!E448 -> 0
C8: Term of Loan | D8: =Input!E413 -> 25 | E8: =D8*12 -> 300 | I8: Term of Loan | J8: =Input!E419 -> 5 | O8: Term of Loan | P8: =Input!E425 -> 0 | U8: Term of Loan | V8: =Input!E431 -> 0 | W8: ending year | X8: =V8+1 -> 1 | AA8: Term of Loan | AB8: =Input!E437 -> 0 | AC8: ending year | AD8: =AB8+2 -> 2 | AG8: Term of Loan | AH8: =Input!E443 -> 0 | AI8: ending year | AJ8: =AH8+3 -> 3 | AM8: Term of Loan | AN8: =Input!E449 -> 0 | AO8: ending year | AP8: =AN8+4 -> 4
C9: Loan Payment | D9: =IF(D6>0,PMT(D7,D8,D6,0,0)*(-1),0) -> 4257.147438 | E9: =IF(D6>0,-PMT(E7,E8,D6),0) -> 350.7540249 | I9: Loan Payment | J9: =IF(J6>0,PMT(J7,J8,J6,0,0)*(-1),0) -> 5774.369953 | O9: Loan Payment | P9: =IF(P6>0,PMT(P7,P8,P6,0,0)*(-1),0) -> 0 | U9: Loan Payment | V9: =IF(V6>0,PMT(V7,V8,V6,0,0)*(-1),0) -> 0 | AA9: Loan Payment | AB9: =IF(AB6>0,PMT(AB7,AB8,AB6,0,0)*(-1),0) -> 0 | AG9: Loan Payment | AH9: =IF(AH6>0,PMT(AH7,AH8,AH6,0,0)*(-1),0) -> 0 | AM9: Loan Payment | AN9: =IF(AN6>0,PMT(AN7,AN8,AN6,0,0)*(-1),0) -> 0
B11: Year | C11: Loan Pmt. | D11: Interest Pmt | E11: Principal Pmt. | F11: Principal Bal. | H11: Year | I11: Loan Pmt. | J11: Interest Pmt | K11: Principal Pmt. | L11: Principal Bal. | N11: Year | O11: Loan Pmt. | P11: Interest Pmt | Q11: Principal Pmt. | R11: Principal Bal. | T11: Year | U11: Loan Pmt. | V11: Interest Pmt | W11: Principal Pmt. | X11: Principal Bal. | Z11: Year | AA11: Loan Pmt. | AB11: Interest Pmt | AC11: Principal Pmt. | AD11: Principal Bal. | AF11: Year | AG11: Loan Pmt. | AH11: Interest Pmt | AI11: Principal Pmt. | AJ11: Principal Bal. | AL11: Year | AM11: Loan Pmt. | AN11: Interest Pmt | AO11: Principal Pmt. | AP11: Principal Bal.
B12: 1 | C12: =IF(B12<=$D$8,$D$9,0) -> 4257.147438 | D12: =IF(D6>0,D6*$D$7,0) -> 3000 | E12: =C12-D12 -> 1257.147438 | F12: =D6-E12 -> 58742.85256 | H12: 1 | I12: =IF(H12<=$J$8,$J$9,0) -> 5774.369953 | J12: =IF(J6>0,J6*$J$7,0) -> 1250 | K12: =I12-J12 -> 4524.369953 | L12: =J6-K12 -> 20475.63005 | N12: 1 | R12: =P6-Q12 -> 0 | T12: 1 | Z12: 1 | AF12: 1 | AL12: 1
B13: =B12+1 -> 2 | C13: =IF(B13<=$D$8,$D$9,0) -> 4257.147438 | D13: =IF(F12>0,F12*$D$7,0) -> 2937.142628 | E13: =C13-D13 -> 1320.00481 | F13: =F12-E13 -> 57422.84775 | H13: =H12+1 -> 2 | I13: =IF(H13<=$J$8,$J$9,0) -> 5774.369953 | J13: =IF(L12>0,L12*$J$7,0) -> 1023.781502 | K13: =I13-J13 -> 4750.588451 | L13: =L12-K13 -> 15725.0416 | N13: =N12+1 -> 2 | O13: =IF(N12<=$P$8,$P$9,0) -> 0 | P13: =IF(P6>0,P6*$P$7,0) -> 0 | Q13: =O13-P13 -> 0 | R13: =P6-Q13 -> 0 | T13: =T12+1 -> 2 | X13: =V6-W13 -> 0 | Z13: =Z12+1 -> 2 | AF13: =AF12+1 -> 2 | AL13: =AL12+1 -> 2
B14: =B13+1 -> 3 | C14: 4257.147438 | D14: =IF(F13>0,F13*$D$7,0) -> 2871.142388 | E14: 1386.00505 | F14: =F13-E14 -> 56036.8427 | H14: 3 | I14: 5774.369953 | J14: =IF(L13>0,L13*$J$7,0) -> 786.2520798 | K14: 4988.117873 | L14: 10736.92372 | N14: 3 | O14: 0 | P14: =IF(R13>0,R13*$P$7,0) -> 0 | Q14: 0 | R14: =R13-Q14 -> 0 | T14: 3 | U14: =IF(T13<=$X$8,$V$9,0) -> 0 | V14: =IF(V6>0,V6*$V$7,0) -> 0 | W14: =U14-V14 -> 0 | X14: =V6-W14 -> 0 | Z14: 3 | AD14: =AB6-AC14 -> 0 | AF14: 3 | AL14: 3
B15: 4 | C15: 4257.147438 | D15: 2801.842135 | E15: 1455.305303 | F15: 54581.5374 | H15: 4 | I15: 5774.369953 | J15: 536.8461861 | K15: 5237.523767 | L15: 5499.399955 | N15: 4 | O15: 0 | P15: 0 | Q15: 0 | R15: 0 | T15: 4 | U15: 0 | V15: =IF(X14>0,X14*$V$7,0) -> 0 | W15: 0 | X15: =X14-W15 -> 0 | Z15: 4 | AA15: =IF(Z14<=$AD$8,$AB$9,0) -> 0 | AB15: =IF(AB6>0,AB6*$AB$7,0) -> 0 | AC15: =AA15-AB15 -> 0 | AD15: =AB6-AC15 -> 0 | AF15: 4 | AJ15: =AH6-AI15 -> 0 | AL15: 4
B16: 5 | C16: 4257.147438 | D16: 2729.07687 | E16: 1528.070568 | F16: 53053.46683 | H16: 5 | I16: 5774.369953 | J16: 274.9699978 | K16: 5499.399955 | L16: 0 | N16: 5 | O16: 0 | P16: 0 | Q16: 0 | R16: 0 | T16: 5 | U16: 0 | V16: =IF(X15>0,X15*$V$7,0) -> 0 | W16: 0 | X16: 0 | Z16: 5 | AA16: 0 | AB16: =IF(AD15>0,AD15*$AB$7,0) -> 0 | AC16: 0 | AD16: =AD15-AC16 -> 0 | AF16: 5 | AG16: =IF(AF15<=$AJ$8,$AH$9,0) -> 0 | AH16: =IF(AH6>0,AH6*$AH$7,0) -> 0 | AI16: =AG16-AH16 -> 0 | AJ16: =AH6-AI16 -> 0 | AL16: 5 | AP16: =AN6-AO16 -> 0
B17: 6 | C17: 4257.147438 | D17: 2652.673342 | E17: 1604.474096 | F17: 51448.99273 | H17: 6 | I17: 0 | J17: 0 | K17: 0 | L17: 0 | N17: 6 | O17: 0 | P17: 0 | Q17: 0 | R17: 0 | T17: 6 | U17: 0 | V17: 0 | W17: 0 | X17: 0 | Z17: 6 | AA17: 0 | AB17: 0 | AC17: 0 | AD17: 0 | AF17: 6 | AG17: 0 | AH17: =IF(AJ16>0,AJ16*$AH$7,0) -> 0 | AI17: 0 | AJ17: =AJ16-AI17 -> 0 | AL17: 6 | AM17: =IF(AL16<=$AP$8,$AN$9,0) -> 0 | AN17: =IF(AN6>0,AN6*$AN$7,0) -> 0 | AO17: =AM17-AN17 -> 0 | AP17: =AN6-AO17 -> 0
B18: 7 | C18: 4257.147438 | D18: 2572.449637 | E18: 1684.697801 | F18: 49764.29493 | H18: 7 | I18: 0 | J18: 0 | K18: 0 | L18: 0 | N18: 7 | O18: 0 | P18: 0 | Q18: 0 | R18: 0 | T18: 7 | U18: 0 | V18: 0 | W18: 0 | X18: 0 | Z18: 7 | AA18: 0 | AB18: 0 | AC18: 0 | AD18: 0 | AF18: 7 | AG18: 0 | AH18: 0 | AI18: 0 | AJ18: 0 | AL18: 7 | AM18: 0 | AN18: =IF(AP17>0,AP17*$AN$7,0) -> 0 | AO18: 0 | AP18: =AP17-AO18 -> 0
B19: 8 | C19: 4257.147438 | D19: 2488.214747 | E19: 1768.932691 | F19: 47995.36224 | H19: 8 | I19: 0 | J19: 0 | K19: 0 | L19: 0 | N19: 8 | O19: 0 | P19: 0 | Q19: 0 | R19: 0 | T19: 8 | U19: 0 | V19: 0 | W19: 0 | X19: 0 | Z19: 8 | AA19: 0 | AB19: 0 | AC19: 0 | AD19: 0 | AF19: 8 | AG19: 0 | AH19: 0 | AI19: 0 | AJ19: 0 | AL19: 8 | AM19: 0 | AN19: =IF(AP18>0,AP18*$AN$7,0) -> 0 | AO19: 0 | AP19: 0
B20: 9 | C20: 4257.147438 | D20: 2399.768112 | E20: 1857.379326 | F20: 46137.98292 | H20: 9 | I20: 0 | J20: 0 | K20: 0 | L20: 0 | N20: 9 | O20: 0 | P20: 0 | Q20: 0 | R20: 0 | T20: 9 | U20: 0 | V20: 0 | W20: 0 | X20: 0 | Z20: 9 | AA20: 0 | AB20: 0 | AC20: 0 | AD20: 0 | AF20: 9 | AG20: 0 | AH20: 0 | AI20: 0 | AJ20: 0 | AL20: 9 | AM20: 0 | AN20: 0 | AO20: 0 | AP20: 0
B21: 10 | C21: 4257.147438 | D21: 2306.899146 | E21: 1950.248292 | F21: 44187.73462 | H21: 10 | I21: 0 | J21: 0 | K21: 0 | L21: 0 | N21: 10 | O21: 0 | P21: 0 | Q21: 0 | R21: 0 | T21: 10 | U21: 0 | V21: 0 | W21: 0 | X21: 0 | Z21: 10 | AA21: 0 | AB21: 0 | AC21: 0 | AD21: 0 | AF21: 10 | AG21: 0 | AH21: 0 | AI21: 0 | AJ21: 0 | AL21: 10 | AM21: 0 | AN21: 0 | AO21: 0 | AP21: 0
B22: 11 | C22: 4257.147438 | D22: 2209.386731 | E22: 2047.760707 | F22: 42139.97392 | H22: 11 | I22: 0 | J22: 0 | K22: 0 | L22: 0 | N22: 11 | O22: 0 | P22: 0 | Q22: 0 | R22: 0 | T22: 11 | U22: 0 | V22: 0 | W22: 0 | X22: 0 | Z22: 11 | AA22: 0 | AB22: 0 | AC22: 0 | AD22: 0 | AF22: 11 | AG22: 0 | AH22: 0 | AI22: 0 | AJ22: 0 | AL22: 11 | AM22: 0 | AN22: 0 | AO22: 0 | AP22: 0
B23: 12 | C23: 4257.147438 | D23: 2106.998696 | E23: 2150.148742 | F23: 39989.82518 | H23: 12 | I23: 0 | J23: 0 | K23: 0 | L23: 0 | N23: 12 | O23: 0 | P23: 0 | Q23: 0 | R23: 0 | T23: 12 | U23: 0 | V23: 0 | W23: 0 | X23: 0 | Z23: 12 | AA23: 0 | AB23: 0 | AC23: 0 | AD23: 0 | AF23: 12 | AG23: 0 | AH23: 0 | AI23: 0 | AJ23: 0 | AL23: 12 | AM23: 0 | AN23: 0 | AO23: 0 | AP23: 0
B24: 13 | C24: 4257.147438 | D24: 1999.491259 | E24: 2257.656179 | F24: 37732.169 | H24: 13 | I24: 0 | J24: 0 | K24: 0 | L24: 0 | N24: 13 | O24: 0 | P24: 0 | Q24: 0 | R24: 0 | T24: 13 | U24: 0 | V24: 0 | W24: 0 | X24: 0 | Z24: 13 | AA24: 0 | AB24: 0 | AC24: 0 | AD24: 0 | AF24: 13 | AG24: 0 | AH24: 0 | AI24: 0 | AJ24: 0 | AL24: 13 | AM24: 0 | AN24: 0 | AO24: 0 | AP24: 0
B25: 14 | C25: 4257.147438 | D25: 1886.60845 | E25: 2370.538988 | F25: 35361.63001 | H25: 14 | I25: 0 | J25: 0 | K25: 0 | L25: 0 | N25: 14 | O25: 0 | P25: 0 | Q25: 0 | R25: 0 | T25: 14 | U25: 0 | V25: 0 | W25: 0 | X25: 0 | Z25: 14 | AA25: 0 | AB25: 0 | AC25: 0 | AD25: 0 | AF25: 14 | AG25: 0 | AH25: 0 | AI25: 0 | AJ25: 0 | AL25: 14 | AM25: 0 | AN25: 0 | AO25: 0 | AP25: 0
B26: 15 | C26: 4257.147438 | D26: 1768.0815 | E26: 2489.065938 | F26: 32872.56407 | H26: 15 | I26: 0 | J26: 0 | K26: 0 | L26: 0 | N26: 15 | O26: 0 | P26: 0 | Q26: 0 | R26: 0 | T26: 15 | U26: 0 | V26: 0 | W26: 0 | X26: 0 | Z26: 15 | AA26: 0 | AB26: 0 | AC26: 0 | AD26: 0 | AF26: 15 | AG26: 0 | AH26: 0 | AI26: 0 | AJ26: 0 | AL26: 15 | AM26: 0 | AN26: 0 | AO26: 0 | AP26: 0
B27: 16 | C27: 4257.147438 | D27: 1643.628204 | E27: 2613.519234 | F27: 30259.04484 | H27: 16 | I27: 0 | J27: 0 | K27: 0 | L27: 0 | N27: 16 | O27: 0 | P27: 0 | Q27: 0 | R27: 0 | T27: 16 | U27: 0 | V27: 0 | W27: 0 | X27: 0 | Z27: 16 | AA27: 0 | AB27: 0 | AC27: 0 | AD27: 0 | AF27: 16 | AG27: 0 | AH27: 0 | AI27: 0 | AJ27: 0 | AL27: 16 | AM27: 0 | AN27: 0 | AO27: 0 | AP27: 0
B28: 17 | C28: 4257.147438 | D28: 1512.952242 | E28: 2744.195196 | F28: 27514.84964 | H28: 17 | I28: 0 | J28: 0 | K28: 0 | L28: 0 | N28: 17 | O28: 0 | P28: 0 | Q28: 0 | R28: 0 | T28: 17 | U28: 0 | V28: 0 | W28: 0 | X28: 0 | Z28: 17 | AA28: 0 | AB28: 0 | AC28: 0 | AD28: 0 | AF28: 17 | AG28: 0 | AH28: 0 | AI28: 0 | AJ28: 0 | AL28: 17 | AM28: 0 | AN28: 0 | AO28: 0 | AP28: 0
B29: 18 | C29: 4257.147438 | D29: 1375.742482 | E29: 2881.404956 | F29: 24633.44468 | H29: 18 | I29: 0 | J29: 0 | K29: 0 | L29: 0 | N29: 18 | O29: 0 | P29: 0 | Q29: 0 | R29: 0 | T29: 18 | U29: 0 | V29: 0 | W29: 0 | X29: 0 | Z29: 18 | AA29: 0 | AB29: 0 | AC29: 0 | AD29: 0 | AF29: 18 | AG29: 0 | AH29: 0 | AI29: 0 | AJ29: 0 | AL29: 18 | AM29: 0 | AN29: 0 | AO29: 0 | AP29: 0
B30: 19 | C30: 4257.147438 | D30: 1231.672234 | E30: 3025.475204 | F30: 21607.96948 | H30: 19 | I30: 0 | J30: 0 | K30: 0 | L30: 0 | N30: 19 | O30: 0 | P30: 0 | Q30: 0 | R30: 0 | T30: 19 | U30: 0 | V30: 0 | W30: 0 | X30: 0 | Z30: 19 | AA30: 0 | AB30: 0 | AC30: 0 | AD30: 0 | AF30: 19 | AG30: 0 | AH30: 0 | AI30: 0 | AJ30: 0 | AL30: 19 | AM30: 0 | AN30: 0 | AO30: 0 | AP30: 0
B31: 20 | C31: 4257.147438 | D31: 1080.398474 | E31: 3176.748964 | F31: 18431.22052 | H31: 20 | I31: 0 | J31: 0 | K31: 0 | L31: 0 | N31: 20 | O31: 0 | P31: 0 | Q31: 0 | R31: 0 | T31: 20 | U31: 0 | V31: 0 | W31: 0 | X31: 0 | Z31: 20 | AA31: 0 | AB31: 0 | AC31: 0 | AD31: 0 | AF31: 20 | AG31: 0 | AH31: 0 | AI31: 0 | AJ31: 0 | AL31: 20 | AM31: 0 | AN31: 0 | AO31: 0 | AP31: 0
B32: 21 | C32: 4257.147438 | D32: 921.5610258 | E32: 3335.586412 | F32: 15095.6341 | H32: 21 | I32: 0 | J32: 0 | K32: 0 | L32: 0 | N32: 21 | O32: 0 | P32: 0 | Q32: 0 | R32: 0 | T32: 21 | U32: 0 | V32: 0 | W32: 0 | X32: 0 | Z32: 21 | AA32: 0 | AB32: 0 | AC32: 0 | AD32: 0 | AF32: 21 | AG32: 0 | AH32: 0 | AI32: 0 | AJ32: 0 | AL32: 21 | AM32: 0 | AN32: 0 | AO32: 0 | AP32: 0
B33: =B32+1 -> 22 | C33: 4257.147438 | D33: 754.7817052 | E33: 3502.365733 | F33: 11593.26837 | H33: 22 | I33: 0 | J33: 0 | K33: 0 | L33: 0 | N33: 22 | O33: 0 | P33: 0 | Q33: 0 | R33: 0 | T33: 22 | U33: 0 | V33: 0 | W33: 0 | X33: 0 | Z33: 22 | AA33: 0 | AB33: 0 | AC33: 0 | AD33: 0 | AF33: 22 | AG33: 0 | AH33: 0 | AI33: 0 | AJ33: 0 | AL33: 22 | AM33: 0 | AN33: 0 | AO33: 0 | AP33: 0
B34: =B33+1 -> 23 | C34: 4257.147438 | D34: 579.6634186 | E34: 3677.484019 | F34: 7915.784352 | H34: 23 | I34: 0 | J34: 0 | K34: 0 | L34: 0 | N34: 23 | O34: 0 | P34: 0 | Q34: 0 | R34: 0 | T34: 23 | U34: 0 | V34: 0 | W34: 0 | X34: 0 | Z34: 23 | AA34: 0 | AB34: 0 | AC34: 0 | AD34: 0 | AF34: 23 | AG34: 0 | AH34: 0 | AI34: 0 | AJ34: 0 | AL34: 23 | AM34: 0 | AN34: 0 | AO34: 0 | AP34: 0
B35: =B34+1 -> 24 | C35: 4257.147438 | D35: 395.7892176 | E35: 3861.35822 | F35: 4054.426131 | H35: 24 | I35: 0 | J35: 0 | K35: 0 | L35: 0 | N35: 24 | O35: 0 | P35: 0 | Q35: 0 | R35: 0 | T35: 24 | U35: 0 | V35: 0 | W35: 0 | X35: 0 | Z35: 24 | AA35: 0 | AB35: 0 | AC35: 0 | AD35: 0 | AF35: 24 | AG35: 0 | AH35: 0 | AI35: 0 | AJ35: 0 | AL35: 24 | AM35: 0 | AN35: 0 | AO35: 0 | AP35: 0
B36: =B35+1 -> 25 | C36: 4257.147438 | D36: 202.7213066 | E36: 4054.426131 | F36: 4.183675628e-11 | H36: 25 | I36: 0 | J36: 0 | K36: 0 | L36: 0 | N36: 25 | O36: 0 | P36: 0 | Q36: 0 | R36: 0 | T36: 25 | U36: 0 | V36: 0 | W36: 0 | X36: 0 | Z36: 25 | AA36: 0 | AB36: 0 | AC36: 0 | AD36: 0 | AF36: 25 | AG36: 0 | AH36: 0 | AI36: 0 | AJ36: 0 | AL36: 25 | AM36: 0 | AN36: 0 | AO36: 0 | AP36: 0
D38: Loan | E38: Payments
C39: Year | D39: Interest | E39: Principal
C40: 1 | D40: =D12+J12+P12+V12+AB12+AH12+AN12 -> 4250 | E40: =E12+K12+Q12+W12+AC12+AI12+AO12 -> 5781.517391
C41: 2 | D41: 3960.92413 | E41: 6070.593261
C42: 3 | D42: 3657.394467 | E42: 6374.122924
C43: 4 | D43: 3338.688321 | E43: 6692.82907
C44: 5 | D44: 3004.046868 | E44: 7027.470523
C45: 6 | D45: 2652.673342 | E45: 1604.474096
C46: 7 | D46: 2572.449637 | E46: 1684.697801
C47: 8 | D47: 2488.214747 | E47: 1768.932691
C48: 9 | D48: 2399.768112 | E48: 1857.379326
C49: 10 | D49: 2306.899146 | E49: 1950.248292

Sheet Depreciation
B4: DEPRECIATION | C4: Dep. Rate | D4: Initial Cost | E4: =Input!$E$14 -> Year 1 | F4: Year End | G4: =Input!$F$14 -> Year 2 | H4: Year End | I4: =Input!$G$14 -> Year 3 | J4: Year End | K4: =Input!$H$14 -> Year 4 | L4: Year End | M4: =Input!$I$14 -> Year 5 | N4: Year End
B5: =Input!C391 -> Land and Other Non Depreciating Assets | C5: 0 | D5: =Input!E391 -> 100000 | E5: 0 | F5: =D5-E5 -> 100000 | G5: 0 | H5: =IF(Input!$F$391>F5,Input!$F$391-G5,F5-G5) -> 100000 | I5: 0 | J5: =IF(Input!$G$391>H5,Input!$G$391-I5,H5-I5) -> 100000 | K5: 0 | L5: =IF(Input!$H$391>J5,Input!$H$391-K5,J5-K5) -> 100000 | M5: 0 | N5: =IF(Input!$I$391>L5,Input!$I$391-M5,L5-M5) -> 100000
B6: =Input!C392 -> Buildings and Fences (CCA - 10% dep) | C6: 0.05 | D6: =Input!E392 -> 75000 | E6: =D6*$C$6 -> 3750 | F6: =D6-E6 -> 71250 | G6: =F6*$C$6 -> 3562.5 | H6: =IF(Input!$F$392>F6,Input!$F$392-G6,F6-G6) -> 67687.5 | I6: =H6*$C$6 -> 3384.375 | J6: =IF(Input!$G$392>H6,Input!$G$392-I6,H6-I6) -> 64303.125 | K6: =J6*$C$6 -> 3215.15625 | L6: =IF(Input!$H$392>J6,Input!$H$392-K6,J6-K6) -> 61087.96875 | M6: =L6*$C$6 -> 3054.398438 | N6: =IF(Input!$I$392>L6,Input!$I$392-M6,L6-M6) -> 58033.57031
B7: =Input!C393 -> Machinery and Equipment (CCA - 20% dep) | C7: 0.1 | D7: =Input!E393 -> 50000 | E7: =D7*$C$7 -> 5000 | F7: =D7-E7 -> 45000 | G7: =F7*$C$7 -> 4500 | H7: =IF(Input!$F$393>F7,Input!$F$393-G7,F7-G7) -> 40500 | I7: =H7*$C$7 -> 4050 | J7: =IF(Input!$G$393>H7,Input!$G$393-I7,H7-I7) -> 36450 | K7: =J7*$C$7 -> 3645 | L7: =IF(Input!$H$393>J7,Input!$H$393-K7,J7-K7) -> 32805 | M7: =L7*$C$7 -> 3280.5 | N7: =IF(Input!$I$393>L7,Input!$I$393-M7,L7-M7) -> 29524.5
B8: =Input!C394 -> Infrastructure and Site Development (CCA - 8%) | C8: 0.08 | D8: =Input!E394 -> 0 | E8: =IF(D8>0,D8*C8,0) -> 0 | F8: =D8-E8 -> 0 | G8: =IF(Input!$F$394>F8,Input!$F$394*C8,F8*C8) -> 0 | H8: =IF(Input!$F$394>F8,Input!$F$394-G8,F8-G8) -> 0 | I8: =IF(Input!$G$394>H8,Input!$G$394*C8,H8*C8) -> 0 | J8: =IF(Input!$G$394>H8,Input!$G$394-I8,H8-I8) -> 0 | K8: =IF(Input!$H$394>J8,Input!$H$394*C8,J8*C8) -> 0 | L8: =IF(Input!$H$394>J8,Input!$H$394-K8,J8-K8) -> 0 | M8: =IF(Input!$I$394>L8,Input!$I$394*C8,L8*C8) -> 0 | N8: =IF(Input!$I$394>L8,Input!$I$394-M8,L8-M8) -> 0
C9: TOTAL | D9: =SUM(D5:D8) -> 225000 | E9: 8750 | F9: 216250 | G9: 8062.5 | H9: 208187.5 | I9: 7434.375 | J9: 200753.125 | K9: 6860.15625 | L9: 193892.9688 | M9: 6334.898438 | N9: 187558.0703
